{"text_format":"1","workbook":"xlsx","n_sheets":10,"sheets":["Prompt","C100","C200","C300","C334","C400","C500","C700","C800","Enviar"],"not_rendered":{"charts":0,"images":6,"macros":1,"external_links":0,"defined_names":5,"comments":1,"pivot_tables":0},"unopened":[],"bounds":{"document_bytes":16777216,"sheet_cells":100000,"rows_first":2000,"rows_last":500,"rows_between":2000,"halvings":0,"cell_chars":16384,"cell_head_chars":4096},"cells_cut":0,"cells_raw":0,"read":"whole","date_system":"1900"}

{"sheet":"Prompt","index":0,"n_rows":79,"n_cols":4,"rows_kept":79,"cut":false,"hidden":true,"merged":[[1,3,2,6],[4,1,6,8],[43,1,44,8],[78,1,79,8],[9,1,10,8]]}
[]
[null,null,null,"¡ATENCIÓN!"]
[]
[]
[null,"Para hacer uso de las funcionalidades de esta Cédula Electrónica debe habilitar macros"]
[]
[]
[]
[]
[null,"Si utiliza Excel 2013 siga el siguiente procedimiento:"]
[]
[]
[]
[]
[]
[]
[]
[]
[]
[]
[]
[]
[]
[]
[]
[]
[]
[]
[]
[]
[]
[]
[]
[]
[]
[]
[]
[]
[]
[]
[]
[]
[]
[null,"Si utiliza Excel 2007 siga el siguiente procedimiento:"]
[]
[]
[]
[]
[]
[]
[]
[]
[]
[]
[]
[]
[]
[]
[]
[]
[]
[]
[]
[]
[]
[]
[]
[]
[]
[]
[]
[]
[]
[]
[]
[]
[]
[]
[null,"Si utiliza Excel 2000, 2002, 2003 siga el siguiente procedimiento:"]

{"sheet":"C100","index":1,"n_rows":710,"n_cols":26,"rows_kept":710,"cut":false,"hidden":false,"merged":[[400,17,400,22],[301,7,301,9],[505,8,505,11],[330,11,331,11],[333,11,334,11],[326,11,327,11],[328,11,329,11],[294,7,294,10],[291,6,291,11],[292,6,292,11],[352,6,352,10],[409,4,409,9],[270,5,270,10],[350,21,351,21],[243,8,243,10],[387,6,387,10],[451,14,452,20],[396,5,396,9],[229,9,229,10],[293,6,293,11],[238,21,238,22],[287,6,287,11],[289,7,289,11],[415,20,415,21],[436,21,436,22],[300,17,300,22],[285,17,285,22],[418,5,418,10],[351,6,351,10],[323,4,323,10],[258,8,258,10],[319,17,319,21],[264,20,266,20],[285,6,285,9],[247,18,247,19],[275,20,275,22],[324,3,325,3],[326,3,327,3],[337,11,338,11],[335,11,336,11],[350,15,351,15],[350,16,351,18],[328,3,329,3],[330,3,331,3],[335,3,336,3],[324,11,325,11],[337,3,338,3],[333,3,334,3],[335,17,335,21],[94,15,95,17],[45,6,45,7],[504,17,504,20],[407,15,409,22],[560,8,560,11],[416,18,418,22],[557,18,557,22],[558,18,558,22],[556,8,556,11],[546,6,546,10],[557,8,557,11],[559,18,559,22],[553,18,553,22],[426,21,426,22],[554,9,554,11],[436,2,436,12],[430,2,430,12],[559,8,559,11],[540,21,540,22],[539,21,539,22],[435,19,437,20],[453,14,453,21],[492,19,492,22],[451,22,452,22],[9,2,9,23],[14,14,14,22],[93,3,94,3],[31,2,31,23],[85,3,86,3],[12,7,12,9],[81,3,82,3],[81,11,82,11],[89,17,89,19],[82,21,83,21],[14,7,14,9],[89,4,90,10],[70,15,70,18],[76,17,76,19],[44,3,46,5],[82,20,83,20],[82,15,83,18],[85,4,86,10],[89,11,90,11],[93,4,94,10],[93,11,94,11],[51,17,51,19],[94,22,94,23],[85,11,86,11],[155,3,157,6],[155,7,156,7],[155,8,156,9],[155,10,157,11],[157,8,157,9],[12,10,12,12],[71,8,71,11],[132,5,132,10],[97,20,97,21],[120,19,120,22],[137,19,137,22],[96,20,96,21],[37,10,37,11],[51,20,51,22],[79,4,79,10],[81,4,82,10],[12,14,12,22],[42,17,42,19],[42,20,42,22],[44,6,44,9],[40,10,40,11],[95,20,95,21],[95,6,95,10],[94,20,94,21],[1,7,1,19],[2,7,2,19],[3,7,3,19],[264,21,267,22],[264,15,267,19],[273,16,273,19],[268,21,268,22],[269,21,269,22],[273,21,273,22],[270,21,270,22],[271,21,271,22],[272,21,272,22],[231,18,231,19],[45,8,45,9],[228,9,228,10],[158,8,158,9],[158,10,158,11],[159,8,159,9],[159,10,159,11],[225,7,225,8],[0,22,4,23],[192,20,192,22],[236,21,236,22],[5,2,5,23]]}
[null,null,null,null,null,null,null,null,null,null,null,null,null,null,null,null,null,null,null,null,null,null,"1A"]
[null,null,null,null,null,null,null,"CENSO EDUCATIVO 2022"]
[null,null,null,null,null,null,null,"Educación Básica Regular"]
[null,null,null,null,null,null,null,"Inicial Escolarizada"]
[null,null,"Versión :","2 - (32 y 64 bits)"]
[null,null,"INSTRUCCIONES DEL FORMATO ELECTRÓNICO "]
[]
[]
[]
[null,null,"IDENTIFICACIÓN DEL SERVICIO EDUCATIVO"]
[]
[]
[null,null,"1. CÓDIGO MODULAR:",null,null,null,null,null,null,null,"3. NOMBRE DEL SERVICIO:",null,null,null,""]
[]
[null,null,"2. CÓDIGO DE LOCAL EDUCATIVO:",null,null,null,null,null,null,null,"4. DISTRITO:",null,null,null,""]
[]
[]
[null,null,"5. NIVEL EDUCATIVO",null,null,null,null,null,null," (Marcar con \"X\" según corresponda)",null,null,null,null,null,null,null,"6. EL SERVICIO/NIVEL EDUCATIVO"]
[null,null,null,null,null,null,null,null,null,null,null,null,null,null,null,null,null,"¿PROCEDE DE UNA CONVERSIÓN (PRONOEI)?"]
[null,null,null,null,"A1 - Cuna  "]
[null,null,null,null,"a. ¿Cuenta con estudiantes del ciclo II (3 a 5 años o más) ?      ",null,null,null,null,null,null,"Si  ",null,null,"No",null,null,"Si  ",null,null,null,null,"¿Desde qué año?"]
[]
[null,null,null,null,"A2 - Jardín   "]
[null,null,null,null,"b. ¿Cuenta con estudiantes del ciclo I (0 a 2 años)?",null,null,null,null,null,null,"Si  ",null,null,"No",null,null,"No  "]
[]
[null,null,null,null,"A3 - Cuna y Jardín  "]
[]
[]
[null,null,"Esta Institución Educativa es de Gestión : ",null,null,null,null,null,null,""," 1 - Pública de gestión directa",null,null,null,null,""," 2 - Pública de gestión privada",null,null,null,null," 3 - Privada"]
[]
[]
[null,null,"100. CARACTERÍSTICAS DEL SERVICIO EDUCATIVO  (Para II.EE. Públicas y Privadas)"]
[]
[null,null,"A. CARACTERÍSTICA DE LA ENSEÑANZA"]
[null,null,"101. CON RESPECTO A LAS CLASES",null,null,null,null,null,null,null,null,null,null,"104. CUENTA CON ESPACIOS EDUCATIVOS PARA IMPLEMENTAR MÁS AULAS, CONSIDE-"]
[null,null,null,null,null,null,null,null,null,null,null,null,null," RANDO LAS QUE TIENE ACTUALMENTE?"]
[null,null,null,"A. ¿CUANDO INICIARON LAS CLASES?",null,null,null,null,"Día",null,"Mes"]
[null,null,null,"(Primer día en que asistieron)",null,null,null,null,null,"-",null,null,null,null,"Sí",null,null," No  "]
[]
[null,null,null,"B. ¿CUANDO TERMINARÁN LAS CLASES?",null,null,null,null,"Día",null,"Mes",null,null,"    105. EN ESTE SERVICIO/NIVEL EDUCATIVO, ¿CUÁNTAS VACANTES OFRECIÓ PARA EL"]
[null,null,null,"(Último día en que asistirán)",null,null,null,null,null,"-",null,null,null,"     PRESENTE PERIODO LECTIVO?"]
[]
[null,null,"102. HORARIO DE CLASES DE LOS ESTUDIANTES",null,null,null,null,null,null,null,null,null,null,null,null,null,null,"Ciclo I",null,null,"Ciclo II"]
[null,null,null,null,null,null,null,null,null,null,null,null,null,null,"Edades",null,null,0,1,2,3,4,5]
[null,null,null,"TURNO",null,null,"Horario de clases",null,null,null,null,null,null,null,"Turno mañana"]
[null,null,null,null,null,null,"Inicio",null,"Término"]
[null,null,null,null,null,null,"Horas","Minutos","Horas","Minutos",null,null,null,null,"Turno tarde"]
[null,null,null,"01","Mañana",{"$f":"COUNT(G48:N48)","v":0}]
[null,null,null,"02","Tarde",{"$f":"COUNT(G49:N49)","v":0},null,null,null,null,null,null,null,"    106. EN ESTE SERVICIO/NIVEL EDUCATIVO, ¿CUÁNTOS POSTULANTES SE PRESENTARON"]
[null,null,null,null,null,null,null,null,null,null,null,null,null,"     PARA EL PRESENTE PERIODO LECTIVO?"]
[]
[null,null,"103. EN EL PRESENTE AÑO, ¿BAJO QUE MODALIDAD SE REALIZAN LAS CLASES EN ESTE SERVICIO /",null,null,null,null,null,null,null,null,null,null,null,null,null,null,"Ciclo I",null,null,"Ciclo II"]
[null,null,"           NIVEL EDUCATIVO?     ",null,null,"(Marque con una \"X\" solo una opción)",null,null,null,null,null,null,null,null,"Edades",null,null,0,1,2,3,4,5]
[null,null,null,null,null,null,null,null,null,null,null,null,null,null,"Turno mañana"]
[null,null,null,null,"Presencial",null,null,"Semipresencial",null,null,"Virtual / A distancia"]
[null,null,null,null,null,null,null,null,null,null,null,null,null,null,"Turno tarde"]
[]
[]
[null,null,"107. EN EL PROCESO DE MATRÍCULA DEL PERIODO 2022, LOS PADRES DE FAMILIA, CUIDADORES(AS) O ",null,null,null,null,null,null,null,null,null,null,"114. DURANTE EL 2021 ¿HA COORDINADO CON ALGUNA INSTITUCION PARA REALIZAR "]
[null,null,"APODERADOS(AS) QUE SOLICITARON UNA O MÁS VACANTES EN ESTE SERVICIO / NIVEL ",null,null,null,null,null,null,null,null,null,null,"             ACTIVIDADES RELACIONADAS A LA LUCHA CONTRA LA ANEMIA?"]
[null,null,"EDUCATIVO, ¿LOGRARON OBTENER EL TOTAL DE VACANTES SOLICITADAS?"]
[null,null,null,null,null,null,null,null,null,null,null,null,null,null,null,null,null,null,null,null,null,null,null,"Pase a la"]
[null,null,null,"Sí","","Pase a la pregunta 109.",null,null,null,null,null,null,null,null,null,null,null,null,null,null,null,null,null,"pregunta 116."]
[null,null,null,null,null,null,null,null,null,null,null,null,null,null,null,"Sí",null,"No   ","",null,"No sabe   ",""]
[]
[null,null,null," No  ",null,null,"¿Por qué no lograron una o más vacante(s)?"]
[null,null,null,null,null,null,null,null,null,null,null,null,null,"    115. INDIQUE USTED, ¿CUÁLES DE LAS SIGUIENTES INSTITUCIONES ORGANIZARON "]
[null,null,null,null,null,null,"(Marque con una \"X\" una opción)",null,null,null,null,null,null,"     ALGUNA ACTIVIDAD RELACIONADA A LA LUCHA CONTRA LA ANEMIA?"]
[null,null,null,null,null,null,"","No hay capacidad para recibirlos"]
[null,null,null,null,null,null,"","Hay capacidad, pero existen aulas con mucho riesgo",null,null,null,null,null,null,null,"(Para cada entidad, marque con una \"X\" Si o No organizó actividades)"]
[null,null,null,null,null,null,"","Prefiero tener una carga docente baja, para un mejor …",null,null,null,null,null,null,null,"Entidad que Organizó",null,null,null,{"$f":"COUNTIF(U72:V77,\"X\")","v":0}," Si"," No","Fecha"]
[null,null,null,null,null,null,"","Otro","",null,null,null,null,null,null,"1. Servicio/Nivel Educativo",null,null,null,null,"","",""]
[null,null,null,null,null,null,null,null,null,null,null,null,null,null,null,"2. UGEL/DRE",null,null,null,null,"","",""]
[null,null,null,null,null,null,null,null,null,null,null,null,null,null,null,"3. Establecimiento de salud",null,null,null,null,"","",""]
[null,null,null,null,null,null,null,null,null,null,null,null,null,null,null,"4. Municipalidad",null,null,null,null,"","",""]
[null,null,"108. ¿QUÉ CRITERIOS DE PRIORIZACIÓN TUVIERON EN CUENTA PARA LA MATRÍCULA DE LOS",null,null,null,null,null,null,null,null,null,null,null,null,"5. Organización No Gubernamental (ONG)",null,null,null,null,"","",""]
[null,null," ESTUDIANTES QUE SOLICITARON UNA VACANTE EN ESTE SERVICIO / NIVEL EDUCATIVO?",null,null,null,null,null,null,null,null,null,null,null,null,"6. Otro",null,null,null,null,"","",""]
[]
[null,null,null,"(Marque con una \"X\" en \"SI\" o \"NO\", según corresponda por cada criterio)",null,null,null,null,null,null,null,null,null,"    116. DURANTE EL AÑO 2021 ¿SE REALIZARON TALLERES DIRIGIDOS A LOS PADRES DE"]
[null,null,null,"NRO.","CRITERIOS",null,null,null,null,null,null," SI - NO",null,"     FAMILIA O APODERADOS EN EL SERVICIO/NIVEL EDUCATIVO?"]
[null,null,{"$f":"COUNTIF(L81:L96,\"NO\")","v":0},1,"Cercanía del lugar de residencia del estudiante a la I.E."]
[null,null,null,2,"Cercanía del trabajo de los padres o apoderados del estudiante a la I.E.",null,null,null,null,null,null,null,null,null,null,"(Marque con una \"X\" Si o No organizó talleres)"]
[null,null,null,null,null,null,null,null,null,null,null,null,null,null,null,"Talleres de …",null,null,null,null,"Si","No","Cantidad"]
[null,null,null,3,"Hermanos (as) estudiando en la misma I.E.",null,null,null,null,null,null,null,null,null,null,null,null,null,null,{"$f":"COUNTIF(U85:V90,\"X\")","v":0},null,null,"de Talleres"]
[null,null,null,4,"Hijos (as) de ex alumnos (as)",null,null,null,null,null,null,null,null,null,null,"1. Aprendizajes"]
[null,null,null,5,"Niños (as) con Necesidades Educativas Especiales (NEE) asociadas a discapacidad",null,null,null,null,null,null,null,null,null,null,"2. Pauta de crianza"]
[null,null,null,null,null,null,null,null,null,null,null,null,null,null,null,"3. Violencia"]
[null,null,null,6,"Estado civil de los padres",null,null,null,null,null,null,null,null,null,null,"4. Inclusión"]
[null,null,null,7,"Record de rendimiento académico del estudiante",null,null,null,null,null,null,null,null,null,null,"5. Alimentación y hábitos de higiene"]
[null,null,null,8,"Documentos que sustenten solvencia económica de los padres o apoderados",null,null,null,null,null,null,null,null,null,null,"6. Otro"]
[]
[null,null,null,9,"Orden de llegada de los doc. de inscripción del estudiante",null,null,null,null,null,null,null,null,"    117. EL SERVICIO/NIVEL EDUCATIVO, ¿TIENE PRACTICANTES DE UNIVERSIDADES O"]
[null,null,null,10,"Que los estudiantes cuenten con documento de identidad",null,null,null,null,null,null,null,null,"     INSTITUTOS?"]
[null,null,null,11,"Que el estudiante haya rendido una evaluación de ingreso previa a la matrícula"]
[null,null,null,null,null,null,null,null,null,null,null,null,null,null,null,"Entidad de Procedencia",null,null,null,"Marcar","Nro. De",null,"Asistencia en nro. de :"]
[null,null,null,12,"Otros",null,"",null,null,null,null,null,null,null,null,null,null,null,{"$f":"COUNTIF(T97:T99,\"X\")","v":0},"\"X\"","Practicantes",null,"Días a la semana","Meses"]
[null,null,null,null,null,null,null,null,null,null,null,{"$f":"COUNTIF(L81:L96,\"SI\") + COUNTIF(L81:L96,\"NO\")","v":0},null,null,null,null,"1. de Universidad"]
[null,null,null,null,null,null,null,null,null,null,null,null,null,null,null,null,"2. de Instituto"]
[null,null,"109. ¿HA RECIBIDO MATERIALES FORMATIVOS O INFORMATIVOS , FÍSICOS O DIGITALES SOBRE LOS",null,null,null,null,null,null,null,null,null,null,null,null,null,"3. Ninguno"]
[null,null," INSTRUMENTOS DE GESTIÓN?"]
[null,null,null,null,null,null,null,null,null,null,null,null,null,"118. ESTE SERVICIO / NIVEL EDUCATIVO SE ENCUENTRA EN EL ÁMBITO DE ALGÚN ESTABLECIMIENTO"]
[null,null,null,"(Marque con una \"X\", una o más ocpiones)",null,null,null,null,null,null,null,null,null,"             DE SALUD?"]
[null,null,null,"","He recibido materiales y/o formación a través de la UGEL."]
[null,null,null,"","He recibido materiales y/o formación a través de la DRE."]
[null,null,null,"","He recibido materiales y/o formación a través de los programas formativos …",null,null,null,null,null,null,null,null,null,null,"Sí",null,"No   ",null,"Pase a la pregunta 120."]
[null,null,null,"","He recibido materiales y/o formación a través de páginas web oficiales del Minedu…"]
[null,null,null,"","He recibido materiales y/o formación a través de mis colegas o redes profesionales",null,null,null,null,null,null,null,null,"119. ¿ESTE SERVICIO / NIVEL EDUCATIVO, REALIZA COORDINACIONES Y/O ACCIONES DE"]
[null,null,null,null,"No he recibido materiales y/o información sobre los Instrumentos de Gestión",null,null,null,null,null,null,null,null,"ARTICULACIÓN CON EL ESTABLECIMIENTO DE SALUD?"]
[]
[null,null,"    110. ¿SE HA ELABORADO EL PLAN ANUAL DE TRABAJO (PAT) 2022?"]
[null,null,null,null,null,null,null,null,null,null,null,null,null,null,null,"Sí",null,""]
[null,null,null,"Sí",null," No  "]
[null,null,null,null,null,"¿Han sido incorporadas las actividades anuales del plan TOECE?"]
[null,null,null,null,null,"       (Tutoría, orientación educativa y convivencia escolar)"]
[null,null,null,null,null,null,null,null,null,null,null,null,null,null,null,null,null,"  ¿Qué tipo de coordinaciones y/o acciones realiza?"]
[null,null,null,null,null,"Sí  ",null,null,"No",null,null,null,null,null,null,null,null,"  (Marque con una \"X\" una o más opciones)"]
[null,null,null,null,null,null,null,null,null,null,null,null,null,null,null,null,null,null,"Salud física de estudiantes"]
[null,null,"    111. EL SERVICIO/NIVEL EDUCATIVO, ¿CUENTA CON UN PLAN APROBADO DE GESTIÓN DE RIESGO DE ",null,null,null,null,null,null,null,null,null,null,null,null,null,null,null,"Salud física de docentes"]
[null,null,"DESASTRES QUE CONTEMPLE LA FASE DE SOPORTE SOCIOEMOCIONAL, FASE DE ACTIVIDADES ",null,null,null,null,null,null,null,null,null,null,null,null,null,null,null,"Salud mental del estudiante"]
[null,null,"LÚDICAS Y FASE DE APLICACIÓN DEL CURRÍCULO?",null,null,null,null,null,null,null,null,null,null,null,null,null,null,null,"Salud mental del docente"]
[null,null,null,null,null,null,null,null,null,null,null,null,null,null,null,null,null,null,"Otros"]
[null,null,null,"Sí",null,null," No  "]
[]
[null,null,"112. EN LOS ÚLTIMOS TRES MESES, SE COORDINÓ U OFRECIÓ ALGÚN PROGRAMA O SERVICIO, COMO?:",null,null,null,null,null,null,null,null,null,null,"120. DURANTE EL 2021 Y HASTA LA FECHA DE LA APLICACIÓN DEL CENSO 2022, ¿EN"]
[null,null,null,null,null,null,null,null,null,null,null,null,null,"ESTE SERVICIO/NIVEL EDUCATIVO SE HAN REALIZADO ACCIONES PARA ATENDER"]
[null,null,null,"(Marque con una \"X\", una o más ocpiones)",null,null,null,null,null,null,null,null,null,"SITUACIONES DE INTERRUPCIÓN DE ESTUDIOS DE LOS ESTUDIANTES?"]
[null,null,null,null,"Programa Qali Warma"]
[null,null,null,null,"Campaña de vacunación",null,null,null,null,null,null,null,null,null,null,"Sí",null,"No   "]
[null,null,null,null,"Control de crecimiento y desarrollo"]
[null,null,null,null,"Servicio de Apoyo y Asesoramiento a las Necesidades Educativas Especiales (SAANEE)"]
[null,null,null,null,"Programa de Intervención Temprana (PRITE)"]
[null,null,null,null,"Servicio de Apoyo Educativo Virtual (SAEV)",null,null,null,null,null,null,null,null,null,null,null,null,"  ¿Qué acciones se realizarón?"]
[null,null,null,null,"Otro",null,null,null,null,null,null,null,null,null,null,null,null,"  (Marque con una \"X\" una o más opciones)"]
[null,null,null,null,"Ninguno",null,null,null,null,null,null,null,null,null,null,null,null,null,"Seguimiento y visitas a estudiantes en riesgo de abandono"]
[null,null,null,null,null,null,null,null,null,null,null,null,null,null,null,null,null,null,"Orientaciones a las familias sobre la continuidad en la IE"]
[null,null,"    113. EL SERVICIO / NIVEL EDUCATIVO,¿ CUENTA CON UN PLAN APROBADO DE LUCHA CONTRA LA ",null,null,null,null,null,null,null,null,null,null,null,null,null,null,null,"Flexibilización de la atención educativa brindada en la IE"]
[null,null,"             ANEMIA?",null,null,null,null,null,null,null,null,null,null,null,null,null,null,null,"Focalizar a los estudiantes en riesgo"]
[null,null,null,null,null,null,null,null,null,null,null,null,null,null,null,null,null,null,"Otro"]
[null,null,null,"Sí",null," No  "]
[null,null,null,null,null,"¿Está incorporado en los documentos de gestión?"]
[]
[null,null,null,null,null,"Sí  ",null,null,"No"]
[]
[]
[]
[null,null,"B. TUTORÍA , ORIENTACIÓN EDUCATIVA Y CONVIVENCIA ESCOLAR"]
[null,null,"121. EN ESTE SERVICIO / NIVEL EDUCATIVO ¿SE DESARROLLAN PROGRAMAS QUE PROMUEVAN LA",null,null,null,null,null,null,null,null,null,null,"    139. USTED, SEÑOR(A) DIRECTOR(A), ¿CONOCE LOS PROTOCOLOS PARA LA ATENCIÓN "]
[null,null,"ÉTICA, INTEGRIDAD Y VALORES?",null,null,null,null,null,null,null,null,null,null,"     DE LOS CASOS DE VIOLENCIA EN EL SERVICIO / NIVEL EDUCATIVO?"]
[]
[null,null,null," Sí",null," No  ",null,null,null,null,null,null,null,null," Sí",null,null,null," No  "]
[]
[null,null,"122. INDIQUE, ¿CON CUÁLES DE LOS SIGUIENTES COMITÉS CUENTA ESTE SERVICIO / NIVEL EDUCATIVO",null,null,null,null,null,null,null,null,null,null,null,null,null,"¿Ha sido capacitado por algún integrante de la UGEL/DRE en el uso"]
[null,null,"Y CON QUÉ FRECUENCIA SE REÚNEN?",null,null,null,null,null,null,null,null,null,null,null,null,null,"de los Protocolos para la atención de los casos de violencia en la"]
[null,null,null,null,null,null,null,null,null,null,null,null,null,null,null,null,"Institución Educativa?"]
[]
[null,null,null,"Detalle de los comités en el Servicio / Nivel Educativo",null,null,null,"¿Cuenta con este comite?","¿Esta conformado mediante Resolución Directoral (RD)?",null,"Frecuencia de\n las reuniones",null,null,null,null,null,null," Sí   ",null,null," No  "]
[]
[null,null,null,null,null,null,null,"Si - No","Si - No",null,null,null,null,"    140. SEÑOR(A) DIRECTOR(A), EN EL AÑO 2021, ¿SE APLICARÓN LOS PROTOCOLOS PARA LA"]
[null,null,null,"1. Comité de Tutoría",null,null,null,null,null,null,null,null,null,null,"      ATENCIÓN DE LOS CASOS DE VIOLENCIA EN EL SERVICIO/NIVEL EDUCATIVO QUE FUERON"]
[null,null,null,"2. Comité de Gestión del Bienestar",null,null,null,null,null,null,null,null,null,null,"      ACTUALIZADOS PARA LA EDUCACIÓN A DISTANCIA?"]
[null,null,null,null,null,null,null,{"$f":"COUNTIF(H159:H160,\"SI\")+COUNTIF(H159:H160,\"NO\")","v":0}]
[null,null,"123. EL SERVICIO/NIVEL EDUCATIVO, ¿CUENTA CON PLAN DE TUTORÍA, ORIENTACIÓN EDUCATIVA Y CONVI-",null,null,null,null,null,null,null,null,null,null,null," Sí",null,null,null," No  "]
[null,null,"VENCIA ESCOLAR?"]
[null,null,null,null,null,null,null,null,null,null,null,null,null,"    141. ESTE SERVICIO/NIVEL EDUCATIVO, ¿RECIBE ASISTENCIA TÉCNICA PARA LA"]
[null,null,null," Sí",null," No  ",null,"Pase a la pregunta 127.",null,null,null,null,null,"             PROMOCIÓN DE LA CONVIVENCIA ESCOLAR, LA PREVENCIÓN Y ATENCIÓN DE LA"]
[null,null,null,null,null,null,null,null,null,null,null,null,null,"             VIOLENCIA ESCOLAR?"]
[null,null,"124. EL PLAN DE TUTORÍA, ORIENTACIÓN EDUCATIVA Y CONVIVENCIA ESCOLAR PRESENTA AL MENOS UNA ACTI-"]
[null,null,"VIDAD RELACIONADA A LA GESTIÓN DEL BIENESTAR EN EL RETORNO A LA SEMIPRESENCIALIDAD O ",null,null,null,null,null,null,null,null,null,null,null," Sí",null,null,null," No  "]
[null,null,"PRESENCIALIDAD?"]
[null,null,null,null,null,null,null,null,null,null,null,null,null,"    142. ¿USTED, HA RECURRIDO A LA UGEL/DRE SOLICITANDO ORIENTACIONES PARA"]
[null,null,null," Sí",null," No  ",null,null,null,null,null,null,null,"     MEJORAR LA CONVIVENCIA EN SU SERVICIO / NIVEL EDUCATIVO?"]
[]
[null,null,"125. ¿SE HA ACTUALIZADO EL PLAN DE TUTORÍA, CON RELACIÓN A LO ELABORADO  EN EL AÑO 2021?",null,null,null,null,null,null,null,null,null,null,null," Sí",null,null,null," No  "]
[]
[null,null,null," Sí",null," No  ",null,null,null,null,null,null,null,null,null,null,"¿Usted ha recibido alguna información y/o capacitación?"]
[]
[null,null,"126. LOS DOCENTES TUTORES, ¿CUENTAN CON UN PLAN TUTORIAL DE AULA PARA ESTE AÑO 2022?",null,null,null,null,null,null,null,null,null,null,null,null,null,null," Sí   ",null,null," No  "]
[]
[null,null,null,"  (Marque con una \"X\", una opción)",null,null,null,null,null,null,null,null,null,"    143. ¿EL SERVICIO/NIVEL EDUCATIVO CUENTA CON UN MAPA O DIRECTORIO DE"]
[null,null,null,null,"Sí, todos los docentes",null,null,null,null,null,null,null,null,"             ALIADOS ESTRATÉGICOS PARA LA PREVENCIÓN Y ATENCIÓN DE CASOS DE"]
[null,null,null,null,"Sí, algunos docentes",null,null,null,null,null,null,null,null,"             VIOLENCIA ESCOLAR?"]
[null,null,null,null,"Ninguno"]
[null,null,null,null,null,null,null,null,null,null,null,null,null,null,null,"Sí",null,null,"En caso de que cuente con un mapa o directorio de aliados"]
[null,null,"127. EL SERVICIO/NIVEL EDUCATIVO, ¿CUENTA CON NORMAS DE CONVIVENCIA ESCOLAR ACTUALIZADAS PARA",null,null,null,null,null,null,null,null,null,null,null,null,null,null,null,"estratégicos, por favor, indique quienes lo conforman:"]
[null,null,"         EL AÑO 2022?",null,null,null,null,null,null,null,null,null,null,null,null,null,null,null,"(Marque con una \"X\", una o más opciones)"]
[]
[null,null,null," Sí",null," No  ",null,"Pase a la pregunta 131.",null,null,null,null,null,null,null,null,null,null,null,"DEMUNA"]
[null,null,null,null,null,null,null,null,null,null,null,null,null,null,null,null,null,null,null,"Defensoría del pueblo"]
[null,null,null,null,null,"¿Están incorporadas al reglamento interno?",null,null,null,null,null,null,null,null,null,null,null,null,null,"Centro de emergencia Mujer (CEM)"]
[null,null,null,null,null,null,null,null,null,null,null,null,null,null,null,null,null,null,null,"Centro o posta de salud"]
[null,null,null,null,null," Sí   ",null,null," No  ",null,null,null,null,null,null,null,null,null,null,"Iglesia"]
[null,null,null,null,null,null,null,null,null,null,null,null,null,null,null,null,null,null,null,"Comisaria"]
[null,null,"128. LAS NORMAS DE CONVIVENCIA ESCOLAR INCLUYEN NORMAS RELACIONADAS A LA GESTIÓN DE",null,null,null,null,null,null,null,null,null,null,null,null,null,null,null,null,"Otro"]
[null,null,"BIENESTAR EN EL RETORNO A LA SEMIPRESENCIALIDAD O PRESENCIALIDAD?"]
[null,null,null,null,null,null,null,null,null,null,null,null,null,null,null," No  ",null,"Pase a la pregunta 145."]
[null,null,null," Sí",null," No  "]
[null,null,null,null,null,null,null,null,null,null,null,null,null,"144. EL SERVICIO / NIVEL EDUCATIVO HA REALIZADO ALGUNA ACTIVIDAD COORDINADA"]
[null,null,"129.¿LAS NORMAS DE CONVIVENCIA ESCOLAR HAN SIDO CONSTRUIDAS CON LA PARTICIPACIÓN DE LOS",null,null,null,null,null,null,null,null,null,null,"CON ALGUNO DE LOS ALIADOS ESTRATÉGICOS?"]
[null,null,"REPRESENTANTES DE LAS FAMILIAS DE LAS/LOS ESTUDIANTES?"]
[null,null,null,null,null,null,null,null,null,null,null,null,null,null," Sí",null,null," No  "]
[null,null,null," Sí",null," No  "]
[null,null,null,null,null,null,null,null,null,null,null,null,null,"145. SEÑOR(A) DIRECTOR (A), ¿EMPLEA USTED HERRAMIENTAS DE CONSULTA PARA"]
[null,null,"130. ¿EL SERVICIO / NIVEL EDUCATIVO, CUENTA CON AL MENOS UNA/UN RESPONSABLE DE CONVIVENCIA",null,null,null,null,null,null,null,null,null,null,"VERIFICAR LA SITUACIÓN DEL PERSONAL DEL SERVICIO/NIVEL EDUCATIVO, TAL "]
[null,null,"ESCOLAR ASIGNADO PARA EL AÑO 2022?",null,null,null,null,null,null,null,null,null,null,"COMO EL REGISTRO NACIONAL DE SANCIONES CONTRA SERVIDORES CIVILES - RNSSC?"]
[]
[null,null,null," Sí",null," No  ",null,null,null,null,null,null,null,null," Sí",null,null," No  "]
[]
[null,null,null,null,null,"¿Se encuentra registrado en el portal SíseVe?",null,null,null,null,null,null,null,"146. SEÑOR(A) DIRECTOR(A) ¿CONOCE USTED QUE PUEDE PRESENTAR DENUNCIAS SOBRE"]
[null,null,null,null,null,null,null,null,null,null,null,null,null,"POSIBLES ACTOS DE SOBORNO  DE MANERA ANÓNIMA, CON LA FINALIDAD DE"]
[null,null,null,null,null," Sí   ",null,null," No  ",null,null,null,null,"PROTEGER SU IDENTIDAD?"]
[]
[null,null,"131. EL SERVICIO/NIVEL EDUCATIVO, ¿CUENTA CON UN LIBRO DE REGISTRO DE INCIDENCIAS PARA EL REGISTRO",null,null,null,null,null,null,null,null,null,null,null," Sí",null,null," No  "]
[null,null,"DE CASOS DE VIOLENCIA ESCOLAR, EN EL MARCO DE LA LEY N° 29719?"]
[null,null,null,null,null,null,null,null,null,null,null,null,null,"147. SEÑOR(A) DIRECTOR(A)¿TIENE CONOCIMIENTO QUE LOS HECHOS DE VIOLENCIA, "]
[null,null,null," Sí",null," No  ",null,"Pase a la pregunta 133.",null,null,null,null,null,"ADEMÁS DE SER REPORTADOS EN EL PORTAL DEL SÍSEVE, DEBEN SER"]
[null,null,null,null,null,null,null,null,null,null,null,null,null,"REPORTADOS A LA UGEL?"]
[null,null,null,null,null,"¿El libro de registro se encuentra en un lugar visible?"]
[null,null,null,null,null,null,null,null,null,null,null,null,null,null," Sí",null,null," No  "]
[null,null,null,null,null," Sí   ",null,null," No  "]
[null,null,null,null,null,null,null,null,null,null,null,null,null,"148. SEÑOR(A) DIRECTOR(A) ¿CONOCE USTED EN QUÉ CASOS TIENE COMPETENCIA"]
[null,null,"132. EN EL AÑO 2021, ¿SE HIZO USO DEL LIBRO DE REGISTRO DE INCIDENCIAS?",null,null,null,null,null,null,null,null,null,null,"PARA INVESTIGAR UNA DENUNCIA QUE HAYA SIDO PRESENTADA EN CONTRA"]
[null,null,null,null,null,null,null,null,null,null,null,null,null,"DE PROFESORES, PERSONAL JERÁRQUICO Y SUBDIRECTOR DE LA INSTITUCIÓN"]
[null,null,null,"Sí",null,"No  ",null,null,null,null,null,null,null,"EDUCATIVA QUE DIRIGE?"]
[]
[null,null,null,null,null,"¿Cuántas incidencias se registraron en el año 2021?",null,null,null,null,null,null,null,null," Sí",null,null," No  "]
[]
[null,null,null,null,null,null,null,null,null,null,null,null,null,"    149. SEÑOR(A) DIRECTOR(A), DURANTE EL PRESENTE AÑO, ¿HA RECIBIDO DENUNCIAS"]
[null,null,null,null,null,"Anote la fecha de la última incidencia registrada en el año 2021",null,null,null,null,null,null,null,"     CONTRA EL PERSONAL DOCENTE DE ESTE SERVICIO/NIVEL EDUCATIVO?"]
[null,null,null,null,null,null,null,"DÍA","MES","AÑO"]
[null,null,null,null,null,null,null,null,null,null,null,null,null,null," Sí",null," No  ",null,"Pase a la pregunta 151."]
[]
[null,null,"     133. EL SERVICIO/NIVEL EDUCATIVO, ¿REALIZA ACTIVIDADES PARA UNA CONVIVENCIA ESCOLAR DEMOCRÁTICA?",null,null,null,null,null,null,null,null,null,null,null,null,null,"¿Cuántas?"]
[]
[null,null,null," Sí",null," No  ",null,null,null,null,null,null,null,"    150. SOBRE LA ATENCIÓN A LAS DENUNCIAS RECIBIDAS CONTRA EL PERSONAL"]
[null,null,null,null,null,null,null,null,null,null,null,null,null,"     DOCENTE EN EL PRESENTE AÑO, INDIQUE USTED:"]
[null,null,null,null,null,"¿Cuenta con medios de verificación?"]
[null,null,null,null,null," Sí   ",null,null," No  ",null,null,null,null,null,"A. ¿CUÁNTAS DERIVO A LA CPPADD?"]
[]
[null,null,null,null,null,null,null,"¿Con que medios de verificación cuenta?",null,null,null,null,null,null,"B. ¿CUÁNTAS ASUMIÓ LA INVESTIGACIÓN"]
[null,null,null,null,null,null,null,"(Marque con una \"X\", un o más opciones)",null,null,null,null,null,null,"    POR SER DE SU COMPETENCIA?"]
[null,null,null,null,null,null,null,"Informe de actividades"]
[null,null,null,null,null,null,null,"Fotografías",null,null,null,null,null,"    151. SEÑOR(A) DIRECTOR(A), DURANTE EL PRESENTE AÑO, ¿USTED HA SIDO OBJETO"]
[null,null,null,null,null,null,null,"Videos",null,null,null,null,null,"     DE DENUNCIAS POR ADOPTAR MEDIDAS EN PROTECCIÓN DEL ESTUDIANTE O"]
[null,null,null,null,null,null,null,"Otro",null,null,null,null,null,"     DENUNCIAS DE CORRUPCIÓN?"]
[]
[null,null,"     134. EL SERVICIO/NIVEL EDUCATIVO, ¿REALIZA ACTIVIDADES PARA LA PREVENCIÓN DE LA VIOLENCIA",null,null,null,null,null,null,null,null,null,null,null," Sí",null," No  "]
[null,null,"      CONTRA NIÑAS, NIÑOS Y ADOLESCENTES?"]
[null,null,null,null,null,null,null,null,null,null,null,null,null,null,null,null,null,"¿Cuántas?"]
[null,null,null," Sí",null," No  ",null,"Pase a la pregunta 136."]
[null,null,null,null,null,null,null,null,null,null,null,null,null,"152. SEÑOR(A) DIRECTOR(A, EN ESTE SERVICIO/NIVEL EDUCATIVO, SE TIENEN"]
[null,null,null,null,null,"¿Cuenta con medios de verificación?",null,null,null,null,null,null,null,"IMPLEMENTADAS MEDIDAS DE SEGURIDAD PARA EL TRATAMIENTO DE LOS"]
[null,null,null,null,null," Sí   ",null,null," No  ",null,null,null,null,"DATOS PERSONALES QUE ADMINISTRA?"]
[]
[null,null,null,null,null,null,null,"¿Con que medios de verificación cuenta?",null,null,null,null,null,null," Sí",null,null," No  "]
[null,null,null,null,null,null,null,"(Marque con una \"X\", un o más opciones)"]
[null,null,null,null,null,null,null,"Informe de actividades",null,null,null,null,null,"    153. ESTE SERVICIO/NIVEL EDUCATIVO, ¿SE HA BENEFICIADO CON ALGUNA ACCIÓN DE"]
[null,null,null,null,null,null,null,"Fotografías",null,null,null,null,null,"VOLUNTARIADO DURANTE ESTE PRIMER/SEGUNDO SEMESTRE DEL AÑO?"]
[null,null,null,null,null,null,null,"Videos"]
[null,null,null,null,null,null,null,"Otro",null,null,null,null,null,null," Sí",""," No  ",null,"Pase a la pregunta 155."]
[]
[null,null,"     135. ¿CUÁLES SON LAS ACTIVIDADES QUE REALIZA ESTE SERVICIO/NIVEL EDUCATIVO, PARA LA PREVENCIÓN DE",null,null,null,null,null,null,null,null,null,null,"154. SELECCIONE EL O LOS ASPECTOS EN QUE APORTARON LAS ACCIONES DE VOLUN-"]
[null,null,"       LA VIOLENCIA CONTRA NIÑAS, NIÑOS Y ADOLESCENTES?",null,null,null,null,null,null,null,null,null,null,"TARIADO IMPLEMENTADAS EN ESTE SERVICIO/NIVEL EDUCATIVO E INDIQUE ¿CUÁL"]
[null,null,null,null,null,null,null,null,null,null,null,null,null,"DE ELLAS APORTÓ MÁS EN EL APRENDIZAJE DE LOS ESTUDIANTES?"]
[null,null,null,"(Marque con una \"X\", un o más opciones)"]
[null,null,null,null,"Gestión de talleres o reuniones con estudiantes.",null,null,null,null,null,null,null,null,null,null,"ASPECTOS EN LOS QUE PORTARON LAS ACCIONES DE VOLUNTARIADO IMPLEMENTADAS EN LA IE",null,null,null,null,"¿Aportaron en este aspecto?","¿Cuál aporto más en el aprendizaje de los estudiantes?\n(Marque con una \"X\", solo una opción)"]
[null,null,null,null,"Capacitación a docentes para prevenir y/o atender casos de riesgo."]
[null,null,null,null,"Envío de orientaciones a apoderados/as."]
[null,null,null,null,"Gestión de talleres o reuniones con apoderados/as.",null,null,null,null,null,null,null,null,null,null,null,null,null,null,null,"Sí - No"]
[null,null,null,null,"Gestión de estrategias en conjunto con otras organizaciones.",null,null,null,null,null,null,null,null,null,{"$f":"COUNTIF(U269:U274,\"NO\")","v":0},"Condiciones para el retorno estudiante",null,null,null,null,null,""]
[null,null,null,null,"Monitoreo de situación emocional y familiar de estudiantes.",null,null,null,null,null,null,null,null,null,null,"Recuperación verano 2022",null,null,null,null,null,""]
[null,null,null,null,"Otro",null,null,null,null,null,null,null,null,null,null,"Consolidación de los aprendizajes de los est.",null,null,null,null,null,""]
[null,null,null,null,null,null,null,null,null,null,null,null,null,null,null,"Matrícula Escolar",null,null,null,null,null,""]
[null,null,"136. ¿USTED, SEÑOR(A) DIRECTOR(A), CONOCE EL PORTAL SÍSEVE?",null,null,null,null,null,null,null,null,null,null,null,null,"Identificación de est. en situación de riesgo de int.",null,null,null,null,null,""]
[null,null," (Sistema Especializado en Reporte de casos sobre Violencia Escolar)",null,null,null,null,null,null,null,null,null,null,null,null,"Otro","",null,null,null,null,""]
[null,null,null,"Sí  ",null,null,"¿Ha sido capacitado por algún integrante de la UGEL/DRE en ",null,null,null,null,null,null,null,null,null,null,null,null,null,{"$f":"COUNTIF(U269:U274,\"SI\")+COUNTIF(U269:U274,\"NO\")","v":0},{"$f":"COUNTIF(V269:W274,\"X\")","v":0}]
[null,null,null,null,null,null,"el uso del portal SíseVe?"]
[null,null,null,null,null,null,null,"Sí  ",null,null,"No  ",null,null,"     155. ¿QUÉ ESTRATEGÍAS DE TUTORÍA Y ORIENTACIÓN EDUCATIVA IMPLEMENTAN LOS"]
[null,null,null,null,null,null,null,null,null,null,null,null,null,"      ESTUDIANTES?"]
[null,null,null," No  ","","Pase a la pregunta 139.",null,null,null,null,null,null,null,null,null,"(Marque con una \"X\", un o más opciones)"]
[null,null,null,null,null,null,null,null,null,null,null,null,null,null,null,null,"Tutoría individual"]
[null,null," 137. EL SERVICIO/NIVEL EDUCATIVO, ¿SE ENCUENTRA AFILIADO AL SÍSEVE?",null,null,null,null,null,null,null,null,null,null,null,null,null,"Tutoría grupal"]
[null,null,"              (Sistema Especializado en Reporte de casos sobre Violencia Escolar)",null,null,null,null,null,null,null,null,null,null,null,null,null,"Participación estudiantil"]
[null,null,null,null,null,null,null,null,null,null,null,null,null,null,null,null,"Trabajo con las familias y la comunidad"]
[null,null,null,"Sí",null,null,"Para el año 2022 hasta la fecha de remisión del Censo",null,null,null,null,null,null,null,null,null,"Orientación educativa permanente"]
[null,null,null,null,null,null,"Educativo, ¿Cuántos casos han sido reportados?",null,null,null,null,null,null,null,null,null,"Ninguno"]
[null,null,null,null,null,null,null,null,null,null,null,null,null,null,null,null,"Otro"]
[]
[null,null,null,"No","",null,"¿Por qué razón el servicio y/o nivel educativo no esta afiliado\n al SíSeve?",null,null,null,null,null,null,"    156. EL SERVICIO/NIVEL EDUCATIVO QUE DIRIGE, ¿DURANTE EL PRESENTA AÑO HA RECIBIDO"]
[null,null,null,null,null,null,"al SÍSEVE?",null,null,null,null,null,null,"     O VIENE RECIBIENDO APOYO DE UNA EMPRESA PRIVADA O DE ALGUNA ONG EN TEMAS DE"]
[null,null,null,null,null,null,null,null,null,null,null,null,null,"     MEJORA DE INFRAESTRUCTURA, MOBILIARIO Y EQUIPAMIENTO?"]
[null,null,null,null,null,"(Marque con una \"X\" una opción)"]
[null,null,null,null,null,"","No lo conoce",null,null,null,null,null,null,null," Sí",""," No  ",null,"Pase a la pregunta 158."]
[null,null,null,null,null,"","Lo conoce y no le parece importante afiliarse"]
[null,null,null,null,null,"","Le parece importante, pero no lo ve necesario para su I.E.",null,null,null,null,null,null,"     157. INDIQUE EL TIPO DE APOYO QUE HA RECIBIDO DE LA EMPRESA PRIVADA U ONG MEN-"]
[null,null,null,null,null,"","Otro","",null,null,null,null,null,"     CIONADA EN SU RESPUESTA ANTERIOR"]
[]
[null,null,"138. EN EL AÑO 2021, ¿UD HA REPORTADO ALGUNA INCIDENCIA EN EL PORTAL SÍSEVE?",null,null,null,null,null,null,null,null,null,null,null,null,"(Marque con una \"X\", un o más opciones)"]
[null,null," (Sistema Especializado en Reporte de casos sobre Violencia Escolar)",null,null,null,null,null,null,null,null,null,null,null,null,"","Infraestructura"]
[null,null,null,null,null,null,null,null,null,null,null,null,null,null,null,"","Mobiliario"]
[null,null,null,null,"Sí",null,null,"Para el año 2021, ¿Cuántos casos fueron reportados?",null,null,null,null,null,null,null,"","Equipamiento"]
[null,null,null,null,null,null,null,null,null,null,null,null,null,null,null,"","Otros",""]
[]
[]
[null,null,null,null,"No"]
[]
[]
[null,null,"C. ACOMPAÑAMIENTO Y SOPORTE PEDAGÓGICO"]
[null,null,"158. DESDE EL INICIO DEL AÑO ESCOLAR 2022 HASTA LA FECHA DE REPORTE DEL CENSO EDUCATIVO",null,null,null,null,null,null,null,null,null,null,"166. EL SERVICIO/NIVEL EDUCATIVO, ¿REALIZA ACTIVIDADES CON FAMILIAS Y COMUNIDAD QUE"]
[null,null,"EL SERVICIO/NIVEL EDUCATIVO, ¿HA RECIBIDO COMUNICACIÓN O PARTICIPACIÓN PRESENCIAL O",null,null,null,null,null,null,null,null,null,null," AYUDEN A LA PROMOCIÓN DE UN AMBIENTE INSTITUCIONAL FAVORABLE PARA LA ATENCIÓN"]
[null,null,"VIRTUAL DEL ESPECIALISTA PEDAGÓGICO DE LA UGEL, CON LA FINALIDAD DE BRINDAR",null,null,null,null,null,null,null,null,null,null," DE LA DIVERSIDAD?"]
[null,null," ASISTENCIA TÉCNICA?"]
[null,null,null,null,null,null,null,null,null,null,null,null,null,null," Sí",null,null," No  "]
[null,null,null,"Sí",null,null,"¿Cuántas veces?"]
[null,null,null,null,null,null,null,null,"Presencial:",null,null,null,null,null,null,null,"¿Qué actividades realiza?"]
[null,null,null,null,null,null,null,null,"Virtual/Remota:",null,null,null,null,null,null,null,"(Marque con una \"X\", una o más opciones)"]
[null,null,null,null,null,null,null,null,null,null,null,null,null,null,null,null,"Acompañamiento en el proceso de aprendizaje"]
[null,null,null," No  ",null,null,"Pase a la pregunta 160.",null,null,null,null,null,null,null,null,null,"Actividades que fortalecen las competencias parentales"]
[null,null,null,null,null,null,null,null,null,null,null,null,null,null,null,null,"Vínculos afectivos con hijos e hijas"]
[null,null,null,null,null,null,null,null,null,null,null,null,null,null,null,null,"Jornadas con madres y padres"]
[null,null,"159. ¿CUÁLES DE LAS SIGUIENTES ACCIONES HA REALIZADO EL ESPECIALISTA PEDAGÓGICO AL MOMENTO",null,null,null,null,null,null,null,null,null,null,null,null,null,"Otros"]
[null,null,"DE BRINDAR LA ASISTENCIA TÉCNICA AL SERVICIO/NIVEL EDUCATIVO?"]
[null,null,null,null,null,null,null,null,null,null,null,null,null,"     167. DURANTE EL AÑO 2021, ¿SE REALIZÓ EL INFORME DEL PROGRESO DE LOS ESTUDIANTES A"]
[null,null,null,null,null,null,null,null,null,null,null,null,null,"      LOS PADRES DE FAMILIA?"]
[null,null,null,"NRO.","ACCIONES",null,null,null,null,null,null," SI - NO"]
[null,null,{"$f":"COUNTIF(L325:L341,\"NO\")","v":0},1,"Pregunto sobre las necesidades y demandas pedagógicas del",null,null,null,null,null,null,null,null,null,"Sí",null,null,"¿Cuántas veces?"]
[null,null,null,null,"servicio/nivel educativo"]
[null,null,null,2,"Observó alguna sesión o actividades de aprendizaje, ya sea de",null,null,null,null,null,null,null,null,null,"No",null,null,"Pase a la pregunta 169."]
[null,null,null,null,"manera presencial o virtual/remota (por lo menos una vez)"]
[null,null,null,3,"Sostuvó un clima de confianza y proximidad durante sus acciones",null,null,null,null,null,null,null,null,"     168. ¿CÓMO SE REALIZÓ EL INFORME DEL PROGRESO DE LOS ESTUDIANTES A LOS PADRES DE"]
[null,null,null,null,"de asistencia técnica con este servicio/ nivel educativo",null,null,null,null,null,null,null,null,"      FAMILIA EN EL AÑO 2021?"]
[null,null,null,4,"Generó algún espacio para que el director(a) del servicio/nivel"]
[null,null,null,null,"educativo autoevalúe su práctica",null,null,null,null,null,null,null,null,null,null,"(Marque con una \"X\", solo una opción)"]
[null,null,null,5,"Escuchó y respondió las dudas y consultas realizadas por usted",null,null,null,null,null,null,null,null,null,null,null,"Individual - (Informe de cada estudiante a cada PPFF)"]
[null,null,null,6,"Las orientaciones brindadas atendieron las necesidades y",null,null,null,null,null,null,null,null,null,null,null,"Pequeños grupos - (Informe en grupos de 2 hasta 10 estudiantes)"]
[null,null,null,null,"demandas señaladas",null,null,null,null,null,null,null,null,null,null,null,"Grupal - (Informe en grupos de 11 a más estudiantes)"]
[null,null,null,7,"Brindó orientaciones para la mejora de las prácticas pedagógicas",null,null,null,null,null,null,null,null,null,null,null,"Otros"]
[null,null,null,null,"y de gestión acorde al enfoque por competencias."]
[null,null,null,8,"Sugirió estrategias pedagógicas contextualizadas para mejorar las",null,null,null,null,null,null,null,null,"     169. ¿HA VISITADO EL PORTAL WEB PARA DIRECTIVOS EN LOS ÚLTIMOS TRES MESES?"]
[null,null,null,null,"prácticas docentes"]
[null,null,null,9,"Dio a conocer las fortalezas del servicio / nivel educativo",null,null,null,null,null,null,null,null,null," Sí",null,null," No  "]
[null,null,null,10,"Se asumieron compromisos y/o acuerdos para la mejora"]
[null,null,null,null,null,null,null,null,null,null,null,{"$f":"COUNTIF(L325:L341,\"SI\") + COUNTIF(L325:L341,\"NO\")","v":0},null,null,null,null,"¿La información encontrada en el portal web para directivos"]
[null,null,"   160. DURANTE EL AÑO 2021 Y HASTA EL REPORTE DEL CENSO EDUCATIVO 2022, EL SERVICIO/NIVEL EDUCATIVO,",null,null,null,null,null,null,null,null,null,null,null,null,null,"le resulto de utilidad?"]
[null,null,"    ¿HA RECIBIDO ALGÚN TIPO DE ACOMPAÑAMIENTO DIRIGIDO AL DIRECTIVO?"]
[null,null,"   ",null,null,null,null,null,null,null,null,null,null,null,null,null," Sí  ",null,null," No  "]
[null,null,null," Sí",null," No  "]
[null,null,null,null,null,null,null,null,null,null,null,null,null,"      170. ESTE SERVICIO/NIVEL EDUCATIVO, ¿HA RECIBIDO ALGÚN TIPO DE PERSONAL DURANTE EL"]
[null,null,null,null,null,"(Marque con una \"X\", una o más opciones)",null,null,null,null,null,null,null,"       PROCESO EXTRAORDINARIO DE MATRÍCULA 2021?"]
[null,null,null,null,null,"¿Que Institución le brindó el acompañamiento?"]
[null,null,null,null,null,"DRE"]
[null,null,null,null,null,"UGEL",null,null,null,null,null,null,null,null,null,"Nro.","Tipo de personal",null,null,null,"¿Recibió?","¿Cuántos recibió?"]
[null,null,null,null,null,"MINEDU",null,null,null,null,null,null,null,null,null,null,null,null,null,{"$f":"COUNTIF(U353:V356,\"SI\")+COUNTIF(U353:V356,\"NO\")","v":0},"Sí - No"]
[null,null,null,null,null,"OTROS",null,null,null,null,null,null,null,null,null,1,"Director"]
[null,null,null,null,null,null,null,null,null,null,null,null,null,null,null,2,"Sub-director"]
[null,null,null,null,null,null,null,null,null,null,null,null,null,null,null,3,"Personal docente"]
[null,null,"     161. DURANTE EL AÑO 2021, EL EQUIPO DIRECTIVO DE ESTE SERVICIO/NIVEL EDUCATIVO ¿HA REALIZADO EL",null,null,null,null,null,null,null,null,null,null,null,null,4,"Personal administrativo"]
[null,null,"       MONITOREO A LA PRÁCTICA PEDAGÓGICA DE LOS DOCENTES?"]
[null,null,"      ",null,null,null,null,null,null,null,null,null,null,"171. ¿EL PERSONAL DE ESTE SERVICIO/NIVEL EDUCATIVO HA RECIBIDO ALGÚN TIPO DE SOPORTE"]
[null,null,null,null,null,null,null,"(Marque con una \"X\", sola una opción)",null,null,null,null,null," O ACOMPAÑAMIENTO SOCIOEMOCIONAL DE PARTE DE EQUIPOS DE UGEL O DRE?"]
[null,null,null,null,"Sí",null,null,"\n¿A cuántos",null,null,"Todos los docentes"]
[null,null,null,null,null,null,null,"\ndocentes?",null,null,"Más del 50% de docentes",null,null,null," Sí",null,null," No  "]
[null,null,null,null,null,null,null,null,null,null,"Menos del 50% de docentes"]
[null,null,null,null,null,null,null,null,null,null,null,null,null,"172. DURANTE EL PRESENTE AÑO, ¿HA RECIBIDO LA VISITA DEL PERSONAL O MONITOR DE"]
[null,null,null,null," No  ",null,null,"Pase a la pregunta 163.",null,null,null,null,null," SEMÁFORO ESCUELA DEL MINEDU PARA EL RECOJO DE INFORMACIÓN EN ESTE SERVICIO/"]
[null,null,null,null,null,null,null,null,null,null,null,null,null,"NIVEL EDUCATIVO?"]
[null,null,"     162. DURANTE EL AÑO 2021, EN PROMEDIO, ¿CUÁNTAS REUNIONES POR SEMANA DE TRABAJO COLEGIADO"]
[null,null,"       O FORMACIÓN REALIZÓ CON EL PERSONAL DE ESTE SERVICIO/NIVEL EDUCATIVO",null,null,null,null,null,null,null,null,null,null,null," Sí",null,null," No  "]
[]
[null,null,null,null,"Promedio de reuniones por semana",null,null,null,null,null,null,null,null,null,null,null,null,"¿En qué mes o meses recibió la(s) visita(s)?"]
[null,null,null,null,null,null,null,null,null,null,null,null,null,null,null,null,null,"(Marque con una  “X” una o más opciones)"]
[null,null,"     163. EN EL PRESENTE AÑO, EL PERSONAL DIRECTIVO DE ESTE SERVICIO/NIVEL EDUCATIVO, ¿BRINDA"]
[null,null,"     SOPORTE Y APOYO A LOS DOCENTES EN TORNO A SU DESEMPEÑO EN EL MARCO DEL ACOMPAÑA-",null,null,null,null,null,null,null,null,null,null,null,null,null,null,null,"Enero",null,null,"Julio"]
[null,null,"     MIENTO PEDAGÓGICO Y ESPACIOS DE TRABAJO COLEGIADO?",null,null,null,null,null,null,null,null,null,null,null,null,null,null,null,"Febrero",null,null,"Agosto"]
[null,null,null,null,null,null,null,null,null,null,null,null,null,null,null,null,null,null,"Marzo",null,null,"Setiembre"]
[null,null,null," Sí",null," No  ",null,null,"Pase a la pregunta 165.",null,null,null,null,null,null,null,null,null,"Abril",null,null,"Octubre"]
[null,null,null,null,null,null,null,null,null,null,null,null,null,null,null,null,null,null,"Mayo",null,null,"Noviembre"]
[null,null,"164. ¿QUÉ TEMAS HAN SIDO ABORDADOS MAYORITARIAMENTE POR EL EQUIPO DIRECTIVO DURANTE LAS",null,null,null,null,null,null,null,null,null,null,null,null,null,null,null,"Junio",null,null,"Diciembre"]
[null,null,"SESIONES DE SOPORTE Y APOYO A LOS DOCENTES EN EL MARCO DEL ACOMPAÑAMIENTO PEDAGÓGICO ",null,null,null,null,null,null,null,null,null,null,null,null,null,null,{"$f":"COUNTIF(R372:R377,\"X\")","v":0},null,null,{"$f":"COUNTIF(U372:U373,\"X\")","v":0}]
[null,null,"Y ESPACIOS DE TRABAJO COLEGIADO?"]
[null,null,null,null,null,null,null,null,null,null,null,null,null,null,null,null,null,"Durante la visita, el personal o monitor de Semáforo Escuela del MINEDU:"]
[null,null,null,null,"(Marque con una  “X” una o más opciones)",null,null,null,null,null,null,null,null,null,null,null,null,"(Marque con una  “X” una o más opciones)"]
[null,null,null,null,"Planificación curricular/Aprendizaje Híbrido"]
[null,null,null,null,"Conducción de los aprendizajes",null,null,null,null,null,null,null,null,null,null,null,null,null,"Ingreso al local educativo"]
[null,null,null,null,"Como brindar acompañamiento socioafectivo y cognitivo",null,null,null,null,null,null,null,null,null,null,null,null,null,"Visitó las aulas del local educativo"]
[null,null,null,null,"Uso de los recursos y materiales educativos para atender la diversidad",null,null,null,null,null,null,null,null,null,null,null,null,null,"Se entrevistó con el director o persona encargada"]
[null,null,null,null,"Evaluación formativa y retroalimentación",null,null,null,null,null,null,null,null,null,null,null,null,null,"Se entrevistó con algún docente"]
[null,null,null,null,"Fortalecimiento del uso de TIC"]
[null,null,null,null,"Otros temas",null,null,null,null,null,null,null,null,"173. SEÑOR(A) DIRECTOR(A) DURANTE EL AÑO 2021 Y HASTA EL MOMENTO DEL REPORTE DEL"]
[null,null,null,null,null,null,null,null,null,null,null,null,null," CENSO EDUCATIVO 2022, EN SU CONDICIÓN DE DIRECTOR(A), ¿USTED HA RECIBIDO ALGÚN"]
[null,null,"165. EL SERVICIO/NIVEL EDUCATIVO, ¿DESARROLLA LAS SIGUIENTES ESTRATEGIAS DE ACOMPAÑAMIENTO?",null,null,null,null,null,null,null,null,null,null,"TIPO DE ASISTENCIA PEDAGÓGICA POR PARTE DE LOS ESPECIALISTAS DE UGEL Y/O DRE?"]
[]
[null,null,null,null,null,null,null,null,"¿Cuántos?",null,"(Marque con una \"X\", solo una opción)",null,null,null," Sí",null,null," No  ",null,null,"Pase a la pregunta 175."]
[null,null,null,null,null,null,null,null,null,null,"de 1 a 4 por área",null,null,"     "]
[null,null,null,null," Visita en aula",null,null,null,null,null,"de 4 a 8 por área",null,null,"      174. ¿QUÉ TIPO DE ASISTENCIA PEDAGÓGICA HA RECIBIDO POR PARTE DE LOS ESPECIALISTAS DE"]
[null,null,null,null," Grupos de Interaprendizaje (GIA)",null,null,null,null,null,"Más de 8 por área",null,null,"     UGEL Y/O DRE",null,null,null,"(Marque con una  “X” una o más opciones)"]
[null,null,null,null," Talleres",null,null,null,null,null,null,null,null,null,null,"","Planificación curricular"]
[null,null,null,null," Otros",null,null,null,null,null,null,null,null,null,null,"","Metodología y estrategías didácticas"]
[null,null,null,null,null,null,null,null,null,null,null,null,null,null,null,"","Retroalimentación, criterios e instrumentos de evaluación"]
[null,null,null,null,null,null,null,null,null,null,null,null,null,null,null,"","Soporte emocional"]
[null,null,null,null,null,null,null,null,null,null,null,null,null,null,null,"","Experiencias pedagógicas innovadoras"]
[null,null,null,null,null,null,null,null,null,null,null,null,null,null,null,"","Otros",""]
[null,null,null,null,null,null,null,null,null,null,null,null,null,null,null,"","Ninguna",""]
[]
[]
[null,null,"D. SOBRE LA BASE DEL CENSO DE POBLACIÓN Y VIVIENDA 2017 DEL INEI"]
[null,null,"175. SEGÚN LAS COSTUMBRES Y EL ORIGEN FAMILIAR, ¿USTED CONSIDERA QUE SU SERVICIO/NIVEL EDUCATIVO"]
[null,null,"CUENTA CON ESTUDIANTES PERTENECIENTES A LOS SIGUIENTES GRUPOS ÉTNICOS?"]
[null,null,null,null,null,null,null,null,null,null,null,null,null,null,null,"SOLO SI MARCÓ \"SI\"  EN DOS O MÁS ALTERNATIVAS EN LA\nPREGUNTA ANTERIOR, RESPONDER:"]
[null,null,null,"(Para cada grupo étnico, marque con una  “X” Si o No tiene estudiantes)"]
[null,null,null,"COD.","GRUPO ETNICO",null,null,null,null,null,null," SI - NO"]
[null,null,null,1,"Quechua",null,null,null,null,null,null,null,{"$f":"IF(L411=\"SI\",1,0)","v":0}]
[null,null,null,2,"Aimara",null,null,null,null,null,null,null,{"$f":"IF(L412=\"SI\",1,0)","v":0},null,null,null,null,null,null,null,null,null,null,null,null,""]
[null,null,null,3,"Nativo o indígena de la Amazonía",null,null,null,null,null,null,null,0]
[null,null,null,4,"Perteneciente o parte de otro pueblo indígena u originario",null,null,null,null,null,null,null,0,null,"176. ¿EXISTE UN GRUPO QUE TENGA MAYOR CANTIDAD DE ESTUDIANTES?"]
[null,null,null,5,"Negro, moreno, zambo, mulato/Pueblo afroperuano o afrodescendiente",null,null,null,null,null,null,null,0]
[null,null,null,6,"Blanco",null,null,null,null,null,null,null,0,null,null,"Sí","",null,"Código :",null,""]
[null,null,null,7,"Mestizo",null,null,null,null,null,null,null,0,null,null,null,null,null,"Indique el grupo predominante. utilizando el código seleccionado en la pregunta 175."]
[null,null,null,8,"Asiático peruano",null,null,null,null,null,null,null,0,null,null,"No",""]
[null,null,null,9,"Otro  ","",null,null,null,null,null,null,0]
[null,null,null,null,null,null,null,null,null,null,null,{"$f":"COUNTIF(L411:L419,\"SI\")+COUNTIF(L411:L419,\"NO\")","v":0}]
[]
[null,null,"E. CARACTERÍSTICAS DE LA ENSEÑANZA EN CONTEXTOS BILINGÜES (SOLO GESTIÓN PÚBLICA)"]
[null,null,"177. ¿ESTE SERVICIO/NIVEL EDUCATIVO ESTÁ RECONOCIDO COMO EIB?",null,null,null,null,null,null,null,null,null,null,null,"180. ¿USTED, SEÑOR(A) DIRECTOR(A), CONOCE SI EN LA COMUNIDAD DONDE SE ENCUENTRA EL "]
[null,null,null,null,null,null,null,null,null,null,null,null,null,null,"SERVICIO/NIVEL EDUCATIVO, LOS PADRES DE FAMILIA, OTROS ADULTOS, ANCIANOS Y"]
[null,null,null,null,null,null,"EIB de Fortalecimiento",null,null,"",null,null,null,null,"ANCIANAS HABLAN UNA LENGUA ORIGINARIA?"]
[null,null,null,"Sí","",null,"EIB de Revitalización",null,null,""]
[null,null,null,null,null,null,"EIB en Ámbitos Urbano",null,null,"",null,null,null,null,null,"Sí","",null,null,null,"¿Qué lengua originaria?  ",""]
[null,null,null,null,null,null,null,null,null,{"$f":"CONCATENATE(J426,J427)","v":""}]
[null,null,null,"No","",null,"Pase a la pregunta 180.",null,null,null,null,null,null,null,null,"No",""]
[]
[null,null,"SOLO SI ES EIB DE FORTALECIMIENTO, RESPONDA:"]
[null,null,"178. ¿ESTE SERVICIO/NIVEL EDUCATIVO OFRECE ENSEÑANZA DEL CASTELLANO COMO SEGUNDA LENGUA?",null,null,null,null,null,null,null,null,null,null,null,"181. ¿LOS ESTUDIANTES DE ESTE SERVICIO/NIVEL EDUCATIVO HABLAN UNA LENGUA "]
[null,null,null,null,null,null,null,null,null,null,null,null,null,null,"ORIGINARIA?"]
[]
[null,null,null," Si","",null,null,null," No","",null,null,null,null,"Sí  ",""]
[null,null,null,null,null,null,null,null,null,null,null,null,null,null,null,null,"Todos",null,"","¿Qué\nlengua\n originaria?"]
[null,null,"SOLO SI ES EIB DE REVITALIZACIÓN O EIB EN ÁMBITOS URBANOS, RESPONDA:",null,null,null,null,null,null,null,null,null,null,null,null,null,"La mayoría",null,"",null,null,""]
[null,null,"179. ¿ESTE SERVICIO/NIVEL EDUCATIVO OFRECE ENSEÑANZA DE LA LENGUA ORIGINARIA COMO SEGUNDA LENGUA?",null,null,null,null,null,null,null,null,null,null,null,null,null,"Pocos",null,""]
[null,null,null,null,null,null,null,null,null,null,null,null,null,null,null,null,null,null,{"$f":"CONCATENATE(S436,S437,S438)","v":""}]
[null,null,null,null,null,null,null,null,null,null,null,null,null,null,"No  ",""]
[null,null,null," Si","",null,null,null," No",""]
[]
[]
[null,null,"F. ATENCIÓN A LA DIVERSIDAD Y SOBRE EL SERVICIO DE APOYO Y ASESORAMIENTO A LAS NECESIDADES EDUCATIVAS ESPECIALES -SAANEE"]
[null,null,"182. ESTE SERVICIO/NIVEL EDUCATIVO ¿TIENE TECNOLOGÍA PARA RESPONDER A LAS NECESIDADES",null,null,null,null,null,null,null,null,null,null,"      189. EN ESTE SERVICIO/NIVEL EDUCATIVO ¿SE HAN DETECTADO OTROS TIPOS DE NECESIDADES"]
[null,null,"EDUCATIVAS ESPECIALES (NEE) DE LOS ESTUDIANTES?",null,null,null,null,null,null,null,null,null,null,"       EDUCATIVAS ESPECIALES O ENFERMEDAD ENTRE LOS MATRICULADOS?"]
[]
[null,null,null,"Sí",null,null,null,null,"No",null,null,null,null,null," Sí","",null," No  ",null,null,"Pase a la pregunta 191."]
[]
[null,null,"183. ESTE NIVEL/SERVICIO EDUCATIVO ¿CUENTA CON MATERIALES EDUCATIVOS PARA ATENDER A"]
[null,null,"ESTUDIANTES CON NECESIDADES EDUCATIVAS ESPECIALES (NEE)?",null,null,null,null,null,null,null,null,null,null,null,null,"Completa la tabla"]
[null,null,null,null,null,null,null,null,null,null,null,null,null,null,"OTRO TIPO DE NEE O ENFERMEDAD",null,null,null,null,null,null,"¿Detectado?","N° de estudiantes detectados"]
[null,null,null,"Sí",null,null,null,null,"No",null,null,null,null,null,null,null,null,null,null,null,null,"SI / NO"]
[null,null,null,null,null,null,null,null,null,null,null,null,null,null,"TOTAL DE ESTUDIANTES DETECTADOS",null,null,null,null,null,null,null,{"$f":"SUM(W455:W459)","v":0}]
[null,null,"184. EL LOCAL DONDE OPERA ESTE SERVICIO/ NIVEL EDUCATIVO, ¿CUENTA CON INFRAESTRUCTURA PARA",null,null,null,null,null,null,null,null,null,null,null,1,"Física",null,null,null,null,null,"",""]
[null,null,"RESPONDER A LA DIVERSIDAD O LAS NEE, (RAMPA, SEÑALÉTICA, ENTRE OTROS)?",null,null,null,null,null,null,null,null,null,null,null,2,"Talla baja",null,null,null,null,null,"",""]
[null,null,null,null,null,null,null,null,null,null,null,null,null,null,3,"Enfermedades raras",null,null,null,null,null,"",""]
[null,null,null,"Sí",null,null,null,null,"No",null,null,null,null,null,4,"Transtornos y problemas",null,null,null,"Dislexia",null,"",""]
[null,null,null,null,null,null,null,null,null,null,null,null,null,null,5,"de aprendizaje",null,null,null,"TDAH",null,"",""]
[null,null,null,null,null,null,"¿Es suficiente?",null,null,null,null,null,null,null,null,null,null,null,null,null,null,{"$f":"COUNTIF(V455:V459,\"SI\")+COUNTIF(V455:V459,\"NO\")","v":0}]
[null,null,null,null,null,null,null,null,null,null,null,null,null,null,"190. PARA LOS CASOS DETECTADOS DE ESTUDIANTES CON OTRO TIPO DE NEE O ENFERMEDAD, INDIQUE"]
[null,null,null,null,null," Sí",null," No  ",null,null,null,null,null,null,"¿CUÁL FUE SU SITUACIÓN AL MATRICULARSE EN EL PRESENTE AÑO?"]
[]
[null,null,null,null,null,null,null,null,null,null,null,null,null,null,null,"SITUACIÓN AL MATRICULARSE",null,null,null,null,null,null,"N° de estudiantes detectados"]
[null,null,null,null,null,null,null,null,null,null,null,null,null,null,null,"Número de estudiantes con otro tipo de NEE o"]
[null,null,"     185. ESTE SERVICIO/NIVEL EDUCATIVO, ¿CUENTA CON UN ESPECIALISTA DEL EQUIPO DE SERVICIO DE APOYO Y",null,null,null,null,null,null,null,null,null,null,null,null,"enfermedad que desertaron o se retiraron",null,null,null,null,null,null,""]
[null,null," ASESORAMIETO DE LAS NECESIDADES EDUCATIVAS ESPECIALES (SAANEE) QUE LE HAYA SIDO ASIGNADO?",null,null,null,null,null,null,null,null,null,null,null,null,"Número de estudiantes con otro tipo de NEE o"]
[null,null,null,null,null,null,null,null,null,null,null,null,null,null,null,"enfermedad que promovieron de año",null,null,null,null,null,null,""]
[]
[null,null,null,"Sí",null,null,null,null,"No",null,null,null,null,"         191. EL SERVICIO/NIVEL EDUCATIVO HA RECIBIDO ASISTENCIA Y ORIENTACIÓN PARA LA ATENCIÓN"]
[null,null,null,null,null,null,null,null,null,null,null,null,null,"     EDUCATIVA DE ESTUDIANTES CON DISCAPACIDAD, DE PARTE DEL SERVICIO DE APOYO"]
[null,null,null,null,null,null,null,null,null,null,null,null,null,"     EDUCATIVO VIRTUAL (SAEV)?"]
[]
[null,null,"      186. DURANTE EL PRESENTE AÑO, ESTE SERVICIO/NIVEL EDUCATIVO ¿HA RECIBIDO ASISTENCIA Y",null,null,null,null,null,null,null,null,null,null,null,"Sí","",null,"No  "]
[null,null,"  ORIENTACIÓN PARA LA ATENCIÓN EDUCATIVA DE ESTUDIANTES CON DISCAPACIDAD, DE PARTE DEL"]
[null,null,"  EQUIPO - SAANEE?",null,null,null,null,null,null,null,null,null,null,null,null,null,"¿Cuántas estudiantes con discapacidad estan a cargo de",null,null,null,null,null,"¿Cuántos?"]
[null,null,null,null,null,null,null,null,null,null,null,null,null,null,null,null,"los docentes que han recibido asistencia y orientación ",null,null,null,null,null,""]
[null,null,null,"Sí",null,"No  ",null,null,"Pase a la pregunta 188.",null,null,null,null,null,null,null,"del SAEV?"]
[]
[null,null,null,null,null,"¿Cuántas asesorías (presenciales o virtuales)",null,null,null,null,"¿Cuántas?",null,null,"     192. ¿DURANTE LOS ÚLTIMOS 5 AÑOS, EL PERSONAL DE ESTE SERVICIO/NIVEL EDUCATIVO (YA SEA"]
[null,null,null,null,null," ha brindado el equipo SAANEE a este ",null,null,null,null,null,null,null,"      PERSONAL DIRECTIVO/JERÁRGICO, PERSONAL DOCENTE, AUXILIARES O PERSONAL ADMINIS-"]
[null,null,null,null,null," servicio/nivel educativo en el 2022?",null,null,null,null,null,null,null,"      TRATIVO), HA RECIBIDO CAPACITACIÓN EN TEMAS DE EDUCACIÓN INCLUSIVA O ATENCIÓN A LA "]
[null,null,null,null,null,null,null,null,null,null,null,null,null,"      DIVERSIDAD DE PARTE DE ESPECIALISTAS DE DRE/GRE Y/O UGEL, O ALGUNA OTRA INSTITUCIÓN?"]
[]
[null,null,null,null,null,null,null,null,null,null,null,null,null,null,null,null,null,"¿Qué instancia o institución brindó la capacitación?"]
[null,null,null,null,null,null,null,null,null,null,null,null,null,null,null,null,null,"(Marque con una  “X” una o más opciones)"]
[null,null,"     187. ¿CUÁNTOS DOCENTES DE ESTE SERVICIO/NIVEL EDUCATIVO HAN RECIBIDO ASISTENCIA Y ORIENTACIÓN",null,null,null,null,null,null,null,null,null,null,null,"Sí",null,null,null,"MINEDU"]
[null,null,"      PARA LA ATENCIÓN EDUCATIVA DE ESTUDIANTES CON DISCAPACIDAD DE PARTE DEL EQUIPO DE",null,null,null,null,null,null,null,null,null,null,null,null,null,null,null,"DRE"]
[null,null,"     SERVICIO DE APOYO Y ASESORAMIENTO DE LAS NECESIDADES EDUCATIVAS ESPECIALES (SAANEE)?",null,null,null,null,null,null,null,null,null,null,null,null,null,null,null,"UGEL"]
[null,null,null,null,null,null,null,null,null,null,null,null,null,null,null,null,null,null,"Organizaciones sin fines de lucro/ONG"]
[null,null,null,"¿Cuántos?",null,null,null,null,null,null,null,null,null,null,"No",null,null,null,"Entidad privada, como auspicio"]
[null,null,null,null,null,null,null,null,null,null,null,null,null,null,null,null,null,null,"Inversión propia"]
[null,null,null,null,null,null,null,null,null,null,null,null,null,null,null,null,null,null,"Otro"]
[]
[null,null,"     188. ¿ALGUNO DE LOS DOCENTES DE ESTE SERVICIO/NIVEL EDUCATIVO HAN RECIBIDO O RECIBEN CAPACI-",null,null,null,null,null,null,null,null,null,null,"     193. ¿QUÉ ESTRATEGIAS FORMATIVAS VIRTUALES PRIORIZARÍA SOBRE TEMAS DE EDUCACIÓN"]
[null,null,"              TACIÓN EN TEMAS RELACIONADOS A INCLUSIÓN Y ATENCIÓN A LA DIVERSIDAD EN LOS ÚLTIMOS 2 AÑOS?",null,null,null,null,null,null,null,null,null,null,"                 INCLUSIVA O ATENCIÓN A LA DIVERSIDAD?"]
[]
[null,null,null,null,null,null,"¿De quién recibieron o reciben?",null,null,null,null,null,null,null,null,"(Marque con una  “X” una o más opciones)"]
[null,null,null,null,null,null,"(Marque con una  “X” una o más opciones)",null,null,null,null,null,null,null,null,null,"Curso virtual tutorado"]
[null,null,null,"Sí",null,null,null,"MINEDU",null,null,null,null,null,null,null,null,"Curso virtual autoformativo"]
[null,null,null,null,null,null,null,"DRE/GRE",null,null,null,null,null,null,null,null,"Grupo o círculo de interaprendizaje"]
[null,null,null,null,null,null,null,"UGEL",null,null,null,null,null,null,null,null,"Comunidades profesionales de aprendizaje"]
[null,null,null,null,null,null,null,"Organizaciones sin fines de lucro/ONG",null,null,null,null,null,null,null,null,"Asesoría personalizada"]
[null,null,null,"No",null,null,null,"Entidad privada, como auspicio",null,null,null,null,null,null,null,null,"Pasantía"]
[null,null,null,null,null,null,null,"Inversión propia",null,null,null,null,null,null,null,null,"Otros"]
[null,null,null,null,null,null,null,"Otro"]
[null,null,null,null,null,null,null,null,null,null,null,null,null,"194. ¿EL SERVICIO/NIVEL EDUCATIVO, CUENTA CON RESPONSABLE DE INCLUSIÓN?"]
[]
[]
[null,null,null,null,null,null,null,null,null,null,null,null,null,null,"Sí",null,null,null,null,"No"]
[]
[]
[null,null,"G. LOGÍSTICA POR COVID-19 (SOLO GESTIÓN PÚBLICA)"]
[null,null,"195. ¿HA RECIBIDO EL KIT COVID-19 (MASCARILLA KN95, 02 MASCARILLAS POR SEMANA) PARA EL PERSONAL",null,null,null,null,null,null,null,null,null,null,"196. LOS ESTUDIANTES DE ESTE SERVICIO/NIVEL EDUCATIVO QUE ASISTEN PRESENCIALMENTE, ¿HAN"]
[null,null,"QUE LABORA PRESENCIALMENTE EN ESTE SERVICIO/NIVEL EDUCATIVO?",null,null,null,null,null,null,null,null,null,null,"RECIBIDO EL KIT COVID-19 CONFORMADO POR: MASCARILLAS TEXTILES (3 MASCARILLAS POR CADA "]
[null,null,null,null,null,null,null,null,null,null,null,null,null,"              2 MESES) O MASCARILLAS QUIRÚRGICAS (1 MASCARILLA DIARIA)?"]
[null,null,null,"Sí","",null,null,null,"No",""]
[null,null,null,null,null,null,null,null,null,null,null,null,null,null,"Sí","",null,null,null,"No",""]
[null,null,null,null,null,null,"¿Estos insumos son suficientes para asignarlos a todo el personal"]
[null,null,null,null,null,null,"que labora presencialmente en la I.E:?",null,null,null,null,null,null,null,null,null,null,"¿Estos insumos son suficientes para asignarlos a todos las/los estudiantes"]
[null,null,null,null,null,null,null,null,null,null,null,null,null,null,null,null,null,"que asisten presencialmente en la I.E:?"]
[null,null,null,null,null," Sí",""," No  ",""]
[null,null,null,null,null,null,null,null,null,null,null,null,null,null,null,null," Sí",""," No  ",""]
[]
[null,null,null,null,null,null,null,null,null,null,null,null,null,"197. ESTE SERVICIO/NIVEL EDUCATIVO, ¿CUENTA CON EL KIT DE HIGIENE PARA LAVADO DE MANOS"]
[null,null,null,null,null,null,null,null,null,null,null,null,null,"CUYA ENTREGA ES GESTIONADA POR EL MINISTERIO DE EDUCACIÓN?"]
[]
[null,null,null,null,null,null,null,null,null,null,null,null,null,null,"Sí","",null,"No",""]
[]
[null,null,null,null,null,null,null,null,null,null,null,null,null,null,null,null,null,null,null,"¿Por qué motivo?"]
[null,null,null,null,null,null,null,null,null,null,null,null,null,null,null,null,null,null,null,"(Marque con una  “X” una opción)"]
[null,null,null,null,null,null,null,null,null,null,null,null,null,null,null,null,null,null,null,"","No esta focalizado o no es beneficiario"]
[null,null,null,null,null,null,null,null,null,null,null,null,null,null,null,null,null,null,null,"","Otro motivo"]
[]
[]
[null,null,"H. SUPERVICIÓN DE LA PRESTACIÓN DEL SERVICIO EDUCATIVO DE GESTIÓN PRIVADA"]
[null,null,"198A. EN EL AÑO 2021, ¿ESTE SERVICIO/NIVEL EDUCATIVO FUE SUPERVISADO POR LA UGEL A LA QUE ",null,null,null,null,null,null,null,null,null,null,null,"198C. FORMA DE CONSTITUCIÓN (SOLO PARA PERSONAS JURÍDICAS)"]
[null,null,"   PERTENECE?",null,null,null,null,null,null,null,null,null,null,null,null,"(Marque con una ‘’X’’ y registra la información solicitada según corresponda)"]
[]
[null,null,null,null,null,null,null,null,null,null,null,null,null,null,null,"","  Sociedad",null,null,null,"N° de Partida Registral  ",""]
[null,null,null," Sí",""," No  ","",null,null,null,null,null,null,null,null,null,null,null,null,null,"N° de Asiento Registral  ",""]
[]
[null,null,null,null,null,"¿Qué aspectos fueron supervisados?",null,null,null,null,null,null,null,null,null,"","  Asociación"]
[null,null,null,null,null,"(Marque con una  “X” una o más opciones)"]
[null,null,null,null,"","Entrega de información a los usuarios(as) respecto del servicio educativo"]
[null,null,null,null,"","Infraestructura educativa",null,null,null,null,null,null,null,null,"198D. ¿ESTE SERVICIO/NIVEL EDUCATIVO PERTENECE A ALGUNA ASOCIACIÓN QUE AGRUPE A II.EE."]
[null,null,null,null,"","Otros","",null,null,null,null,null,null,"                       PRIVADAS"]
[]
[null,null,"198B. COMPLETE LOS SIGUIENTES DATOS SOBRE LA PROMOTORIA DE ESTE SERVICIO/NIVEL EDUCATIVO DE",null,null,null,null,null,null,null,null,null,null,null,null," Sí",""," No  ",""]
[null,null,"                   GESTIÓN PRIVADA"]
[]
[null,null,null,"(Marque con una ‘’X’’ y registra la información solicitada según corresponda)"]
[null,null,null,"TIpo de persona:"]
[null,null,null,null,null,null,null,null,null,null,null,null,null,null,null,"Nombre de la asociación:",null,null,""]
[null,null,null,null,"","  Natural",null,"",":",""]
[null,null,null,null,null,null,null,null,null,null,null,null,null,null,null,"Datos de contacto de la asociación:"]
[null,null,null,null,null,null,null,"Nombre  ",""]
[null,null,null,null,null,null,null,"Apellidos  ","",null,null,null,null,null,null,null,null,"Web ",""]
[null,null,null,null,null,null,null,null,null,null,null,null,null,null,null,null,null,"Correo electrónico ",""]
[null,null,null,null,"","  Jurídica",null,"RUC  ","",null,null,null,null,null,null,null,null,"Teléfono/celular ",""]
[null,null,null,null,null,null,null,"Razón social  ",""]
[]
[]
[]
[]
[]
[]
[]
[]
[]
[]
[]
[]
[]
[]
[]
[]
["SI / NO"]
["Sí"]
["No"]
[]
["Dias"]
["01"]
["02"]
["03"]
["04"]
["05"]
["06"]
["07"]
["08"]
["09"]
[10]
[11]
[12]
[13]
[14]
[15]
[16]
[17]
[18]
[19]
[20]
[21]
[22]
[23]
[24]
[25]
[26]
[27]
[28]
[29]
[30]
[31]
[]
["Meses"]
["01: Enero"]
["02: Febrero"]
["03: Marzo"]
["04: Abril"]
["05: Mayo"]
["06: Junio"]
["07: Julio"]
["08: Agosto"]
["09: Septiembre"]
["10: Octubre"]
["11: Noviembre"]
["12: Diciembre"]
["01: Enero"]
["02: Febrero"]
[]
[]
["LENGUA"]
["0100: Castellano"]
["0200: Achuar"]
["0300: Aimara"]
["0400: Amahuaca"]
["0500: Arabela"]
["0600: Ashaninka"]
["0610: Asheninka"]
["0700: Awajún"]
["0800: Bora"]
["0900: Kapanawa"]
["1000: Cashinahua"]
["1100: Kawki"]
["1200: Chamikuro"]
["1300: Ese eja"]
["1400: Harakbut"]
["1500: Iñapari"]
["1600: Ikitu"]
["1700: Iskonawa"]
["1800: Jaqaru"]
["1900: Kakataibo"]
["2000: Kakinte"]
["2110: Kandozi-chapra (chapra)"]
["2120: Kandozi-chapra (kandozi)"]
["2200: Kukama kukamiria"]
["2300: Madija"]
["2400: Maijiki"]
["2500: Matsés"]
["2600: Matsigenka"]
["2700: Muniche"]
["2800: Murui-muinani"]
["2900: Matsigenka-montetokunirira"]
["3000: Nomatsigenga"]
["3100: Ocaina"]
["3200: Omagua"]
["3310: Quechua amazónico (Kichwa)"]
["3321: Quechua central (Ancash)"]
["3322: Quechua central (Huánuco)"]
["3323: Quechua central (Wanka)"]
["3324: Quechua central (Pasco)"]
["3331: Quechua norteño (Cajamarca)"]
["3332: Quechua norteño (Inkawasi Kañaris)"]
["3341: Quechua sureño (Chanka)"]
["3342: Quechua sureño (Collao)"]
["3400: Resigaro"]
["3500: Secoya"]
["3600: Sharanahua"]
["3700: Shawi"]
["3800: Shipibo-Konibo"]
["3900: Shiwilu"]
["4000: Taushiro"]
["4100: Ticuna"]
["4200: Urarina"]
["4300: Wampis"]
["4400: Yagua"]
["4500: Yaminahua"]
["4600: Yanesha"]
["4700: Yine"]
["4800: Nahua"]
["5000: Otra lengua originaria"]
["LENGUA EXTRANJERA"]
["5100: Alemán"]
["5200: Inglés"]
["5300: Italiano"]
["5400: Japonés"]
["5500: Portugués"]
["5600: Ruso"]
["5700: Francés"]
["5800: Otra lengua extranjera"]
[]
[]
["FRECUENCIA DE LAS REUNIONES"]
["1: Semanal"]
["2: Quincenal"]
["3: Mensual"]
["4: Bimensual"]
["5: Trimestral"]
["6: Semestral"]
["7: No se reunen"]

{"sheet":"C200","index":2,"n_rows":59,"n_cols":23,"rows_kept":59,"cut":false,"hidden":false,"merged":[[52,1,54,5],[53,7,53,12],[47,1,47,2],[33,15,33,16],[10,6,10,19],[11,12,11,13],[11,14,11,15],[52,7,52,12],[36,8,36,12],[37,8,37,12],[38,8,38,12],[33,17,33,18],[33,21,33,22],[18,1,18,2],[33,19,33,20],[28,1,28,2],[32,13,33,14],[20,4,22,4],[20,5,21,10],[32,5,34,12],[20,1,22,2],[20,3,22,3],[23,1,25,1],[1,4,1,16],[2,4,2,16],[0,17,3,19],[13,1,15,1],[32,15,32,22],[10,1,12,2],[6,1,6,19],[8,1,8,2],[11,16,11,17],[11,18,11,19],[11,10,11,11],[11,6,11,7],[11,8,11,9],[10,3,12,3],[10,4,11,5]]}
["",null,null,null,null,null,null,null,null,null,null,null,null,null,null,null,null,"1A"]
["",null,null,null,"CENSO EDUCATIVO 2022"]
["",null,null,null,"MATRÍCULA, DOCENTES Y MATERIALES EDUCATIVOS"]
[]
[]
[]
[null,"200. MATRICULA Y SECCIONES"]
[]
[null,"CUADRO 201.",null,"MATRÍCULA TOTAL POR EDADES, SEGÚN TURNO DE ENSEÑANZA"]
[]
[null,"VARIABLE",null,"TURNO","TOTAL",null,"EDAD EN AÑOS CUMPLIDOS AL 31/03/2022"]
[null,null,null,null,null,null,0,null,1,null,2,null,3,null,4,null,5,null,"6  y más"]
[null,null,null,null,"H","M","H","M","H","M","H","M","H","M","H","M","H","M","H","M"]
[null,"MATRÍCULA","00","TOTAL",{"$f":"G14+I14+K14+M14+O14+Q14+S14","v":0},0,{"$f":"SUM(G15:G16)","v":0},0,0,0,0,0,0,0,0,0,0,0,0,0]
[null,null,"01","MAÑANA",0,0]
[null,null,"02","TARDE",0,0]
[null,"Nota:","Incluya todos los estudiantes matriculados en este Servicio/Nivel Educativo, así la prestación de servicio sea presencial, semipresencial o virtual."]
[]
[null,"CUADRO 202.",null,"SECCIONES POR EDADES, SEGÚN TURNO DE ENSEÑANZA"]
[]
[null,"VARIABLE",null,"TURNO","TOTAL","EDAD EN AÑOS CUMPLIDOS AL 31/03/2022"]
[]
[null,null,null,null,null,0,1,2,3,4,"5 y más"]
[null,"SECCIONES","00","TOTAL",{"$f":"SUM(F24:K24)","v":0},{"$f":"SUM(F25:F26)","v":0},{"$f":"SUM(G25:G26)","v":0},0,0,0,0]
[null,null,"01","MAÑANA",{"$f":"SUM(F25:K25)","v":0}]
[null,null,"02","TARDE",{"$f":"SUM(F26:K26)","v":0}]
[null,"Nota:","Incluya todos los estudiantes matriculados en este Servicio/Nivel Educativo, así la prestación de servicio sea presencial, semipresencial o virtual."]
[]
[null,"CUADRO 203.",null,"ESTUDIANTES MATRICULADOS QUE SE ENCUENTREN EN SITUACIÓN DE HOSPITALIZACIÓN AL MOMENTO DEL REPORTE DEL CENSO EDUCATIVO 2022"]
[]
[null,"ESTE SERVICIO/NIVEL EDUCATIVO, ¿CUENTA CON AL MENOS UN ESTUDIANTE EN SITUACIÓN DE HOSPITALIZACIÓN?"]
[]
[null,"Sí",null,null,null,"SITUACIÓN DE HOSPITALIZACIÓN",null,null,null,null,null,null,null,"TOTAL",null,"EDAD DE ESTUDIO"]
[null,null,null,null,null,null,null,null,null,null,null,null,null,null,null,3,null,4,null,5,null,"6 y más"]
[null,"No",null,null,null,null,null,null,null,null,null,null,null,"H","M","H","M","H","M","H","M","H","M"]
[null,null,null,null,null,"00",null,null,"TOTAL",null,null,null,null,{"$f":"P36+R36+T36+V36","v":0},0,{"$f":"SUM(P37:P39)","v":0},0,0,0,0,0,0,0]
[null,null,null,null,null,"01","Estudiantes en",null,"Menos de 15 días de hospitalización",null,null,null,null,0,0]
[null,null,"Pase a la pregunta 204",null,null,"02","situación de",null,"De 15 a 30 días de hospitalización",null,null,null,null,0,0]
[null,null,null,null,null,"03","hospitalización",null,"Más de 30 días de hospitalización",null,null,null,null,0,0]
[null,null,null,null,null,"Nota:","Los totales de esta tabla deben ser iguales o menores a los de la tabla 201."]
[]
[null,"204. ESTE SERVICIO/NIVEL EDUCATIVO, ¿CUENTA CON ESPACIOS O AMBIENTES DE ATENCIÓN POR GRUPOS MULTIEDAD?"]
[]
[null,"Sí",null,null,null,null,null,null,"Nota.- Espacios o ambientes multiedad, se refiere a estudiantes "]
[null,null,null,null,null,null,null,null,"           de diferentes edades que son atendidos a la vez y de manera"]
[null,"No",null,null,"Pase a la sección 300",null,null,null,"           conjunta en un mismo espacio o ambiente educativo."]
[]
[null,"CUADRO 205.",null,"ESPACIOS O AMBIENTES POR GRUPOS DE EDAD “MULTIEDAD”."]
[]
[null,"Marque con una “X” dos o más edades por cada fila según corresponda. Independientemente de las secciones declaradas en la"]
[null," tabla 202, identifique los diferentes grupos de edad atendidos en un mismo espacio o ambiente educativo."]
[]
[null,"Detalle de Espacio o ambiente Multiedad",null,null,null,null,null,"Edades o grupos de edad atendidas en el"]
[null,null,null,null,null,null,null,"Espacio o ambiente Multiedad"]
[null,null,null,null,null,null,{"$f":"COUNTIF(H56:M59,\"X\")","v":0},0,1,2,3,4,"5 y más"]
[null,"01","Espacio o ambiente Multiedad (1)",null,null,null,{"$f":"COUNTIF(H56:M56,\"X\")","v":0},"","","","","",""]
[null,"02","Espacio o ambiente Multiedad (2)",null,null,null,{"$f":"COUNTIF(H57:M57,\"X\")","v":0},"","","","","",""]
[null,"03","Espacio o ambiente Multiedad (3)",null,null,null,{"$f":"COUNTIF(H58:M58,\"X\")","v":0},"","","","","",""]
[null,"04","Espacio o ambiente Multiedad (4)",null,null,null,{"$f":"COUNTIF(H59:M59,\"X\")","v":0},"","","","","",""]

{"sheet":"C300","index":3,"n_rows":427,"n_cols":61,"rows_kept":427,"cut":false,"hidden":false,"merged":[[0,22,3,23],[6,10,6,24],[15,10,17,10],[15,16,17,16],[15,17,17,17],[15,18,17,18],[15,14,15,15],[11,10,11,24],[14,14,14,15],[15,24,17,24],[15,20,17,20],[15,19,17,19],[1,13,1,21],[2,13,2,21],[15,26,17,26],[15,21,17,21],[15,22,17,22],[15,58,17,58],[15,27,17,27],[15,23,17,23],[15,28,17,28],[15,31,17,31],[15,25,17,25],[15,32,17,32],[15,29,16,30],[15,33,17,33],[15,35,17,35],[15,60,17,60],[15,36,17,36],[15,57,17,57],[15,53,17,53],[15,55,17,55],[15,54,17,54],[15,56,17,56],[15,39,17,39],[15,38,17,38],[15,37,17,37],[15,59,17,59],[14,29,14,30],[15,40,15,45],[15,50,15,52],[14,50,14,52],[14,40,14,45],[15,34,17,34],[16,49,17,49],[16,46,17,46],[16,47,17,47],[16,48,17,48],[16,51,16,52],[15,46,15,49],[16,50,17,50],[14,46,14,49]]}
[null,null,null,null,null,null,null,null,null,null,null,null,null,null,null,null,null,null,null,null,null,null,"1A"]
[null,null,null,null,null,null,null,null,null,null,null,null,null,"CENSO EDUCATIVO 2022"]
[null,null,null,null,null,null,null,null,null,null,null,null,null,"MATRÍCULA, DOCENTES Y MATERIALES EDUCATIVOS"]
[]
["PERSONAL",{"$f":"N10+U10+X10","v":0}]
[]
["DOCENTES",{"$f":"COUNTIF(Q19:Q218,\"01: Docente\")","v":0},null,null,null,null,null,null,null,null,"300. PERSONAL DOCENTE, AUXILIARES DE EDUCACIÓN Y ADMINISTRATIVOS  (Para II.EE. Públicas y Privadas)"]
["AUXILIARES",{"$f":"COUNTIF(Q19:Q218,\"03: Aux. de Educación\")","v":0},null,null,null,null,null,null,null,null,"Anote los totales del personal que labora en el Servicio/Nivel educativo:"]
["ADMINISTRATIVOS",{"$f":"COUNTIF(Q19:Q218,\"02: Administrativo\")","v":0}]
["DOCENTE DE AULA",{"$f":"COUNTIF(AJ19:AJ218,\"05: (111)-Docente de Aula\")","v":0},null,null,null,null,null,null,null,null,null,null,"Total Docentes : ",null,null,null,"Docentes de Aula : ",null,null,"Auxiliar de Educación  : ",null,null,"Administrativos : "]
["DOCENTES CON SECCIÓN",{"$f":"COUNTIF(AN19:AN218,\"SI\")","v":0}]
[null,{"$f":"B7+B8+B9","v":0},null,null,null,null,null,null,null,null,"El “Total Docentes”, considera a todos los que cumplen funciones docentes en el Servicio/Nivel educativo: Directivos con o sin aula a cargo, docentes de aula, jefes o jerárquicos, especiales (ed. física, computación, etc.)\nEn el caso de Auxiliares de Educación y Personal que cumple funciones administrativas, anote el total en los recuadros correspondientes."]
["LICENCIA",{"$f":"COUNTIF(AL19:AL218,\"01: En uso de Licencia\")","v":0},null,null,null,null,null,null,null,null,"Documentos fuente: Legajo de personal y CAP de la Institución Educativa."]
[null,null,null,null,null,null,null,null,null,null,null,null,null,null,null,null,null,null,null,null,null,null,null,"G. Pública",null,null,null,null,null,null,null,"G. Pública",null,null,"G. Pública",null,null,null,"G. Pública",null,null,null,null,null,null,null,null,null,null,null,null,null,null,null,"G. Pública"]
["DOC. LENGUA ORIGINARIA",{"$f":"SUM(B228:B427)","v":0},null,null,null,null,null,null,null,null,301,301.10000000000002,301.2,301.3,302,null,303,304,305,306,307,308,309,310,311,312,313,314,315,316,null,317,318,319,320,321,322,323,324,325,326,null,null,null,null,null,327,null,null,null,328,null,null,329,330,331,332,333,333.1,333.2,333.3]
["GESTION",{"$f":"IF(OR('C100'!J29=\"X\",'C100'!P29=\"X\"),1,IF('C100'!U29=\"X\",3,\"\"))","v":""},null,null,null,null,null,null,null,null,"Nº",null,null,null,"Documento de Identidad",null,"Tipo de\nPersonal","Edad","Sexo","Lengua\nMaterna","¿Domina una\nlengua\noriginaria?\nSí - No","Lengua originaria\nque domina","Fuente de\nfinanciamiento","Condición\nlaboral","Modalidad de contrato","Máximo nivel\neducativo\nalcanzado","Especialidad Pedagógica\nque ha estudiado","¿En qué tipo de institución\nobtuvo su formación pedagógica?","Segunda Especialidad","Estudios de Postgrado en Pedagogía",null,"Tiempo de\nservicio\n(en años)","Años de\nExperiencia\nLaboral","Años de\nexperiencia\nlaboral en este\nservicio/nivel\neducativo","Escala\nMagisterial","Función o cargo","Situación en cargo\ndirectivo","Destaque o licencia","Jornada laboral según Nombramiento o Contrato","¿ Tiene secciones a cargo ?\nSí - No","Edades atendidas\nmarque con una \"X\" según corresponda",null,null,null,null,null,"Conocimientos de Ingles",null,null,null,"Certificación de Inglés",null,null,"¿El docente\nenseña\ninglés?\nSí - No","Desde el año 2021 a la fecha, ¿ha recibido capacitación en la implementación del Currículo Nacional?","¿Cuenta con constancia de participación en el curso virtual autoformativo de Currículo Nacional de la Educación Básica (Perú Educa)?","¿ En qué turno(s) labora este personal docente o administrativo ?","Atiende a estudiantes con NEE asociadas a discapacidad?","¿Presenta alguna discapacidad?","Sólo si respondió Sí en la pregunta 333.1, ¿Cuál es el tipo de discapacidad?","¿Ha recibido asistencia y orientación para la atención educativa de estudiantes con discapacidad de parte del equipo de Servicio de Apoyo Educativo Virtual (SAEV)?\n\nSí - No"]
[null,null,"Exp1","Exp2","Exp3","Exp4","Exp5","Exp6","Exp7",null,null,"Apellido Paterno","Apellido Materno","Nombres",302.10000000000002,302.2,null,null,null,null,null,null,null,null,null,null,null,null,null,null,null,null,null,null,null,null,null,null,null,null,null,null,null,null,null,null,"No sabe","Habla","Lee","Escribe","No Tiene","Si Tiene"]
["302.1 Tipo de documento de Identidad","314. Tipo de inst. donde estudio","Corr","Escala","Gest","Secc","Fun- cion","Duplex","Fmt",null,null,null,null,null,"Tipo","Número",null,null,null,null,null,null,null,null,null,null,null,null,null,"Estudios de Maestría","Estudios de Doctorado",null,null,null,null,null,null,null,null,null,0,1,2,3,4,5,null,null,null,null,null,"Nacional","Interna- cional"]
["01: DNI","01: IESP (Público)",1,{"$f":"IF(AND(LEFT(Q19,2)=\"01\",LEFT(W19,2)=\"01\",LEFT(X19,2)=\"01\",E19=1),1,0)","v":0},{"$f":"$B$16","v":""},{"$f":"COUNTIF(AO19:AT19,\"X\")","v":0},{"$f":"IF(Q19<>\"\",VALUE(LEFT(Q19,2)),0)","v":0},{"$f":"IF(P19<>\"\",COUNTIF($P$19:$P$218,P19),0)","v":0},{"$f":"IF(K19<>\"\",1,0)","v":0},null,{"$f":"IF(C19<=$B$5,C19,\"\")","v":""}]
["02: Carnet ext.","02: IESP (Privado)",2,{"$f":"IF(AND(LEFT(Q20,2)=\"01\",LEFT(W20,2)=\"01\",LEFT(X20,2)=\"01\",E20=1),1,0)","v":0},{"$f":"$B$16","v":""},{"$f":"COUNTIF(AO20:AT20,\"X\")","v":0},{"$f":"IF(Q20<>\"\",VALUE(LEFT(Q20,2)),0)","v":0},{"$f":"IF(P20<>\"\",COUNTIF($P$19:$P$218,P20),0)","v":0},0,null,{"$f":"IF(C20<=$B$5,C20,\"\")","v":""}]
["03: Pasaporte","03: Universidad Privada",3,0,"",0,0,0,0,null,{"$f":"IF(C21<=$B$5,C21,\"\")","v":""}]
[null,"04: Universidad Pública",4,0,"",0,0,0,0,null,""]
["303. Tipo de Personal","05: Sin formación pedagógica",5,0,"",0,0,0,0,null,""]
["01: Docente",null,6,0,"",0,0,0,0,null,""]
["02: Administrativo","315. Segunda Especialidad",7,0,"",0,0,0,0,null,""]
["03: Aux. de Educación","Utilice las especialidades de la tabla de códigos 313.",8,0,"",0,0,0,0,null,""]
[null,null,9,0,"",0,0,0,0,null,""]
["305. Sexo","316. Estudios de Postgrado en Pedagogía",10,0,"",0,0,0,0,null,""]
["Hombre","Estudios de Maestría",11,0,"",0,0,0,0,null,""]
["Mujer","01: Concluida con grado",12,0,"",0,0,0,0,null,""]
[null,"02: Concluida sin grado",13,0,"",0,0,0,0,null,""]
["306. Lengua Materna","03: En proceso / no concluida",14,0,"",0,0,0,0,null,""]
["0100: Castellano","04: Sin Maestría",15,0,"",0,0,0,0,null,""]
["0200: Achuar","Estudios de Doctorado",16,0,"",0,0,0,0,null,""]
["0300: Aimara","05: Concluido con grado",17,0,"",0,0,0,0,null,""]
["0400: Amahuaca","06: Concluido sin grado",18,0,"",0,0,0,0,null,""]
["0500: Arabela","07: En proceso / no concluido",19,0,"",0,0,0,0,null,""]
["0600: Ashaninka","08: Sin Doctorado",20,0,"",0,0,0,0,null,""]
["0610: Asheninka",null,21,0,"",0,0,0,0,null,""]
["0700: Awajún","317. Tiempo de Servicio",22,0,"",0,0,0,0,null,""]
["0800: Bora","Solo personal Nombrado.",23,0,"",0,0,0,0,null,""]
["0900: Kapanawa","Tiempo contado expresado en años desde su fecha de Nombramiento",24,0,"",0,0,0,0,null,""]
["1000: Cashinahua",null,25,0,"",0,0,0,0,null,""]
["1100: Kawki","318. Años de Experiencia Laboral",26,0,"",0,0,0,0,null,""]
["1200: Chamikuro","Registre el total de años que tiene como experiencia",27,0,"",0,0,0,0,null,""]
["1300: Ese eja","en el Tipo de Personal que se está registrando (Tabla 301.)",28,0,"",0,0,0,0,null,""]
["1400: Harakbut",null,29,0,"",0,0,0,0,null,""]
["1500: Iñapari","319. Años de experiencia laboral en este servicio/ nivel educativo",30,0,"",0,0,0,0,null,""]
["1600: Ikitu","Anote el N° de años de experiencia prestando servicios",31,0,"",0,0,0,0,null,""]
["1700: Iskonawa","en este servicio/nivel educativo por el tipo de personal",32,0,"",0,0,0,0,null,""]
["1800: Jaqaru","que se está registrando (Tabla 301.)",33,0,"",0,0,0,0,null,""]
["1900: Kakataibo",null,34,0,"",0,0,0,0,null,""]
["2000: Kakinte","320. Escala Magisterial",35,0,"",0,0,0,0,null,""]
["2110: Kandozi-chapra (chapra)","Complete los datos de Escala Magisterial, según corresponda",36,0,"",0,0,0,0,null,""]
["2120: Kandozi-chapra (kandozi)","01: Primera",37,0,"",0,0,{"$f":"IF(P55<>\"\",COUNTIF($P$19:$P$218,P55),0)","v":0},{"$f":"IF(K55<>\"\",1,0)","v":0},null,""]
["2200: Kukama kukamiria","02: Segunda",38,0,"",0,0,0,0,null,""]
["2300: Madija","03: Tercera",39,0,"",0,0,0,0,null,""]
["2400: Maijiki","04: Cuarta",40,0,"",0,0,0,0,null,""]
["2500: Matsés","05: Quinta",41,0,"",0,0,0,0,null,""]
["2600: Matsigenka","06: Sexta",42,0,"",0,0,0,0,null,""]
["2700: Muniche","07: Séptima",43,0,"",0,0,0,0,null,""]
["2800: Murui-muinani","08: Octava",44,0,"",0,0,0,0,null,""]
["2900: Matsigenka-montetokunirira","09: Sin Escala",45,0,"",0,0,0,0,null,""]
["3000: Nomatsigenga",null,46,0,"",0,0,0,0,null,""]
["3100: Ocaina","321. Función o Cargo",47,0,"",0,0,0,0,null,""]
["3200: Omagua","(Desempeñado a la fecha de reporte)",48,0,"",0,0,0,0,null,""]
["3310: Quechua amazónico (Kichwa)","Según lista estandarizada",49,0,"",0,0,0,0,null,""]
["3321: Quechua central (Ancash)","01: (101)-Director General",50,0,"",0,0,0,0,null,""]
["3322: Quechua central (Huánuco)","02: (102)-Director",51,0,"",0,0,0,0,null,""]
["3323: Quechua central (Wanka)","03: (103)-Sub Director",52,0,"",0,0,0,0,null,""]
["3324: Quechua central (Pasco)","04: (106)-Coordinador, Asesor",53,0,"",0,0,0,0,null,""]
["3331: Quechua norteño (Cajamarca)","05: (111)-Docente de Aula",54,0,"",0,0,0,0,null,""]
["3332: Quechua norteño (Inkawasi Kañaris)","06: (116)-Doc. de Aula con función o cargo directivo",55,0,"",0,0,0,0,null,""]
["3341: Quechua sureño (Chanka)","07: (139)-Otro docente",56,0,"",0,0,0,0,null,""]
["3342: Quechua sureño (Collao)",null,57,0,"",0,0,0,0,null,""]
["3400: Resigaro",null,58,0,"",0,0,0,0,null,{"$f":"IF(C76<=$B$5,C76,\"\")","v":""}]
["3500: Secoya",null,59,0,"",0,0,0,0,null,""]
["3600: Sharanahua",null,60,0,"",0,0,0,0,null,""]
["3700: Shawi","08: (501)-Psicólogo",61,0,"",0,0,0,0,null,""]
["3800: Shipibo-Konibo","09: (502)-Trabajo social / Servicio social",62,0,"",0,0,0,0,null,""]
["3900: Shiwilu","10: (503)-Personal de Salud",63,0,"",0,0,0,0,null,""]
["4000: Taushiro","11: (504)-Administrador o contador",64,0,"",0,0,0,0,null,""]
["4100: Ticuna","12: (538)-Guía Intérprete de sordoceguera",65,0,"",0,0,0,{"$f":"IF(K83<>\"\",1,0)","v":0},null,{"$f":"IF(C83<=$B$5,C83,\"\")","v":""}]
["4200: Urarina","13: (539)-Intérprete de Lengua de Señas Peruana",66,{"$f":"IF(AND(LEFT(Q84,2)=\"01\",LEFT(W84,2)=\"01\",LEFT(X84,2)=\"01\",E84=1),1,0)","v":0},{"$f":"$B$16","v":""},{"$f":"COUNTIF(AO84:AT84,\"X\")","v":0},{"$f":"IF(Q84<>\"\",VALUE(LEFT(Q84,2)),0)","v":0},{"$f":"IF(P84<>\"\",COUNTIF($P$19:$P$218,P84),0)","v":0},0,null,""]
["4300: Wampis","14: (540)-Modelo Lingüistico",67,0,"",0,0,0,0,null,""]
["4400: Yagua","15: (505)-Otro personal profesional",68,0,"",0,0,0,0,null,""]
["4500: Yaminahua","16: (506)-Auxiliar de Biblioteca",69,0,"",0,0,0,0,null,""]
["4600: Yanesha","17: (507)-Auxiliar de laboratorio",70,0,"",0,0,0,0,null,""]
["4700: Yine","18: (508)-Secretaria u Oficinista",71,0,"",0,0,0,0,null,""]
["4800: Nahua","19: (510)-Coordinador de Taller",72,0,"",0,0,0,0,null,""]
["5000: Otra lengua originaria","20: (511)-Asistente Administrativo",73,0,"",0,0,0,0,null,""]
["5100: Alemán","21: (512)-Personal de Servicio - Mantenimiento",74,0,"",0,0,0,0,null,""]
["5200: Inglés","22: (513)-Personal de servicio - Cocina",75,0,"",0,0,0,0,null,""]
["5300: Italiano","23: (514)-Personal de servicio - Limpieza",76,0,"",0,0,0,0,null,""]
["5400: Japonés","24: (515)-Personal de servicio - Portero",77,0,"",0,0,0,0,null,""]
["5500: Portugués","25: (516)-Personal de servicio - Vigilante",78,0,"",0,0,0,0,null,""]
["5600: Ruso","26: (517)-Otro personal de servicio",79,0,"",0,0,0,0,null,""]
["5700: Francés","27: (518)-Otro personal No profesional",80,0,"",0,0,0,0,null,""]
["5800: Otra lengua extranjera",null,81,0,"",0,0,0,0,null,""]
[null,"99: (999)-Auxiliar de Educación",82,0,"",0,0,0,0,null,""]
["308. Lengua Originaria",null,83,0,"",0,0,0,0,null,""]
["Utilice los códigos de lengua de la tabla 204",null,84,0,"",0,0,0,0,null,""]
[null,null,85,0,"",0,0,0,0,null,""]
["309. Fuente de Financiamiento","Parroquiales",86,0,"",0,0,0,0,null,""]
["01: Sector Educación","06: Otra fuente Privada",87,0,"",0,0,0,0,null,""]
["02: Otro sector (FF.AA. Salud u Otro)","01: Sector Educación",88,0,"",0,0,0,0,null,""]
["03: Municipalidad",null,89,0,"",0,0,0,0,null,""]
["04: Gobierno Regional","322. Situación en el Cargo Directivo",90,0,"",0,0,0,0,null,""]
["05: APAFA","01: Titular ratificado eval. excep. 2014",91,0,"",0,0,0,0,null,""]
["06: Otra fuente Privada","02: Titular designado 2015, 2016 y 2018",92,0,"",0,0,0,0,null,""]
[null,"03: Titular otro",93,0,"",0,0,0,0,null,""]
["310. Condición Laboral","04: Encargado por función, sin doc. Formal",94,0,"",0,0,0,0,null,""]
["01: Nombrado","05: Encargado",95,0,"",0,0,0,0,null,""]
["02: Contratado",null,96,0,"",0,0,0,0,null,""]
[null,"323. Destaque o Licencia",97,0,"",0,0,0,0,null,{"$f":"IF(C115<=$B$5,C115,\"\")","v":""}]
["311. Modalidad de Contrato","01: Cubriendo plaza por licencia.",98,0,"",0,0,0,0,null,""]
["Contrato Público","02: De otra I.E./DRE/UGEL",99,0,"",0,0,0,0,null,""]
["01: A plazo fijo D. Leg. 728","03: No Aplica",100,0,"",0,0,0,0,null,""]
["02: Locación de Servicios/Honorarios",null,101,0,"",0,0,0,0,null,""]
["03: CAS - D. Leg. 1057",null,102,0,"",0,0,0,0,null,""]
["04: Contrato D. Leg. 276","324. Jornada Laboral (Nombramiento / Contrato)",103,0,"",0,0,0,0,null,""]
["05: Contrato Ley 30328","40: 40 horas",104,0,"",0,0,0,0,null,""]
["06: Otra modalidad","30: 30 horas",105,0,"",0,0,0,0,null,""]
["Contrato Privado","25: 25 horas",106,0,"",0,0,0,0,null,""]
["07: A plazo indefinido (Permanente)","24: 24 horas",107,0,"",0,0,0,0,null,""]
["08: Plazo fijo (Tiempo determinado)","23: Menos 24 horas",108,0,"",0,0,0,0,null,""]
["09: A tiempo parcial (por horas)",null,109,0,"",0,0,0,0,null,""]
["10: Locación de Servicios/Honorarios","334.3 ¿Cuál fue el tipo de estudios en EIB?",110,0,"",0,0,0,0,null,""]
["11: Otra modalidad","01: Doctorado",111,0,"",0,0,0,0,null,""]
[null,"02: Maestría",112,0,"",0,0,0,0,null,""]
["312. Máximo Nivel Educativo Alcanzado","03: Segunda especialidad",113,0,"",0,0,0,0,null,""]
["01: Pedag.Concluidos con título","04: Especialización",114,0,"",0,0,0,0,null,""]
["02: Pedag.Concluidos sin título","05: Actualización",115,0,"",0,0,0,0,null,""]
["03: Pedag.No concluidos","06: Otro",116,0,"",0,0,0,0,null,""]
["04: No Pedag.Concluidos con título",null,117,0,"",0,0,0,0,null,""]
["05: No Pedag.Concluidos sin título","332 ¿En qué turno(s) labora este personal docente o administrativo?",118,0,"",0,0,0,0,null,""]
["06: No Pedag.No concluidos","11: Sólo en la mañana",119,0,"",0,0,0,0,null,""]
["07: Secundaria","12: Sólo en la tarde",120,0,"",0,0,0,0,null,""]
["08: Primaria","13: Mañana y tarde",121,0,"",0,0,0,0,null,""]
[null,"14: Sólo en la noche",122,0,"",0,0,0,0,null,""]
["313. Especialidad del Título","15: Mañana, tarde y noche",123,0,"",0,0,0,0,null,""]
["01: Educación Inicial","16: Mañana y noche",124,0,"",0,0,0,0,null,""]
["02: Educación Primaria","17: Tarde y noche",125,0,"",0,0,0,0,null,""]
["03: E.I. Intercultural Bilingüe","20: Discontinuo",126,0,"",0,0,0,0,null,""]
["04: E.P. Intercultural Bilingüe",null,127,0,"",0,0,0,0,null,""]
["05: Educación Básica Alternativa",null,128,0,"",0,0,0,0,null,""]
["06: Educación Especial",null,129,0,"",0,0,0,{"$f":"IF(K147<>\"\",1,0)","v":0},null,{"$f":"IF(C147<=$B$5,C147,\"\")","v":""}]
["07: Educación Física","SI / NO",130,{"$f":"IF(AND(LEFT(Q148,2)=\"01\",LEFT(W148,2)=\"01\",LEFT(X148,2)=\"01\",E148=1),1,0)","v":0},{"$f":"$B$16","v":""},{"$f":"COUNTIF(AO148:AT148,\"X\")","v":0},{"$f":"IF(Q148<>\"\",VALUE(LEFT(Q148,2)),0)","v":0},{"$f":"IF(P148<>\"\",COUNTIF($P$19:$P$218,P148),0)","v":0},0,null,""]
["08: Educación Artística","SI",131,0,"",0,0,0,0,null,""]
["09: E.S. Lengua y Literatura","NO",132,0,"",0,0,0,0,null,""]
["10: E.S. especialidad Comunicación",null,133,0,"",0,0,0,0,null,""]
["11: E.S. Matemática y Física",null,134,0,"",0,0,0,0,null,""]
["12: E.S. especialidad Matemática",null,135,0,"",0,0,0,0,null,""]
["13: E.S. CCSS y Filosofía","333.2 ¿Cuál es el tipo de discapacidad?",136,0,"",0,0,0,0,null,""]
["14: E.S. Esp. Ciudadanía y Ciencias Sociales","01: Auditiva",137,0,"",0,0,0,0,null,""]
["15: E.S. Ciencias Naturales","02: Visual",138,0,"",0,0,0,0,null,""]
["16: E.S. especialidad Ciencia y Tecnología","03: Física o Motora",139,0,"",0,0,0,0,null,""]
["17: E.S. Alimentación y Nutrición","04: Otras",140,0,"",0,0,0,0,null,""]
["18: E.S. Biología y Química",null,141,0,"",0,0,0,0,null,""]
["19: E.S. Historia y Geografía",null,142,0,"",0,0,0,0,null,""]
["20: E.S. CC.HH. Sociales",null,143,0,"",0,0,0,0,null,""]
["21: Idiomas especialidad Inglés",null,144,0,"",0,0,0,0,null,""]
["22: Educación Religiosa",null,145,0,"",0,0,0,0,null,""]
["23: E.S. Educación Familiar",null,146,0,"",0,0,0,0,null,""]
["24: E.T. Artes Industriales",null,147,0,"",0,0,0,0,null,""]
["25: E.T. Artesanía",null,148,0,"",0,0,0,0,null,""]
["26: E.T. Agropecuaria",null,149,0,"",0,0,0,0,null,""]
["27: E.T. Construcción en madera",null,150,0,"",0,0,0,0,null,""]
["28: Computación e Informática",null,151,0,"",0,0,0,0,null,""]
["29: E.T. Carpintería / Ebanistería",null,152,0,"",0,0,0,0,null,""]
["30: E.T. Electricidad",null,153,0,"",0,0,0,0,null,""]
["31: E.T. Electrónica",null,154,0,"",0,0,0,0,null,""]
["32: E.T. Ebanistería",null,155,0,"",0,0,0,0,null,""]
["33: E.T. Industria del Vestido",null,156,0,"",0,0,0,0,null,""]
["34: E.T. Industria del Vestido Alimentación y Alta Costura",null,157,0,"",0,0,0,0,null,""]
["35: E.T. en Industria del Vestido y Alta Costura",null,158,0,"",0,0,0,0,null,""]
["36: E.S.Técnica Esp. Ind. del Vestido Ind.Alimentaria y Artesanía",null,159,0,"",0,0,0,0,null,""]
["37: E.T. Industria Alimentaria",null,160,0,"",0,0,0,0,null,""]
["38: E.T. Mecánica Automotriz",null,161,0,"",0,0,0,0,null,{"$f":"IF(C179<=$B$5,C179,\"\")","v":""}]
["39: E.T. Mecánica de Producción",null,162,0,"",0,0,0,0,null,""]
["40: E.T. Mecánica de Producción y Soldadura",null,163,0,"",0,0,0,0,null,""]
["41: Educación para el trabajo Textil y Confección",null,164,0,"",0,0,0,0,null,""]
["42: Otra pedagógica",null,165,0,"",0,0,0,0,null,""]
[null,null,166,0,"",0,0,0,0,null,""]
[null,null,167,0,"",0,0,0,0,null,""]
[null,null,168,0,"",0,0,0,0,null,""]
[null,null,169,0,"",0,0,0,0,null,""]
[null,null,170,0,"",0,0,0,0,null,""]
[null,null,171,0,"",0,0,0,0,null,""]
[null,null,172,0,"",0,0,0,0,null,""]
[null,null,173,0,"",0,0,0,0,null,""]
[null,null,174,0,"",0,0,0,0,null,""]
[null,null,175,0,"",0,0,0,0,null,""]
[null,null,176,0,"",0,0,0,0,null,""]
[null,null,177,0,"",0,0,0,0,null,""]
[null,null,178,0,"",0,0,0,0,null,""]
[null,null,179,0,"",0,0,0,0,null,""]
[null,null,180,0,"",0,0,0,0,null,""]
[null,null,181,0,"",0,0,0,0,null,""]
[null,null,182,0,"",0,0,0,0,null,""]
[null,null,183,0,"",0,0,0,0,null,""]
[null,null,184,0,"",0,0,0,0,null,""]
[null,null,185,0,"",0,0,0,0,null,""]
[null,null,186,0,"",0,0,0,0,null,""]
[null,null,187,0,"",0,0,0,0,null,""]
[null,null,188,0,"",0,0,0,0,null,""]
[null,null,189,0,"",0,0,0,0,null,""]
[null,null,190,0,"",0,0,0,0,null,""]
[null,null,191,0,"",0,0,0,0,null,""]
[null,null,192,0,"",0,0,0,0,null,""]
[null,null,193,0,"",0,0,0,{"$f":"IF(K211<>\"\",1,0)","v":0},null,""]
[null,null,194,{"$f":"IF(AND(LEFT(Q212,2)=\"01\",LEFT(W212,2)=\"01\",LEFT(X212,2)=\"01\",E212=1),1,0)","v":0},{"$f":"$B$16","v":""},{"$f":"COUNTIF(AO212:AT212,\"X\")","v":0},{"$f":"IF(Q212<>\"\",VALUE(LEFT(Q212,2)),0)","v":0},{"$f":"IF(P212<>\"\",COUNTIF($P$19:$P$218,P212),0)","v":0},0,null,{"$f":"IF(C212<=$B$5,C212,\"\")","v":""}]
[null,null,195,0,"",0,0,0,0,null,""]
[null,null,196,0,"",0,0,0,0,null,""]
[null,null,197,0,"",0,0,0,0,null,""]
[null,null,198,0,"",0,0,0,0,null,""]
[null,null,199,0,"",0,0,0,0,null,""]
[null,null,200,0,"",0,{"$f":"IF(Q218<>\"\",VALUE(LEFT(Q218,2)),0)","v":0},0,{"$f":"IF(K218<>\"\",1,0)","v":0},null,""]
[]
[null,null,null,null,null,null,null,null,null,null,"Limite",null,null,null,"Limite",null,"Limite","Limite","Limite","Limite","Limite","Limite","Limite","Limite","Limite","Limite","Limite","Limite","Limite","Limite",null,"Limite","Limite","Limite","Limite","Limite","Limite","Limite","Limite","Limite","Limite","Limite","Limite","Limite","Limite","Limite","Limite","Limite","Limite","Limite","Limite","Limite","Limite","Limite","Limite","Limite","Limite","Limite","Limite","Limite","Limite"]
[]
[]
[]
[]
[]
["Lengua"]
[]
["1",{"$f":"IF(AND(Q19=\"01: Docente\",U19=\"SI\"),1,0)","v":0}]
["2",{"$f":"IF(AND(Q20=\"01: Docente\",U20=\"SI\"),1,0)","v":0}]
["3",0]
["4",0]
["5",0]
["6",0]
["7",0]
["8",0]
["9",0]
["10",0]
["11",0]
["12",0]
["13",0]
["14",0]
["15",0]
["16",0]
["17",0]
["18",0]
["19",0]
["20",0]
["21",0]
["22",0]
["23",0]
["24",0]
["25",0]
["26",0]
["27",0]
["28",0]
["29",0]
["30",0]
["31",0]
["32",0]
["33",0]
["34",0]
["35",0]
["36",0]
["37",0]
["38",0]
["39",0]
["40",0]
["41",0]
["42",0]
["43",0]
["44",0]
["45",0]
["46",0]
["47",0]
["48",0]
["49",0]
["50",0]
["51",0]
["52",0]
["53",0]
["54",0]
["55",0]
["56",0]
["57",0]
["58",0]
["59",0]
["60",0]
["61",0]
["62",0]
["63",0]
["64",0]
["65",0]
["66",{"$f":"IF(AND(Q84=\"01: Docente\",U84=\"SI\"),1,0)","v":0}]
["67",0]
["68",0]
["69",0]
["70",0]
["71",0]
["72",0]
["73",0]
["74",0]
["75",0]
["76",0]
["77",0]
["78",0]
["79",0]
["80",0]
["81",0]
["82",0]
["83",0]
["84",0]
["85",0]
["86",0]
["87",0]
["88",0]
["89",0]
["90",0]
["91",0]
["92",0]
["93",0]
["94",0]
["95",0]
["96",0]
["97",0]
["98",0]
["99",0]
["100",0]
["101",0]
["102",0]
["103",0]
["104",0]
["105",0]
["106",0]
["107",0]
["108",0]
["109",0]
["110",0]
["111",0]
["112",0]
["113",0]
["114",0]
["115",0]
["116",0]
["117",0]
["118",0]
["119",0]
["120",0]
["121",0]
["122",0]
["123",0]
["124",0]
["125",0]
["126",0]
["127",0]
["128",0]
["129",0]
["130",{"$f":"IF(AND(Q148=\"01: Docente\",U148=\"SI\"),1,0)","v":0}]
["131",0]
["132",0]
["133",0]
["134",0]
["135",0]
["136",0]
["137",0]
["138",0]
["139",0]
["140",0]
["141",0]
["142",0]
["143",0]
["144",0]
["145",0]
["146",0]
["147",0]
["148",0]
["149",0]
["150",0]
["151",0]
["152",0]
["153",0]
["154",0]
["155",0]
["156",0]
["157",0]
["158",0]
["159",0]
["160",0]
["161",0]
["162",0]
["163",0]
["164",0]
["165",0]
["166",0]
["167",0]
["168",0]
["169",0]
["170",0]
["171",0]
["172",0]
["173",0]
["174",0]
["175",0]
["176",0]
["177",0]
["178",0]
["179",0]
["180",0]
["181",0]
["182",0]
["183",0]
["184",0]
["185",0]
["186",0]
["187",0]
["188",0]
["189",0]
["190",0]
["191",0]
["192",0]
["193",0]
["194",{"$f":"IF(AND(Q212=\"01: Docente\",U212=\"SI\"),1,0)","v":0}]
["195",0]
["196",0]
["197",0]
["198",0]
["199",0]
["200",0]

{"sheet":"C334","index":4,"n_rows":121,"n_cols":31,"rows_kept":121,"cut":false,"hidden":false,"merged":[[17,12,18,12],[17,6,18,6],[17,8,17,10],[17,5,18,5],[17,7,18,7],[0,15,3,16],[16,8,16,10],[6,5,6,16],[1,8,1,14],[2,8,2,14]]}
[null,null,null,null,null,null,null,null,null,null,null,null,null,null,null,"1A"]
[null,null,null,null,null,null,null,null,"CENSO EDUCATIVO 2022"]
[null,null,null,null,null,null,null,null,"MATRÍCULA, DOCENTES Y MATERIALES EDUCATIVOS"]
[]
[null,{"$f":"N12","v":0}]
[]
[null,null,null,null,null,"DOCENTES QUE DOMINAN LENGUA ORIGINARIA (Solo para II.EE. Públicas)"]
[]
[null,null,null,null,null,null,"334. SEGÚN LO ANOTADO EN LA PREGUNTA 307, ¿CUENTA CON UN DOCENTE QUE DOMINE UNA LENGUA ORIGINARIA?"]
["GESTIÓN",null,null,null,null,null,"Hacer click en el botón [Verificar] para revisar los docentes que dominan una lengua originaria"]
[{"$f":"IF(OR('C100'!J29=\"X\",'C100'!P29=\"X\"),1,IF('C100'!U29=\"X\",3,\"\"))","v":""}]
[null,null,null,null,null,null,null,"Sí   ",null,null,null,null,"¿Cuántos?"]
[]
[null,null,null,null,null,null,null,"No  ","",null,null,null,"Pase a la sección 400."]
[]
[]
[null,null,null,null,null,null,null,null,334.1,null,null,334.2,334.3,334.4,334.5,334.6,334.7]
["330.3 ¿Cuál fue el tipo",null,null,null,null,"Nº","Nº de fila registrado en la pregunta 307","Documento de Identidad","Conocimiento de\nlengua originaria",null,null,"¿Cuenta con estudios en Educación Intercultural Bilingüe?","Solo si respondió \"SÍ\"\n en la pregunta 334.2\n¿Cuál fue el tipo de\nestudios en EIB?","¿Ha recibido\ncapacitación en EIB?","¿El docente enseña\nen lengua originaria?","¿El material recibido coincide con la lengua que enseña?","¿En la actualidad el Docente se encuentra en el Registro de Docentes Bilingües?"]
["de estudios en EIB?","Corr","Gest","Fmt",null,null,null,null,"Habla","Lee","Escribe"," SI - NO",null," SI - NO"," SI - NO"," SI - NO"," SI - NO"]
["01: Doctorado",1,{"$f":"$A$11","v":""},{"$f":"IF(F20<>\"\",1,0)","v":0},null,{"$f":"IF(AND($B20<=$N$12,$C20=1),$B20,\"\")","v":""},null,null,null,null,null,null,null,null,null,null,null,"","","","","","","","","","","","","",""]
["02: Maestría",{"$f":"B20+1","v":2},"",0,null,{"$f":"IF(AND($B21<=$N$12,$C21=1),$B21,\"\")","v":""},null,null,null,null,null,null,null,null,null,null,null,"","","","","","","","","","","","","",""]
["03: Segunda especialidad",{"$f":"B21+1","v":3},"",0,null,"",null,null,null,null,null,null,null,null,null,null,null,"","","","","","","","","","","","","",""]
["04: Especialización",4,"",0,null,"",null,null,null,null,null,null,null,null,null,null,null,"",null,null,null,null,"","","","","","","","",""]
["05: Actualización",5,"",0,null,"",null,null,null,null,null,null,null,null,null,null,null,"",null,null,null,null,"","","","","","","","",""]
["06: Otro",6,"",0,null,"",null,null,null,null,null,null,null,null,null,null,null,"","","","","","","","","","","","","",""]
[null,7,"",0,null,"",null,null,null,null,null,null,null,null,null,null,null,"","","","","","","","","","","","","",""]
[null,8,"",0,null,"",null,null,null,null,null,null,null,null,null,null,null,"","","","","","","","","","","","","",""]
["SI",9,"",0,null,"",null,null,null,null,null,null,null,null,null,null,null,"","","","","","","","","","","","","",""]
["NO",10,"",{"$f":"IF(F29<>\"\",1,0)","v":0},null,"",null,null,null,null,null,null,null,null,null,null,null,"","","","","","","","","","","","","",""]
[null,11,"",0,null,"",null,null,null,null,null,null,null,null,null,null,null,"","","","","","","","","","","","","",""]
[null,12,"",0,null,"",null,null,null,null,null,null,null,null,null,null,null,"","","","","","","","","","","","","",""]
[null,13,"",0,null,"",null,null,null,null,null,null,null,null,null,null,null,"","","","","","","","","","","","","",""]
[null,14,"",0,null,"",null,null,null,null,null,null,null,null,null,null,null,"","","","","","","","","","","","","",""]
[null,15,"",0,null,"",null,null,null,null,null,null,null,null,null,null,null,"","","","","","","","","","","","","",""]
[null,16,"",0,null,"",null,null,null,null,null,null,null,null,null,null,null,"","","","","","","","","","","","","",""]
[null,17,"",0,null,"",null,null,null,null,null,null,null,null,null,null,null,"","","","","","","","","","","","","",""]
[null,18,"",0,null,"",null,null,null,null,null,null,null,null,null,null,null,"","","","","","","","","","","","","",""]
[null,19,"",0,null,"",null,null,null,null,null,null,null,null,null,null,null,"","","","","","","","","","","","","",""]
[null,20,"",0,null,"",null,null,null,null,null,null,null,null,null,null,null,"","","","","","","","","","","","","",""]
[null,21,"",0,null,"",null,null,null,null,null,null,null,null,null,null,null,"","","","","","","","","","","","","",""]
[null,22,"",0,null,"",null,null,null,null,null,null,null,null,null,null,null,"","","","","","","","","","","","","",""]
[null,23,"",0,null,"",null,null,null,null,null,null,null,null,null,null,null,"","","","","","","","","","","","","",""]
[null,24,"",0,null,"",null,null,null,null,null,null,null,null,null,null,null,"","","","","","","","","","","","","",""]
[null,25,"",0,null,"",null,null,null,null,null,null,null,null,null,null,null,"","","","","","","","","","","","","",""]
[null,26,"",0,null,"",null,null,null,null,null,null,null,null,null,null,null,"","","","","","","","","","","","","",""]
[null,27,"",0,null,"",null,null,null,null,null,null,null,null,null,null,null,"","","","","","","","","","","","","",""]
[null,28,"",0,null,"",null,null,null,null,null,null,null,null,null,null,null,"","","","","","","","","","","","","",""]
[null,29,"",0,null,"",null,null,null,null,null,null,null,null,null,null,null,"","","","","","","","","","","","","",""]
[null,30,"",0,null,"",null,null,null,null,null,null,null,null,null,null,null,"","","","","","","","","","","","","",""]
[null,31,"",0,null,"",null,null,null,null,null,null,null,null,null,null,null,"","","","","","","","","","","","","",""]
[null,32,"",0,null,"",null,null,null,null,null,null,null,null,null,null,null,"","","","","","","","","","","","","",""]
[null,33,{"$f":"$A$11","v":""},0,null,"",null,null,null,null,null,null,null,null,null,null,null,"","","","","","","","","","","","","",""]
[null,34,"",0,null,"",null,null,null,null,null,null,null,null,null,null,null,"","","","","","","","","","","","","",""]
[null,35,"",0,null,"",null,null,null,null,null,null,null,null,null,null,null,"","","","","","","","","","","","","",""]
[null,36,"",0,null,"",null,null,null,null,null,null,null,null,null,null,null,"","","","","","","","","","","","","",""]
[null,37,"",0,null,"",null,null,null,null,null,null,null,null,null,null,null,"","","","","","","","","","","","","",""]
[null,38,"",0,null,"",null,null,null,null,null,null,null,null,null,null,null,"","","","","","","","","","","","","",""]
[null,39,"",0,null,"",null,null,null,null,null,null,null,null,null,null,null,"","","","","","","","","","","","","",""]
[null,40,"",0,null,"",null,null,null,null,null,null,null,null,null,null,null,"","","","","","","","","","","","","",""]
[null,41,"",0,null,"",null,null,null,null,null,null,null,null,null,null,null,"","","","","","","","","","","","","",""]
[null,42,"",0,null,"",null,null,null,null,null,null,null,null,null,null,null,"","","","","","","","","","","","","",""]
[null,43,"",0,null,"",null,null,null,null,null,null,null,null,null,null,null,"","","","","","","","","","","","","",""]
[null,44,"",0,null,"",null,null,null,null,null,null,null,null,null,null,null,"","","","","","","","","","","","","",""]
[null,45,"",0,null,"",null,null,null,null,null,null,null,null,null,null,null,"","","","","","","","","","","","","",""]
[null,46,"",0,null,"",null,null,null,null,null,null,null,null,null,null,null,"","","","","","","","","","","","","",""]
[null,47,"",{"$f":"IF(F66<>\"\",1,0)","v":0},null,"",null,null,null,null,null,null,null,null,null,null,null,"","","","","","","","","","","","","",""]
[null,48,"",0,null,"",null,null,null,null,null,null,null,null,null,null,null,"","","","","","","","","","","","","",""]
[null,49,"",0,null,"",null,null,null,null,null,null,null,null,null,null,null,"","","","","","","","","","","","","",""]
[null,50,"",0,null,"",null,null,null,null,null,null,null,null,null,null,null,"","","","","","","","","","","","","",""]
[null,51,"",0,null,"",null,null,null,null,null,null,null,null,null,null,null,"","","","","","","","","","","","","",""]
[null,52,"",0,null,"",null,null,null,null,null,null,null,null,null,null,null,"","","","","","","","","","","","","",""]
[null,53,"",0,null,"",null,null,null,null,null,null,null,null,null,null,null,"","","","","","","","","","","","","",""]
[null,54,"",0,null,"",null,null,null,null,null,null,null,null,null,null,null,"","","","","","","","","","","","","",""]
[null,55,"",0,null,"",null,null,null,null,null,null,null,null,null,null,null,"","","","","","","","","","","","","",""]
[null,56,"",0,null,"",null,null,null,null,null,null,null,null,null,null,null,"","","","","","","","","","","","","",""]
[null,57,"",0,null,"",null,null,null,null,null,null,null,null,null,null,null,"","","","","","","","","","","","","",""]
[null,58,"",0,null,"",null,null,null,null,null,null,null,null,null,null,null,"","","","","","","","","","","","","",""]
[null,59,"",0,null,"",null,null,null,null,null,null,null,null,null,null,null,"","","","","","","","","","","","","",""]
[null,60,"",0,null,"",null,null,null,null,null,null,null,null,null,null,null,"","","","","","","","","","","","","",""]
[null,61,"",0,null,"",null,null,null,null,null,null,null,null,null,null,null,"","","","","","","","","","","","","",""]
[null,62,"",0,null,"",null,null,null,null,null,null,null,null,null,null,null,"","","","","","","","","","","","","",""]
[null,63,"",0,null,"",null,null,null,null,null,null,null,null,null,null,null,"","","","","","","","","","","","","",""]
[null,64,"",0,null,"",null,null,null,null,null,null,null,null,null,null,null,"","","","","","","","","","","","","",""]
[null,65,{"$f":"$A$11","v":""},0,null,"",null,null,null,null,null,null,null,null,null,null,null,"","","","","","","","","","","","","",""]
[null,66,"",0,null,{"$f":"IF(AND($B85<=$N$12,$C85=1),$B85,\"\")","v":""},null,null,null,null,null,null,null,null,null,null,null,"","","","","","","","","","","","","",""]
[null,{"$f":"B85+1","v":67},"",0,null,"",null,null,null,null,null,null,null,null,null,null,null,"","","","","","","","","","","","","",""]
[null,68,"",0,null,"",null,null,null,null,null,null,null,null,null,null,null,"","","","","","","","","","","","","",""]
[null,69,"",0,null,"",null,null,null,null,null,null,null,null,null,null,null,"","","","","","","","","","","","","",""]
[null,70,"",0,null,"",null,null,null,null,null,null,null,null,null,null,null,"","","","","","","","","","","","","",""]
[null,71,"",0,null,"",null,null,null,null,null,null,null,null,null,null,null,"","","","","","","","","","","","","",""]
[null,72,"",0,null,"",null,null,null,null,null,null,null,null,null,null,null,"","","","","","","","","","","","","",""]
[null,73,"",0,null,"",null,null,null,null,null,null,null,null,null,null,null,"","","","","","","","","","","","","",""]
[null,74,"",0,null,"",null,null,null,null,null,null,null,null,null,null,null,"","","","","","","","","","","","","",""]
[null,75,"",0,null,"",null,null,null,null,null,null,null,null,null,null,null,"","","","","","","","","","","","","",""]
[null,76,"",0,null,"",null,null,null,null,null,null,null,null,null,null,null,"","","","","","","","","","","","","",""]
[null,77,"",0,null,"",null,null,null,null,null,null,null,null,null,null,null,"","","","","","","","","","","","","",""]
[null,78,"",0,null,"",null,null,null,null,null,null,null,null,null,null,null,"","","","","","","","","","","","","",""]
[null,79,"",0,null,"",null,null,null,null,null,null,null,null,null,null,null,"","","","","","","","","","","","","",""]
[null,80,"",0,null,"",null,null,null,null,null,null,null,null,null,null,null,"","","","","","","","","","","","","",""]
[null,81,"",0,null,"",null,null,null,null,null,null,null,null,null,null,null,"","","","","","","","","","","","","",""]
[null,82,"",0,null,"",null,null,null,null,null,null,null,null,null,null,null,"","","","","","","","","","","","","",""]
[null,83,"",0,null,"",null,null,null,null,null,null,null,null,null,null,null,"","","","","","","","","","","","","",""]
[null,84,"",0,null,"",null,null,null,null,null,null,null,null,null,null,null,"","","","","","","","","","","","","",""]
[null,85,"",0,null,"",null,null,null,null,null,null,null,null,null,null,null,"","","","","","","","","","","","","",""]
[null,86,"",0,null,""]
[null,87,"",0,null,""]
[null,88,"",0,null,""]
[null,89,"",0,null,""]
[null,90,"",0,null,""]
[null,91,"",0,null,""]
[null,92,"",0,null,""]
[null,93,"",0,null,""]
[null,94,"",0,null,""]
[null,95,"",0,null,""]
[null,96,"",0,null,""]
[null,97,"",0,null,""]
[null,98,"",0,null,""]
[null,99,"",0,null,""]
[null,100,"",0,null,"",null,null,null,null,null,null,null,null,null,null,null,"","","","","","","","","","","","","",""]
[null,null,null,null,null,null,null,""]
[null,null,null,null,null,"Limite",null,"Limite","Limite","Limite","Limite","Limite","Limite","Limite","Limite",null,"Limite"]

{"sheet":"C400","index":5,"n_rows":42,"n_cols":11,"rows_kept":42,"cut":false,"hidden":false,"merged":[[6,1,6,11],[0,9,3,11],[1,3,1,8],[2,3,2,8],[18,9,19,9],[16,7,18,7],[16,8,17,10],[18,10,19,10],[18,8,19,8],[24,2,26,2],[22,2,23,2],[20,2,21,2],[16,6,18,6],[16,4,19,4],[16,2,19,2]]}
[null,null,null,null,null,null,null,null,null,"1A"]
[null,null,null,"CENSO EDUCATIVO 2022"]
[null,null,null,"MATRÍCULA, DOCENTES Y MATERIALES EDUCATIVOS"]
[]
[]
[]
[null,"400. MATERIALES EDUCATIVOS (Solo para gestión pública)"]
[]
[]
[null,null,"401. ¿RECIBIÓ MATERIALES CORRESPONDIENTES A LA DOTACIÓN 2022? "]
[]
[null,null,"Sí    ",null,"No  ",null,null,"Pase a la sección 500."]
[]
[]
[null,null,"402. MATERIALES EDUCATIVOS"]
[]
[null,null,"Beneficiarios",null,"Material Educativo",null,"¿Recibio los materiales?","¿ En que fecha recibio los materiales ?","Cantidad de Material"]
[]
[null,null,null,null,null,{"$f":"COUNTIF(G21:G27,\"NO\")","v":0},null,null,"Total Recibido","Material Sobrante","Material Faltante"]
[null,null,null,null,null,{"$f":"COUNTIF(G21:G27,\"SI\")+COUNTIF(G21:G27,\"NO\")","v":0}," SI - NO","Día/Mes/Año"]
[null,null,"Niños y niñas de 4 y 5 años","01","Material impreso para niños y niñas de 4 años"]
[null,null,null,"02","Material impreso para niños y niñas de 5 años"]
[null,null,"Niños y niñas de 4 y 5 años EIB","03","Cuaderno de trabajo en lengua originaria para niños(as) de 4 años"]
[null,null,null,"04","Cuaderno de trabajo en lengua originaria para niños(as) de 5 años"]
[null,null,"AULA","05","Texto - Cancionero en lengua originaria"]
[null,null,null,"06","Texto - Cartillas de animales en lengua originaria"]
[null,null,null,"07","Texto - Historias y relatos en lengua originaria"]
[]
[]
[null,null,"403. EL MATERIAL IMPRESO RECIBIDO, ¿CORRESPONDE A LA LENGUA DE LOS ESTUDIANTES?"]
[]
[null,null,"Sí    ",null,"No  "]
[]
[]
[null,null,"404. EL MATERIAL IMPRESO RECIBIDO, ¿SE ENCUENTRA EN EL AULA?"]
[]
[null,null,"Sí    ",null,"No  "]
[]
[]
[null,null,"405. LOS MATERIALES EDUCATIVOS (IMPRESO Y CONCRETO), ¿SE ENCUENTRA AL ALCANCE DE LOS NIÑOS Y NIÑAS?"]
[]
[null,null,"Sí    ",null,"No  "]

{"sheet":"C500","index":6,"n_rows":92,"n_cols":22,"rows_kept":92,"cut":false,"hidden":false,"merged":[[16,10,16,11],[17,10,17,11],[15,10,15,11],[11,2,13,6],[11,8,13,8],[11,9,13,9],[11,10,13,11],[14,10,14,11],[18,10,18,11],[19,10,19,11],[20,10,20,11],[21,10,21,11],[23,10,23,11],[23,13,26,21],[24,10,24,11],[26,10,26,11],[25,10,25,11],[70,15,70,17],[36,10,37,10],[49,10,50,10],[0,20,3,22],[1,4,1,19],[2,4,2,19],[59,18,60,21],[87,6,87,10],[84,16,84,20],[6,1,6,22],[69,15,69,17],[59,13,61,17],[60,2,62,6],[60,7,61,10],[22,10,22,11],[34,2,36,6],[34,7,35,10],[47,2,49,6],[47,7,48,10]]}
[null,null,null,null,null,null,null,null,null,null,null,null,null,null,null,null,null,null,null,null,"1A"]
[null,null,null,null,"CENSO EDUCATIVO 2022"]
[null,null,null,null,"MATRÍCULA, DOCENTES Y MATERIALES EDUCATIVOS"]
[]
[]
[]
[null,"500. OTROS RECURSOS DISPONIBLES PARA LA ENSEÑANZA (Para II.EE. Públicas y Privadas)"]
[]
[null,"501. EQUIPOS Y SERVICIOS QUE DISPONE EL SERVICIO/NIVEL EDUCATIVO",null,null,null,null,null,null,null,null,null,"SI","502. ¿QUÉ EDADES ATENDIDAS CUENTAN CON UNA BIBLIOTECA DE AULA?"]
[null,null,"  EXCLUSIVO DEL NIVEL",null,null,null,null,null,null,null,null,"NO",null,"   DETALLE EL NÚMERO DE EJEMPLARES (LIBROS QUE LA CONFORMAN)."]
[]
[null,null,"EQUIPOS Y SERVICIOS",null,null,null,null,null,"¿Cuán tos tiene?","¿Cuán tos estan operativos?","¿Son utilizados para la enseñanza en interacción con los estudiantes?\nSí - No",null,null,"(Marque con una “X” la edad correspondiente y anote el"]
[null,null,null,null,null,null,null," SI - NO",null,null,null,null,null,"número total de ejemplares según corresponda)."]
[null,null,null,null,null,null,null,{"$f":"COUNTIF(H15:H27,\"SI\")+COUNTIF(H15:H27,\"NO\")","v":0},null,null,null,null,null,"Edad Atendida",null,null,null,null,null,"Nº Total de Ejemplares"]
[null,null,"01","Televisor(es)",null,null,null,null,null,null,null,null,null,null,null," 0 años","----------------------"]
[null,null,"02","Computadoras (PC de escritorio)",null,null,null,null,null,null,null,null,null,null,null," 1 año","----------------------"]
[null,null,"03","Laptop convencionales",null,null,null,null,null,null,null,null,null,null,null," 2 años","----------------------"]
[null,null,"04","Laptop XO",null,null,null,null,null,null,null,null,null,null,null," 3 años","----------------------"]
[null,null,"05"," Servidores (exclusivo del nivel)",null,null,null,null,null,null,null,null,null,null,null," 4 años","----------------------"]
[null,null,"06","Tablets",null,null,null,null,null,null,null,null,null,null,null," 5 años y más","----------------------"]
[null,null,"07","Proyector",null,null,null,null,null,null,null,null,null,null,null," NINGÚNA EDAD",null,null,null,{"$f":"SUM(T15:T20)","v":0}]
[null,null,"08","Radiograbadora"]
[null,null,"09","Reproductor de DVD o Blue Ray"]
[null,null,"10","Impresoras",null,null,null,null,null,null,null,null,null,"Las bibliotecas de aula están constituidas por libros, láminas y otros materiales didácticos similares, puestos al alcance de los estudiantes en el aula."]
[null,null,11,"Pizarras digitales"]
[null,null,12,"Modem"]
[null,null,13,"Servicio de Internet"]
[]
[]
[null,"INTERNET, SEGURIDAD E IMPLEMENTACION"]
[null,"503. SOBRE EL ACCESO A INTERNET EN LAS INSTALACIONES DONDE FUNCIONA EL",null,null,null,null,null,null,null,null,null,null,"506. SEÑOR(A) DIRECTOR(A) ¿CUAL(ES) DISPOSITIVO(S) INFORMATICO(S)"]
[null,null,"   SERVICIO/NIVEL EDUCATIVO",null,null,null,null,null,null,null,null,null,null,"  UTILIZA PRINCIPALMENTE PARA REALIZAR LAS LABORES DE GESTION"]
[null,null,"  (Marque con una “X” según corresponda)",null,null,null,null,null,null,null,null,null,null,"  DE ESTE SERVICIO/NIVEL EDUCATIVO EN SU HOGAR?"]
[null,null,null,null,null,null,null,null,null,null,null,null,null,null,"  (Marque con una “X”, una o más opciones)"]
[null,null,"ACTOR",null,null,null,null,"¿Tienen acceso a internet en el Servicio Educativo?",null,null,null,null,null,"",null,"Trabajo con una PC"]
[null,null,null,null,null,null,null,null,null,null,null,null,null,"",null,"Trabajo con una Laptop"]
[null,null,null,null,null,null,null," Sí,"," Sí, la"," Sí,","Ninguno",null,null,"",null,"Trabajo con una Tablet"]
[null,null,null,null,null,null,{"$f":"SUM(G39:G42)","v":0},"Todos","Mayoria","Algunos",null,null,null,"",null,"Trabajo con un Celular"]
[null,null,"01","Los estudiantes",null,null,{"$f":"COUNTIF(H39:K39,\"X\")","v":0},null,null,null,null,null,null,"",null,"No, no cuento con ninguno de los anteriores"]
[null,null,"02","El personal directivo",null,null,{"$f":"COUNTIF(H40:K40,\"X\")","v":0}]
[null,null,"03","El personal docente",null,null,{"$f":"COUNTIF(H41:K41,\"X\")","v":0},null,null,null,null,null,"507. EN ESTE NIVEL/SERVICIO EDUCATIVO, ¿SE ENCUENTRA BENEFICIADO"]
[null,null,"04","El personal administrativo",null,null,{"$f":"COUNTIF(H42:K42,\"X\")","v":0},null,null,null,null,null,null,"  POR EL PLAN DE DATOS OTORGADO POR EL MINEDU?"]
[]
[null,null,null,null,null,null,null,null,null,null,null,null,null," Sí",null,null,"¿Cuál es la cantidad de profesores y"]
[null,"504. SOBRE EL ACCESO A INTERNET EN EL DOMICILIO",null,null,null,null,null,null,null,null,null,null,null,null,null,null,"auxiliares de educación, beneficiados?"]
[null,null,"  (Marque con una “X” según corresponda)"]
[null,null,null,null,null,null,null,null,null,null,null,null,null," No",null,null,"Pase a la pregunta 509."]
[null,null,"ACTOR",null,null,null,null,"¿Tienen acceso a internet en su domicilio?"]
[null,null,null,null,null,null,null,null,null,null,null,null,"508. SOBRE EL PLAN DE DATOS OTORGADOS POR EL MINEDU, ¿CREE UD. QUE LA"]
[null,null,null,null,null,null,null," Sí,"," Sí, la"," Sí,","Ninguno",null,null,"  MEDIDA IMPLEMENTADA CONTRIBUYÓ AL EJERCICIO DE LAS FUNCIONES"]
[null,null,null,null,null,null,{"$f":"SUM(G52:G55)","v":0},"Todos","Mayoria","Algunos",null,null,null,"  DE PROFESORES Y AUXILIARES DE EDUCACIÓN?"]
[null,null,"01","Los estudiantes",null,null,{"$f":"COUNTIF(H52:K52,\"X\")","v":0}]
[null,null,"02","El personal directivo",null,null,{"$f":"COUNTIF(H53:K53,\"X\")","v":0},null,null,null,null,null,null," Sí",null,"No  "]
[null,null,"03","El personal docente",null,null,{"$f":"COUNTIF(H54:K54,\"X\")","v":0}]
[null,null,"04","El personal administrativo",null,null,{"$f":"COUNTIF(H55:K55,\"X\")","v":0},null,null,null,null,null,"509. CON RESPECTO AL CONCOCIMIENTO Y ELABORACION DE CLASES VIRTUALES"]
[null,null,null,null,null,null,null,null,null,null,null,null,null,"  PARA LOS ESTUDIANTES. ¿CUÁL ES EL NIVEL DE USO DE LAS HERRAMIENTAS"]
[null,null,null,null,null,null,null,null,null,null,null,null,null,"  O PLATAFORMAS TECNOLOGICAS PARA ESTE FIN ?"]
[null,"505. EN EL PRESENTE AÑO, ¿CUENTAN CON PC O LAPTOP EN SU DOMICILIO?"]
[null,null,"(Marque con una “X” según corresponda)",null,null,null,null,null,null,null,null,null,null,"  (Marque con una “X”, según corresponda para cada caso)"]
[null,null,null,null,null,null,null,null,null,null,null,null,null,"HERRAMIENTA/PLATAFORMA TECNOLÓGICA PARA LA ELABORACIÓN DE CLASES VIRTUALES",null,null,null,null,"Nivel de uso de los docentes"]
[null,null,"ACTOR",null,null,null,null,"¿Cuéntan con Pc o Laptop en su domicilio?"]
[null,null,null,null,null,null,null,null,null,null,null,null,{"$f":"SUM(M63:M69)","v":0},null,null,null,null,null,"Todos","Mayoria","Algunos","Ninguno"]
[null,null,null,null,null,null,null," Sí,"," Sí, la"," Sí,",null,null,{"$f":"COUNTIF(S63:V63,\"X\")","v":0},"01","Moodle"]
[null,null,null,null,null,null,{"$f":"SUM(G65:G68)","v":0},"Todos","Mayoria","Algunos","Ninguno",null,{"$f":"COUNTIF(S64:V64,\"X\")","v":0},"02","Canvas"]
[null,null,"01","Los estudiantes",null,null,{"$f":"COUNTIF(H65:K65,\"X\")","v":0},null,null,null,null,null,0,"03","Zoom"]
[null,null,"02","El personal directivo",null,null,{"$f":"COUNTIF(H66:K66,\"X\")","v":0},null,null,null,null,null,0,"04","Meet"]
[null,null,"03","El personal docente",null,null,{"$f":"COUNTIF(H67:K67,\"X\")","v":0},null,null,null,null,null,0,"05","Teams"]
[null,null,"04","El personal administrativo",null,null,{"$f":"COUNTIF(H68:K68,\"X\")","v":0},null,null,null,null,null,0,"06","Whatsapp"]
[null,null,null,null,null,null,null,null,null,null,null,null,0,"07","Facebook/Messenger"]
[null,null,null,null,null,null,null,null,null,null,null,null,0,"08","Otro 1",""]
[null,null,null,null,null,null,null,null,null,null,null,null,0,"09","Otro 2",""]
[]
[]
[null,"600. EDUCACIÓN FÍSICA Y DEPORTE (Para II.EE. Públicas y Privadas)"]
[]
[null,"A. ACTIVIDAD FÍSICA Y PSICOMOTRICIDAD"]
[null,"601. DURANTE EL AÑO 2021, EN ESTE SERVICIO/NIVEL EDUCATIVO, ¿SE FOMENTÓ",null,null,null,null,null,null,null,null,null,null,"602. EN EL PRESENTE AÑO, ¿ESTE SERVICIO/NIVEL EDUCATIVO TIENE PLANIFICADO"]
[null,null,"LA REALIZACIÓN DE ACTIVIDADES FÍSICAS O DEPORTE, CON LA FINALIDAD",null,null,null,null,null,null,null,null,null,null,"  LA EJECUCIÓN DE TALLERES COMPLEMENTARIOS?"]
[null,null,"DE PRIORIZAR EL CUIDADO DEL ESTUDIANTE Y SU BIENESTAR INTEGRAL?"]
[null,null,null,null,null,null,null,null,null,null,null,null,null," Sí",null,"No  "]
[null,null," Sí",null,"No  "]
[null,null,null,null,null,null,null,null,null,null,null,null,null,null,null,"(Marque con una “X”, una o más opciones)"]
[null,null,null,null,"(Marque con una “X”, una o más opciones)",null,null,null,null,null,null,null,null,null,null,"Orquestando"]
[null,null,null,null,"Actividades de movimiento",null,null,null,null,null,null,null,null,null,null,"Talleres deportivos recreativos"]
[null,null,null,null,"Actividades de deporte",null,null,null,null,null,null,null,null,null,null,"Otro"]
[null,null,null,null,"Actividades artístico culturales"]
[null,null,null,null,"Actividades complementarias de encuentro con la comunidad educativa",null,null,null,null,null,null,null,"603. ¿ESTE SERVICIO/NIVEL EDUCATIVO CUENTA CON TALLER DE PSICOMOTRICIDAD?"]
[null,null,null,null,"Otras Actividades"]
[null,null,null,null,null,null,null,null,null,null,null,null,null,null,null,null,null,null,null,"Nro. de horas"]
[null,null,null,null,null,null,null,null,null,null,null,null,null," Sí",null,null,"¿Cuántas horas?"]
[]
[null,null,null,null,null,null,null,null,null,null,null,null,null," No"]

{"sheet":"C700","index":7,"n_rows":247,"n_cols":20,"rows_kept":247,"cut":false,"hidden":false,"merged":[[31,8,32,8],[37,5,38,7],[37,8,38,8],[40,5,40,7],[44,5,45,7],[46,5,47,7],[41,8,42,8],[48,5,50,7],[48,8,50,8],[22,4,22,7],[23,2,30,3],[23,5,24,7],[23,8,24,8],[25,5,26,7],[27,5,28,7],[27,8,28,8],[29,5,30,7],[29,8,30,8],[25,8,26,8],[238,16,238,17],[236,16,237,17],[234,15,235,17],[31,2,34,3],[51,5,52,7],[51,8,52,8],[64,2,64,3],[64,4,64,5],[64,6,64,7],[35,2,36,3],[73,8,74,8],[226,13,226,16],[188,7,189,8],[99,5,99,7],[119,13,119,16],[37,2,47,3],[43,5,43,7],[46,8,47,8],[44,8,45,8],[41,5,42,7],[193,2,193,3],[194,2,194,3],[195,2,195,3],[48,2,52,3],[246,4,246,7],[62,16,62,18],[101,13,101,16],[107,11,107,14],[108,11,108,14],[109,11,109,14],[110,12,110,14],[112,7,112,8],[75,8,77,8],[65,8,66,8],[67,8,68,8],[69,8,70,8],[71,8,72,8],[122,13,122,16],[123,13,123,16],[124,14,124,16],[188,5,189,6],[146,14,147,14],[167,18,168,18],[166,17,166,19],[153,12,153,13],[166,11,168,13],[194,13,194,16],[195,13,195,16],[238,11,238,14],[239,11,239,14],[240,11,240,14],[236,15,237,15],[234,11,237,14],[227,14,227,16],[225,13,225,16],[146,15,147,15],[181,11,181,14],[182,11,182,14],[179,11,179,14],[196,13,196,16],[197,13,197,16],[170,11,170,13],[171,11,171,13],[166,14,166,16],[167,15,168,15],[240,16,240,17],[239,16,239,17],[146,17,147,17],[149,11,149,13],[150,11,150,13],[183,11,183,14],[184,11,184,14],[224,13,224,16],[207,13,207,15],[208,13,208,15],[209,13,209,15],[210,13,210,15],[211,13,211,15],[145,11,147,13],[172,12,172,13],[146,16,147,16],[148,11,148,13],[145,14,145,17],[198,14,198,16],[169,11,169,13],[185,12,185,14],[180,11,180,14],[81,13,84,17],[120,13,120,16],[151,11,151,13],[152,11,152,13],[0,17,3,19],[1,3,1,16],[2,3,2,16],[222,13,222,16],[223,13,223,16],[121,13,121,16],[132,13,132,14],[188,4,189,4],[31,5,32,7],[79,15,79,17],[93,5,93,7],[151,6,151,8],[172,5,172,7],[197,2,197,3],[191,2,191,3],[192,2,192,3],[188,2,190,3],[196,2,196,3],[6,1,6,19],[22,2,22,3]]}
[null,null,null,null,null,null,null,null,null,null,null,null,null,null,null,null,null,"1A"]
[null,null,null,"CENSO EDUCATIVO 2022"]
[null,null,null,"MATRÍCULA, DOCENTES Y MATERIALES EDUCATIVOS"]
[]
[]
[]
[null,"700. FORTALECIMIENTO DE LA GESTIÓN"]
[]
[null,"701. ESTE SERVICIO/NIVEL EDUCATIVO ¿COORDINA ALGUNA ACCIÓN CON EL",null,null,null,null,null,null,null,null,"721. DESDE QUE EMPEZASTE TU CARRERA COMO DOCENTE, ¿CUÁNTOS AÑOS DE "]
[null,null,"GOBIERNO LOCAL (DISTRITAL O PROVINCIAL) PARA MEJORAR LA",null,null,null,null,null,null,null,null,"  EXPERIENCIA TIENES COMO?"]
[null,null,"PRESTACIÓN DEL SERVICIO EDUCATIVO?"]
[null,null,null,null,null,null,null,null,null,null,null,null,"  (Marque con una “X”, una opción)"]
[null,"1: Siempre",null,"Sí    ",null,null,"No  ",null,"Pase a la",null,null,null,null,"Directivo encargado_cantidad de años"]
[null,"2: Casi Siempre",null,null,null,null,null,null,"pregunta 703."]
[null,"3: A Veces",null,null,null,"  (Marque con una “X”, una opción)",null,null,null,null,null,null,null,"Directivo designado_cantidad de años"]
[null,"4: Casi Nunca",null,null,null,"Con Municipalidad Distrital"]
[null,"5: Nunca",null,null,null,"Con Municipalidad Provincial",null,null,null,null,"722. CON QUÉ FRECUENCIA VISITA EL PORTAL WEB PARA DIRECTIVO DE I.E."]
[null,null,null,null,null,"Con ambas",null,null,null,null,null,"  DEL MINEDU (https://directivos.minedu.gob.pe/)?"]
[]
[null,"702. FRECUENCIA DE LA ACCION QUE AYUDA EL GOBIERNO LOCAL PARA",null,null,null,null,null,null,null,null,null,"  (Marque con una “X”, una opción)"]
[null,null,"MEJORAR LA PRESTACIÓN DEL SERVICIO",null,null,null,null,null,null,null,null,null,"Frecuentemente"]
[null,null,null,null,null,null,null,null,null,null,null,null,"Poca frecuencia"]
[null,{"$f":"SUM(B24:B53)","v":0},"COMPONENTE",null,"ACCIÓN",null,null,null,"FRECUENCIA",null,null,null,"Casi nunca"]
[null,{"$f":"IF(I24<>\"\",1,0)","v":0},"Infraestructura",null,"01","Proyecto de inversión pública para el mejoramiento o ampliación del local escolar",null,null,null,null,null,null,"No visito el portal web",null,null,"Pase a la pregunta 725."]
[]
[null,{"$f":"IF(I26<>\"\",1,0)","v":0},null,null,"02","Apoyo y asistencia técnica para el uso de recursos de mantenimiento preventivo",null,null,null,null,"723. CONSIDERAS QUE LA INFORMACIÓN QUE ENCUENTRAS EN EL PORTAL WEB "]
[null,null,null,null,null,null,null,null,null,null,null,"  DE DIRECTIVOS ES ÚTIL?"]
[null,{"$f":"IF(I28<>\"\",1,0)","v":0},null,null,"03","Gestiones para el acceso a servicios básicos de IIEE"]
[null,null,null,null,null,null,null,null,null,null,null,"  (Marque con una “X”, una opción)"]
[null,{"$f":"IF(I30<>\"\",1,0)","v":0},null,null,"04","Adquisición de mobiliario y equipamiento para la IIEE",null,null,null,null,null,null,"Muy útil"]
[null,null,null,null,null,null,null,null,null,null,null,null,"Útil"]
[null,{"$f":"IF(I32<>\"\",1,0)","v":0},"Aprendizajes",null,"05","Proyecto de inversión pública para la mejora de los aprendizajes",null,null,null,null,null,null,"Poco útil"]
[null,null,null,null,null,null,null,null,null,null,null,null,"Nada útil"]
[null,{"$f":"IF(I34<>\"\",1,0)","v":0},null,null,"06","Programas de reforzamiento escolar"]
[null,{"$f":"IF(I35<>\"\",1,0)","v":0},null,null,"07","Apoyo con material educativo",null,null,null,null,"724. QUÉ CONTENIDOS NORMATIVOS ESPERARÍA ENCONTRAR EN EL PORTAL"]
[null,{"$f":"IF(I36<>\"\",1,0)","v":0},"Docentes",null,"08","Contratación de docentes",null,null,null,null,null,"  WEB PARA DIRECTIVO DE IE DEL MINEDU?"]
[null,{"$f":"IF(I37<>\"\",1,0)","v":0},null,null,"09","Talleres o cursos de capacitación"]
[null,{"$f":"IF(I38<>\"\",1,0)","v":0},"Gestión",null,"10","Articulación local con actores públicos y privados a nivel local",null,null,null,null,null,"  (Marque con una “X”, hasta dos opciones)"]
[null,null,null,null,null,null,null,null,null,null,{"$f":"COUNTIF(L39:L42,\"X\")","v":0},null,"Sobre sus funciones"]
[null,{"$f":"IF(I40<>\"\",1,0)","v":0},null,null,"11","Atención de casos en DEMUNA",null,null,null,null,null,null,"Sobre los documentos de gestión de debe elaborar"]
[null,{"$f":"IF(I41<>\"\",1,0)","v":0},null,null,"12","Articulación con UGEL y DRE de su ámbito",null,null,null,null,null,null,"Sobre su rol de líder pedagógico "]
[null,{"$f":"IF(I42<>\"\",1,0)","v":0},null,null,"13","Gestiones para la instalación de servicios básicos de conectividad",null,null,null,null,null,null,"Sobre las faltas en las que podría incurrir de incumplir sus funciones "]
[]
[null,{"$f":"IF(I44<>\"\",1,0)","v":0},null,null,"14","Apoyo con alimentación para estudiantes",null,null,null,null,"725. DESDE EL 2019 A LA FECHA DE APLICACIÓN DEL CENSO 2022, ¿CONOCE"]
[null,{"$f":"IF(I45<>\"\",1,0)","v":0},null,null,"15","Vivienda y alimentación para docentes (zonas rurales, fronteras, etc)",null,null,null,null,null,"  LAS NORMAS QUE REGULAN SUS FUNCIONES COMO DIRECTOR?"]
[]
[null,{"$f":"IF(I47<>\"\",1,0)","v":0},null,null,"16","Apoyo con movilidad local para estudiantes y docentes",null,null,null,null,null,"Sí    ",null,null,"No  "]
[]
[null,{"$f":"IF(I49<>\"\",1,0)","v":0},"Recuperación",null,"17","Promoción de acciones comunitarias para identificación de estudiantes que interrumpen estudios",null,null,null,null,"726. TIENE CONOCIMIENTO QUE EXISTE UNA HERRAMIENTA DIGITAL PARA LA"]
[null,null,null,null,null,null,null,null,null,null,null,"  EMISIÓN DE CERTIFICADOS DE ESTUDIOS?"]
[]
[null,{"$f":"IF(I52<>\"\",1,0)","v":0},null,null,"18","Impulso del registro nominal de estudiantes en Alerta Escuela por parte de directores de II.EE",null,null,null,null,null,"Sí    "]
[null,null,null,null,null,null,null,null,null,null,null,null,null,null,null,"¿Has hecho uso de la herramienta?"]
[null,null,null,null,null,null,null,null,{"$f":"COUNTIF(I24:I53,\"5: Nunca\")","v":0},null,null,null,null,null,"Sí    ",null,null,"No  "]
[null,"703. ¿iNCORPORA LA SEGURIDAD Y DEFENSA NACIONAL EN LOS INSTRUMENTOS"]
[null,null,"DE GESTIÓN Y PLANIFICACIÓN CURRICULAR PARA EL DESARROLLO DE UNA"]
[null,null,"CULTURA DE PAZ, Y FORTALECIMIENTO DE LA IDENTIDAD NACIONAL?",null,null,null,null,null,null,null,null,null,null,null,"¿Por qué?"]
[null,null,null,null,null,null,null,null,null,null,null,null,null,null,"(Marque con una \"X\", una o más opciones)"]
[null,null,null,"Sí    ",null,null,"No  ",null,null,null,null,null,null,null,null,"Baja demanda educativa o pocos estudiantes"]
[null,null,null,null,null,null,null,null,null,null,null,"No    ",null,null,null,"la IE que dirijo es multigrado"]
[null,null,null,null,null,null,null,null,null,null,null,null,null,null,null,"Bajo o escaso acceso a internet en la localidad"]
[null,"704. SOBRE LA GESTIÓN DEL RIESGO DE DESASTRES Y LA SEGURIDAD EN ESTE",null,null,null,null,null,null,null,null,null,null,null,null,null,"En la localidad se habla otra lengua distinta al español"]
[null,null,"NIVEL/ SERVICIO EDUCATIVO, ATIENDA LAS SIGUIENTES PREGUNTAS:",null,null,null,null,null,null,null,null,null,null,null,null,"Otro motivo"]
[]
[null,null,null,null,"PREGUNTA",null,null,null,"RESPUESTA",null,"727. EN SU OPINIÓN, ¿CUÁL DE LAS SIGUIENTES ALTERNATIVAS CONSIDERA MÁS ÚTIL, SI SE"]
[null,{"$f":"IF(I66<>\"\",1,0)","v":0},"¿Incorpora la Gestión del Riesgo de Desastres en los instrumentos de",null,null,null,null,null,null,"01",null,"  IMPLEMENTA EL SISTEMA DE MATRÍCULA DIGITAL /1 EN SU JURISDICCIÓN? "]
[null,null,"Gestión y Planificación Curricular para el desarrollo de una cultura de …",null,null,null,null,null,null,null,null,null,"  (Marque con una “X”, una opción)"]
[null,{"$f":"IF(I68<>\"\",1,0)","v":0},"¿El Plan de Gestión de Riesgo de Desastres contiene acciones con",null,null,null,null,null,null,"02",null,null,null,"Reducción carga administrativa"]
[null,null,"enfásis en la contingencia ante la emergencia sanitaria por Covid19?",null,null,null,null,null,null,null,null,null,null,"Mayor transparencia en los procesos de admisión de los estudiantes"]
[null,{"$f":"IF(I70<>\"\",1,0)","v":0},"Las zonas seguras para el desplazamiento de los miembros de la comu-",null,null,null,null,null,null,"03",null,null,null,"Mejoras en la difusión de vacantes"]
[null,null,"nidad educativa y las rutas de evacuación ¿se encuentran señalizadas?",null,null,null,null,null,null,null,null,null,null,"Mejoras en la difusión de información sobre las características de su IE"]
[null,{"$f":"IF(I72<>\"\",1,0)","v":0},"¿Se cuenta con el mínimo de dispositivos de seguridad",null,null,null,null,null,null,"04",null,null,null,"No sería útil"]
[null,null,"para situaciones de emergencia y desastres?"]
[null,{"$f":"IF(I74<>\"\",1,0)","v":0},"¿Fomenta la participación, compromiso y responsabilidad",null,null,null,null,null,null,"05",null,null,null,"¿Por qué?"]
[null,null,"sobre la Gestión del Riesgo de Desastres en la comunidad educativa?",null,null,null,null,null,null,null,null,null,null,"(Marque con una \"X\", una o más opciones)"]
[null,{"$f":"IF(I76<>\"\",1,0)","v":0},"¿Desarrolla actividades de soporte socioemcional como el autocuidado,",null,null,null,null,null,null,"06",null,null,null,null,"Baja demanda educativa o pocos estudiantes"]
[null,null,"la autoprotección y la resilencia en la comunidad educativa como",null,null,null,null,null,null,null,null,null,null,null,"la IE que dirijo es multigrado"]
[null,null,"respuesta ante situaciones de emergencias y desastres?",null,null,null,null,null,null,null,null,null,null,null,"Bajo o escaso acceso a internet en la localidad"]
[null,null,null,null,null,null,null,null,{"$f":"COUNTIF(I66:I78,\"SI\")+COUNTIF(I66:I78,\"NO\")","v":0},null,null,null,null,null,"En la localidad se habla otra lengua distinta al español"]
[null,null,null,null,null,null,null,null,null,null,null,null,null,null,"Otro motivo"]
[null,"705. EN ESTE SERVICIO/NIVEL EDUCATIVO, ¿SE CUENTA CON PERSONAL QUE"]
[null,null,"SE ENCUENTRE DENTRO DEL GRUPO DE RIESGO DE LA COVID19 SEGÚN LO",null,null,null,null,null,null,null,null,null,null,"/1 Matrícula Digital, es un sistema a través del cual las familias podrán realizar el proceso de matrícula para primer ingreso, reincorporación o traslado, de forma gratuita sin exámenes ni colas, ya que todo el proceso se realiza de manera virtual"]
[null,null,"DEFINIDO POR EL NUMERAL 6.1.17 DE LA RM N° 972-2020-MINSA"]
[]
[null,null,"Sí    ",null,null,"No  "]
[]
[null,null,null,null,"Indique la cantidad de personal del grupo de riesgo:",null,null,null,null,null,"728. SEÑOR(A) DIRECTOR(A),¿USTED HA PARTICIPADO EN CURSOS, CAPACITACIONES Y/O"]
[null,null,null,null,null,null,null,null,null,null,null,"  CONGRESOS PARA EL FORTALECIMIENTO DE SU FORMACIÓN DOCENTE EN LOS ÚLTIMOS"]
[null,null,null,null,"Directivos y docentes:",null,null,null,null,null,null,"  DOS AÑOS?"]
[null,null,null,null,"Administrativos y No docentes:"]
[null,null,null,null,null,null,null,null,null,null,null,"Sí    ",null,null,"No  ",null,null,"Pase a la pregunta 730."]
[null,"706. ¿CUÁL ES LA PRIMERA PALABRA QUE SE LE VIENE A LA MENTE CUANDO"]
[null,null,"PIENSA O ESCUCHA ‘’MINISTERIO DE EDUCACIÓN’’",null,null,null,null,null,null,null,"729. QUÉ ASPECTOS DE SU FORMACIÓN DOCENTE HA FORTALECIDO EN SUS CURSOS,"]
[null,null,"Escriba solo una palabra",null,null,null,null,null,null,null,null,"  CAPACITACIONES Y/O CONGRESOS EN ESTOS DOS ÚLTIMOS AÑOS?"]
[]
[null,"707. ¿CON CUÁL DE LOS SIGUIENTES LEMAS O FRASES ASOCIA AL MINEDU?",null,null,null,null,null,null,null,null,null,"  (Marque con una “X”, una o más opciones)"]
[null,null,null,null,"Mejor educación, mejores peruanos",null,null,null,null,null,null,null,"Metodología"]
[null,null,null,null,"La educación no para",null,null,null,null,null,null,null,"Competencia lingüística"]
[null,null,null,null,"No asocio un lema específico al MINEDU",null,null,null,null,null,null,null,"Innovación y/o proyectos de innovación"]
[null,null,null,null,"Otro",null,null,null,null,null,null,null,"Enfoques e instrumentos para investigar en el aula"]
[null,null,null,null,null,null,null,null,null,null,null,null,"Competencia socioemocional y/o habilidades socioemocionales"]
[null,"708. ¿QUÉ EMOCIONES ASOCIA CON EL MINEDU?",null,null,null,null,null,null,null,null,null,null,"Otros"]
[null,null,null,null,"Positivas","(Alegría, entusiasmo, esperanza, otras)"]
[null,null,null,null,"Neutra",null,null,null,null,null,"730. EN EL AÑO 2022, ¿ESTE SERVICIO/NIVEL EDUCATIVO HA REALIZADO O PARTICIPADO EN"]
[null,null,null,null,"Negativas","(Tristeza, decepción, desconfianza, otras)",null,null,null,null,null,"  ACCIONES DE SEGURIDAD Y DEFENSA NACIONAL?"]
[]
[null,"709. ¿QUÉ CANAL DE COMUNICACIÓN UTILIZA PARA INFORMARSE SOBRE LAS",null,null,null,null,null,null,null,null,null,"  (Marque todas las opciones implementadas)"]
[null,null,"LAS NOVEDADES DEL MINEDU?",null,null,null,null,null,null,null,null,"Actividad",null,null,null,"Marcar con \"X\""]
[null,null,null,null,"SIAGIE",null,null,"Programas radiales",null,null,null,"Capacitaciones"]
[null,null,null,null,"Redes sociales",null,null,"Mensajes de texto",null,null,null,"Utilizado una estrategía comunicacional"]
[null,null,null,null,"Portales del Minedu",null,null,"Correo electrónico",null,null,null,"Otros"]
[null,null,null,null,"Programas televisivos",null,null,"Otro"]
[null,null,null,null,null,null,null,null,null,null,"731. EN EL AÑO 2022, ¿ESTE SERVICIO/NIVEL EDUCATIVO HA INCORPORADO ACCIONES DE"]
[null,null,null,null,null,null,null,null,null,null,null,"  GESTIÓN DEL RIESGO DE EMERGENCIAS Y DESASTRES EN SUS INSTRUMENTOS DE GESTIÓN "]
[null,"710. ¿CUÁLES SON LOS PRINCIPALES TEMAS QUE REQUIERE COMO CAPACITACIÓN PARA",null,null,null,null,null,null,null,null,null,"  VIGENTES?"]
[null,null,"MEJORAR SU DESEMPEÑO COMO DIRECTOR(A)?"]
[null,null,null,"  (Marque con una “X”, hasta 4 opciones)",null,null,null,null,null,null,null,"Sí    ",null,null,"No  "]
[null,null,{"$f":"COUNTIF(D118:D124,\"X\")","v":0},null,"Estrategias y didáctica de las áreas de aprendizaje"]
[null,null,null,null,"Evaluación de aprendizajes",null,null,null,null,null,null,null,null,"  Precise los documentos de gestión"]
[null,null,null,null,"Manejo de herramientas TIC y ofimáticas",null,null,null,null,null,null,null,null,"Documentos de Gestión",null,null,null,"Marcar con \"X\""]
[null,null,null,null,"Gestión del duelo y del bienestar socioemocional",null,null,null,null,null,null,null,null,"Proyecto Educativo Institucional (PEI)"]
[null,null,null,null,"Habilidades blandas para la gestión del equipo de docentes",null,null,null,null,null,null,null,null,"Plan Anual de Trabajo (PAT)"]
[null,null,null,null,"Relacionamiento institucional y gestión de alianzas",null,null,null,null,null,null,null,null,"Proyecto Currícular Institucional (PCI)"]
[null,null,null,null,"Participación estudiantil",null,null,null,null,null,null,null,null,"Reglamento Interno (RI)"]
[null,null,null,null,"Ninguno de los temas anteriores",null,null,null,null,null,null,null,null,"Otros"]
[]
[null,"711. DURANTE EL 2021 Y HASTA LA FECHA DEL CENSO 2022, ¿HA REALIZADO ACCIONES",null,null,null,null,null,null,null,null,"732. EN EL AÑO 2022, ¿ESTE SERVICIO/NIVEL EDUCATIVO CUENTA CON SU PLAN DE GESTIÓN DEL "]
[null,"        EN FAVOR DEL BIENESTAR SOCIOEMOCIONAL DE LOS ESTUDIANTES Y/O DE LOS",null,null,null,null,null,null,null,null,null,"  RIESGO DE DESASTRES VIGENTE?"]
[null,"        DOCENTES?"]
[null,null,null,null,null,null,null,null,null,null,null,"Sí    ",null,null,"No  "]
[null,null,"Sí    "]
[null,null,null,null,null,null,null,null,null,null,null,null,null,null,"Documento Nro."]
[null,null,null,null,null,"¿Qué acciones realizó?"]
[null,null,null,null,null,"(Marque con una \"X\", una o más opciones)"]
[null,null,null,null,null,null,"Elaborar un diagnóstico del estado del …"]
[null,null,null,null,null,null,"Elaborar un diagnóstico del estado del …",null,null,null,null,null,null,null,"Fecha de ",null,"DÍA","MES","AÑO"]
[null,null,null,null,null,null,"Ejecutar acciones en la IE para trabajar …",null,null,null,null,null,null,null,"aprobación"]
[null,null,null,null,null,null,"Generar espacios de diálogo en la …"]
[null,null,"No  ",null,null,null,"Promover espacios específicamente para …",null,null,null,"733. EN EL AÑO 2022, ¿LOS MIEMBROS DE ESTE SERVICIO/NIVEL EDUCATIVO HAN SIDO "]
[null,null,null,null,null,null,"Ejecutar acciones en el marco de la …",null,null,null,null,"  CAPACITADOS EN MATERIA DE GESTIÓN INTEGRAL DEL RIESGO DE EMERGENCIAS Y "]
[null,null,null,null,null,null,null,null,null,null,null,"  DESASTRES?"]
[null,"712. SEÑOR(A) DIRECTOR(A), DURANTE EL 2021 Y HASTA LA FECHA DEL CENSO 2022,"]
[null,null,"¿A TRAVÉS DE QUE MEDIO RECIBIÓ LA CAPACITACIÓN EL PERSONAL AUXILIAR DE",null,null,null,null,null,null,null,null,"Sí    ",null,null,"No  "]
[null,null,"EDUCACIÓN?"]
[null,null,null,"  (Marque con una “X”, una o más opciones)"]
[null,null,null,null,"Perueduca, cursos específicos para auxiliares ",null,null,null,null,null,null,"Tipo de Capacitación",null,null,"Cantidad de personas capacitadas"]
[null,null,null,null,"Perueduca, cursos para la comunidad educativa",null,null,null,null,null,null,null,null,null,"N° de Directores","N° de Docentes","N° de\nAdministrativos","N° de capacitados que pertenecen a la CEA y GRD/1"]
[null,null,null,null,"Mi Institución Educativa"]
[null,null,null,null,"Mi UGEL",null,null,null,null,null,"01","Curso",null,null,null,null,null,null,{"$f":"SUM(O149:R149)","v":0}]
[null,null,null,null,"Otra UGEL",null,null,null,null,null,"02","Taller",null,null,null,null,null,null,0]
[null,null,null,null,"DRE",null,null,null,null,null,"03","Charla",null,null,null,null,null,null,0]
[null,null,null,null,"Otras instituciones",null,null,null,null,null,"04","Seminario",null,null,null,null,null,null,0]
[null,null,null,null,"No cuento con personal auxiliar de educación",null,null,null,null,null,"05","Webinar",null,null,null,null,null,null,0]
[null,null,null,null,"El personal auxiliar de educación no recibió capacitación",null,null,null,null,null,"06","Otro",null,null,null,null,null,null,{"$f":"SUM(O154:R154)","v":0}]
[null,null,null,null,null,null,null,null,null,null,null,null,null,null,null,null,null,{"$f":"SUM(O149:R154)","v":0}]
[null,"713. SEÑOR(A) DIRECTOR(A),¿CUÁL CONSIDERA USTED COMO PRINCIPAL TEMA QUE",null,null,null,null,null,null,null,null,null,"/1 CEA y GRD: Comisión de Educación Ambiental y Gestión del Riesgo de Desastres."]
[null,null,"REQUIERE COMO CAPACITACIÓN EL PERSONAL AUXILIAR DE EDUCACIÓN, PARA "]
[null,null,"MEJORAR SU DESEMPEÑO?",null,null,null,null,null,null,null,"734. ESTE SERVICIO/NIVEL EDUCATIVO ¿CUENTA CON ALGUNA EXPERIENCIA EXITOSA O BUENA"]
[null,null,null,"  (Marque con una “X”, una o más opciones)",null,null,null,null,null,null,null,"  PRÁCTICA DOCENTE Y/O GESTIÓN ESCOLAR ENMARCADAS EN ALGUNA DE LAS LÍNEAS"]
[null,null,null,null,"Habilidades blandas (inteligencia emocional, comunicación …",null,null,null,null,null,null,"  ESTRATÉGICAS?"]
[null,null,null,null,"Habilidades duras (TICs, primeros auxilios, uso y peligros de …"]
[null,null,null,null,"Relación con los estudiantes (el juego, soporte …",null,null,null,null,null,null,"Sí    ",null,null,"No  "]
[null,null,null,null,"No cuento con personal auxiliar de educación"]
[]
[null,"714. SEÑOR(A) DIRECTOR(A), DURANTE EL 2021, ¿EL PERSONAL AUXILIAR DE EDUCACIÓN",null,null,null,null,null,null,null,null,null,"       Complete la tabla"]
[null,null,"DESEMPEÑO O DESEMPEÑA OTRAS LABORES ADICIONALES A SU ROL COMO AUXILIAR"]
[null,null,"DE EDUCACIÓN?",null,null,null,null,null,null,null,null,"Línea Estratégica",null,null,"Experiencia exitosa",null,null,"Buena práctica docente y/o \nGestión escolar"]
[null,null,null,"  (Marque con una “X”, una o más opciones)",null,null,null,null,null,null,null,null,null,null,"¿Cuenta con experiencia exitosa?","Año de la experiencia exitosa","Se socializó con otras entidades","Cuenta con buena práctica docente y/o Gestión escolar?","Año de la buena práctica docente y/o Gestión escolar","Se socializó con otras entidades"]
[null,null,null,null,"No realizó/realiza otras labores adicionales en la IE",null,null,null,null,null,null,null,null,null,"Sí - No",null,"Sí - No","Sí - No",null,"Sí - No"]
[null,null,null,null,"Trabaja como docente",null,null,null,null,null,"01","a. Gestión del Riesgo de Desastres",null,null,"","","","","",""]
[null,null,null,null,"Trabaja como personal administrativo en la IE",null,null,null,null,null,"02","b. Adaptación al cambio climático",null,null,"","","","","",""]
[null,null,null,null,"Trabaja en otra IE",null,null,null,null,null,"03","c. Seguridad y Defensa Nacional",null,null,"","","","","",""]
[null,null,null,null,"Otro",null,null,null,null,null,"04","d. Otro","",null,"","","","","",""]
[null,null,null,null,"No cuento con personal auxiliar de educación",null,null,null,null,null,null,null,null,null,{"$f":"COUNTIF(O170:O173,\"SI\")+COUNTIF(O170:O173,\"NO\")","v":0},null,null,{"$f":"COUNTIF(R170:R173,\"SI\")+COUNTIF(R170:R173,\"NO\")","v":0}]
[]
[null,"715. SEÑOR(A) DIRECTOR(A), ¿ESTE SERVICIO/NIVEL EDUCATIVO QUE USTED DIRIGE "]
[null,"         CUENTA CON PERSONAL ADMINISTRATIVO?",null,null,null,null,null,null,null,null,"735. EN EL AÑO 2022 ¿CUÁLES SON LOS EQUIPOS Y SERVICIOS INFORMÁTICOS QUE CUENTA ESTE SERVICIO/"]
[null,null,null,null,null,null,null,null,null,null,null,"  NIVEL EDUCATIVO PARA REPORTAR LAS EMERGENCIAS, DESASTRES Y/O PELIGRO INMINENTE?"]
[null,null,"Sí    ",null,null,"No  ",null,"Pase a la"]
[null,null,null,null,null,null,null,"pregunta 720.",null,null,null,"Equipos",null,null,null,"Marcar con \"X\""]
[null,null,null,null,null,null,null,null,null,null,null,"PC"]
[null,null,"Nota.- Responder según el tipo de personal declarado en la sección 300 sobre Personal",null,null,null,null,null,null,null,null,"Tablet"]
[null,null,"           docente, auxiliares de educación y administrativos",null,null,null,null,null,null,null,null,"Equipos Móviles"]
[null,null,null,null,null,null,null,null,null,null,null,"Internet"]
[null,"716. SOBRE EL PERSONAL ADMINISTRATIVO QUE LABORA EN ESTE SERVICIO/NIVEL",null,null,null,null,null,null,null,null,null,"No se cuenta"]
[null,"        EDUCATIVO COMPLETA PARA CADA CARGO/PUESTO LOS SIGUIENTES DATOS:",null,null,null,null,null,null,null,null,null,"Otros"]
[]
[]
[null,null,"Puestos Administrativos",null,"¿Cuenta con este tipo de personal?","¿Ha sido capacitado durante el 2021?",null,"¿La cantidad de personal que tiene es suficiente?",null,null,"736. EN EL AÑO 2022, ANTE LA DETECCIÓN DEL PELIGRO INMINENTE, EMERGENCIA O DESASTRE ¿ESTE SERVICIO/"]
[null,null,null,null,null,null,null,null,null,null,null,"  NIVEL EDUCATIVO REALIZA LA ALERTA AL ESPACIO DE MONITOREO Y SEGUIMIENTO SECTORIAL (EMSS) DE"]
[null,{"$f":"COUNTIF(E192:E198,\"NO\")","v":0},null,null,"Sí - No","Sí - No","¿Cuántas veces?","Sí - No","¿Qué cantidad sería suficiente?",null,null,"  LA UGEL?"]
[null,"01","a. Coordinador / Administrativo",null,"","","","","",null,null,null,"Sí    ",null,null,"No  "]
[null,"02","b. Secretaria(o)",null,"","","","",""]
[null,"03","c. Oficinista",null,"","","","","",null,null,null,null,null,null,"¿Por qué?"]
[null,"04","d. Trabajador de servicio que cumple funciones de guardanía y/o vigilancia",null,"","","","","",null,null,null,null,"Items",null,null,null,"Marcar con \"X\""]
[null,"05","e. Trabajador de servicio que cumple funciones de limpieza y mantenimiento",null,"","","","","",null,null,null,null,"No se tuvo emergencia en territorio"]
[null,"06","f. Auxiliar de biblioteca",null,"","","","","",null,null,null,null,"No se cuenta con los instrumentos y/o herramientas"]
[null,"07","g. Auxiliar de laboratorio",null,"","","","","",null,null,null,null,"No se conoce el procedimiento"]
[null,null,null,null,{"$f":"COUNTIF(E192:E198,\"SI\")+COUNTIF(E192:E198,\"NO\")","v":0},null,null,null,null,null,null,null,null,"Otro"]
[]
[null,"717. ¿CUÁL DE LAS SIGUIENTES COMPETENCIAS CONSIDERA USTED COMO LA MÁS RELEVANTE "]
[null,null,"EN EL EQUIPO DE PERSONAL ADMINISTRATIVO DE ESTE SERVICIO/NIVEL EDUCATIVO?",null,null,null,null,null,null,null,"737. EN EL AÑO 2022, ¿ESTE SERVICIO/NIVEL EDUCATIVO PARTICIPÓ EN LOS SIMULACROS CONVOCADOS POR"]
[null,null,null,null,null,null,null,null,null,null,null,"  MINEDU Y/O INDECI?"]
[null,null,null,"  (Marque con una “X”, una opción)"]
[null,null,null,null,"Trabajo en equipo",null,null,null,null,null,null,"Sí    ",null,null,"No  "]
[null,null,null,null,"Atención a usuarios"]
[null,null,null,null,"Comunicación asertiva"]
[null,null,null,null,"Orientación a resultados",null,null,null,null,null,null,null,null,"Items",null,null,"Marcar con \"X\""]
[null,null,null,null,"Orden y planificación estratégica",null,null,null,null,null,null,null,null,"Primer simulacro"]
[null,null,null,null,"Orientación al servicio",null,null,null,null,null,null,null,null,"Segundo simulacro"]
[null,null,null,null,"Proactividad",null,null,null,null,null,null,null,null,"Tercer simulacro"]
[null,null,null,null,null,null,null,null,null,null,null,null,null,"Cuarto simulacro"]
[null,"718. ¿CUÁLES SON LAS DOS PRINCIPALES TEMÁTICAS QUE CONSIDERA USTED QUE EL"]
[null,null,"PERSONAL ADMINISTRATIVO DE ESTE SERVICIO/NIVEL EDUCATIVO PODRÍA SER ",null,null,null,null,null,null,null,"738. ESTE SERVICIO/NIVEL EDUCATIVO, ¿HA RECIBIDO POR PARTE DE LA UGEL ACCIONES DE COMUNICACIÓN"]
[null,null,"CAPACITADO?",null,null,null,null,null,null,null,null,"  PRESENCIAL O VIRTUAL PARA SENSIBILIZAR A LA COMUNIDAD EDUCATIVA EN TEMAS DE GESTIÓN DEL"]
[null,null,null,"  (Marque con una “X”, solamente dos opciones)",null,null,null,null,null,null,null,"  RIESGO DE DESASTRES, CAMBIO CLIMÁTICO Y/O SEGURIDAD Y DEFENSA NACIONAL?"]
[null,null,{"$f":"COUNTIF(D217:D224,\"X\")","v":0},null,"Seguridad de control de accesos y de control interno de la IE"]
[null,null,null,null,"Gestión del mantenimiento de la IE (materiales, ambientes y equipos) ",null,null,null,null,null,null,"Sí    ",null,null,"No  "]
[null,null,null,null,"Manejo de habilidades interpersonales (atención de usuarios)"]
[null,null,null,null,"Técnicas de archivo y despacho de documentos"]
[null,null,null,null,"Manejo de los sistemas informáticos del Minedu",null,null,null,null,null,null,null,null,"Indique, ¿Qué acciones implementó o recibió?"]
[null,null,null,null,"Administración y control de recursos propios (financieros)",null,null,null,null,null,null,null,null,"  (Marque con una “X”, según corresponda)"]
[null,null,null,null,"Manejo de herramientas TIC y ofimática",null,null,null,null,null,null,null,null,"Items",null,null,null,"Marcar con \"X\""]
[null,null,null,null,"Prevención y atención de situaciones de riesgo ",null,null,null,null,null,null,null,null,"Afiches y/o díptico y/o tríptico"]
[null,null,null,null,null,null,null,null,null,null,null,null,null,"Carteles o murales"]
[null,"719. RESPECTO A LA CONTRIBUCIÓN DE PERSONAL ADMINISTRATIVO DURANTE EL",null,null,null,null,null,null,null,null,null,null,null,"Ferias estudiantiles"]
[null,null,"  2021 Y HASTA LA FECHA DE LA APLICACIÓN DEL CENSO 2022, ¿EN QUÉ ÁMBITO(S)",null,null,null,null,null,null,null,null,null,null,"Radionovela,  audios , radioteatro , videos animados"]
[null,null,"  IDENTIFICÓ UN MAYOR INCREMENTO DE ACTIVIDADES OPERATIVAS ",null,null,null,null,null,null,null,null,null,null,"Otro"]
[null,null,"  ADMINISTRATIVAS?"]
[null,null,"  (Marque con una “X”, una o más opciones)"]
[null,null,null,"Gestión de recursos financieros, bienes, servicios e infraestructura",null,null,null,null,null,null,"739. ESTE SERVICIO/NIVEL EDUCATIVO, ¿CUENTA CON EL APOYO DE ALIADOS ESTRATEGICOS DE SU LOCALIDAD"]
[null,null,null,"Gestión de información de la IE (registro en sistemas administrativos …",null,null,null,null,null,null,null,"  PARA ATENDER ALGUNO DE LOS SIGUIENTES TEMAS?"]
[null,null,null,"Gestión y seguimiento del uso de los recursos educativos"]
[null,null,null,"Limpieza y mantenimiento"]
[null,null,null,"Prevención y atención de situaciones de riesgo",null,null,null,null,null,null,null,"Temas por atender",null,null,null,"¿Cuenta con el apoyo de aliados estrategicos de su localidad?"]
[null,null,null,"No hubo incremento de las actividades administrativas-operativas en el …"]
[null,null,null,null,null,null,null,null,null,null,null,null,null,null,null,"Sí - No","Mencione al principal aliado en cada caso"]
[null,"720. QUÉ INFORMACIÓN LE GUSTARÍA ENCONTRAR EN EL PORTAL WEB PARA "]
[null,null,"  DIRECTIVO DE I.E. DEL MINEDU?",null,null,null,null,null,null,null,null,"Gestión Integral del riesgo de emergencias"]
[null,null,"  (Marque con una “X”, una o más opciones)",null,null,null,null,null,null,null,null,"Adaptación al cambio climático"]
[null,null,null,null,null,null,null,null,null,null,null,"Seguridad y Defensa Nacional"]
[null,null,null,"Lecturas, infografías y materiales diversos sobre las funciones como …",null,null,null,null,null,null,null,null,null,null,null,{"$f":"COUNTIF(P239:P241,\"SI\")+COUNTIF(P239:P241,\"NO\")","v":0}]
[null,null,null,"Videos tutoriales sobre las labores como directivos"]
[null,null,null,"Material diverso sobre habilidades blandas necesarias para el cargo"]
[null,null,null,"Buenas prácticas para la gestión directiva "]
[null,null,null,"Información sobre las normativas sobre la gestión escolar"]
[null,null,null,"Otros"]

{"sheet":"C800","index":8,"n_rows":156,"n_cols":18,"rows_kept":156,"cut":false,"hidden":false,"merged":[[58,4,59,8],[60,4,61,8],[62,4,63,8],[64,4,65,8],[66,4,67,8],[62,9,63,9],[64,9,65,9],[66,9,67,9],[6,1,6,18],[52,3,52,8],[53,2,59,2],[54,9,55,9],[36,6,36,8],[56,9,57,9],[58,9,59,9],[60,2,67,2],[60,9,61,9],[36,17,36,18],[27,12,27,14],[54,4,55,8],[56,4,57,8],[106,15,106,17],[71,13,71,16],[84,14,84,17],[75,9,76,9],[68,2,70,2],[68,9,69,9],[71,2,78,2],[71,9,72,9],[73,9,74,9],[77,9,78,9],[68,4,69,8],[71,4,72,8],[73,4,74,8],[75,4,76,8],[77,4,78,8],[1,4,1,15],[2,4,2,15],[0,16,3,18],[101,2,101,17],[108,2,108,5],[108,6,108,9],[108,10,108,14],[108,15,108,17],[107,2,107,5],[107,6,107,9],[107,10,107,14],[29,13,29,16],[107,15,107,17],[106,3,106,5],[106,6,106,9],[106,10,106,14]]}
[null,null,null,null,null,null,null,null,null,null,null,null,null,null,null,null,"1A"]
[null,null,null,null,"CENSO EDUCATIVO 2022"]
[null,null,null,null,"MATRÍCULA, DOCENTES Y MATERIALES EDUCATIVOS"]
[]
[]
[]
[null,"800. APRENDO EN CASA - MULTICANALES"]
[]
[null,"801. INDIQUE CUÁLES SON LOS MEDIOS DE COMUNICACIÓN O MULTICANALES POR LOS QUE LOS ESTUDIANTES DE ESTE SERVICIO/NIVEL EDUCATIVO, PARTICIPAN"]
[null,null,"DE LA ESTRATEGIA “APRENDO EN CASA” - AeC?"]
[null,null,null,null,null,null,null,null,null,null,"¿QUE ESTACIÓN DE RADIO USA PARA ESCUCHAR EL CONTENIDO DE AeC?"]
[null,{"$f":"COUNTIF(C12:C18,\"X\")","v":0},null,"Radio (propia o familiar)",null,null,null,null,null,null,"","Radio Nacional del Perú"]
[null,null,null,"Radio (autoparlantes o parlantes comunitarios)",null,null,null,null,{"$f":"CONCATENATE(C12,C13)","v":""},null,"","Radio Regional que emite el programa"]
[null,null,null,"Televisión",null,null,null,null,null,null,"","Radio local"]
[null,null,null,"Plataforma Web"]
[null,null,null,"WhatsApp",null,null,null,null,null,null,"LAS ACTIVIDADES PROPUESTAS EN LA WEB, ¿SON DESARROLLADAS POR LOS"]
[null,null,null,"Megáfono",null,null,null,null,null,null,"ESTUDIANTES DE LA IE?"]
[null,null,"","Ninguno",null,"Pase a la pregunta 811.",null,null,null,null,null," Sí  ","",null,null,"No  ",""]
[]
[null,"802. SOLO SI MARCO MAS DE UNA ALTERNATIVA EN LA PREGUNTA 801, INDIQUE"]
[null,null,"¿CUÁL ES LA PLATAFORMA DE MULTICANALES DE MAYOR USO POR PARTE",null,null,null,null,null,null,null,"805.  DE LAS SIGUIENTES CARACTERÍSTICAS ¿CUÁL O CUÁLES CONSIDERA QUE"]
[null,null,"DE LOS ESTUDIANTES PARA ACCEDER A LA ESTRATEGIA APRENDO EN CASA?",null,null,null,null,null,null,null,null," SON LAS CARACTERÍSTICAS QUE DESCRIBEN MEJOR LAS VENTAJAS DE LA"]
[null,null,"  (Marque con una “X”, una opción)",null,null,null,null,null,null,null,null," PLATAFORMA “APRENDO EN CASA”?"]
[null,{"$f":"IF(C12<>\"\",C12,\"\")","v":""},"","Radio (propia o familiar)",null,null,null,null,null,null,null,null,null,null,null,null,"1: Siempre"]
[null,"","","Radio (autoparlantes o parlantes comunitarios)",null,null,null,null,null,null,null,"","Es amigable",null,null,null,"2: Casi Siempre"]
[null,"","","Televisión",null,null,null,null,null,null,null,"","Es rápido",null,null,null,"3: A Veces"]
[null,"","","Plataforma Web",null,null,null,null,null,null,null,"","Esta bien organizado",null,null,null,"4: Casi Nunca"]
[null,"","","WhatsApp",null,null,null,null,null,null,null,"","Tiene buen contenido",null,null,null,"5: Nunca"]
[null,"","","Megáfono",null,null,null,null,null,null,null,"","Ninguna de las anteriores"]
[null,null,null,null,null,null,null,null,null,null,null,"","Otro",""]
[]
[null,"803. ¿EN QUÉ LENGUA ACCEDEN MAYORITARIAMENTE LOS ESTUDIANTES DE ESTE"]
[null,null,"SERVICIO/NIVEL EDUCATIVO A LA MODALIDAD DE “APRENDO EN CASA”?",null,null,null,null,null,null,null,"806. DURANTE EL AÑO 2021, ESTE SERVICIO/NIVEL EDUCATIVO ¿HA COORDINADO O"]
[null,null,null,null,null,null,null,null,null,null,null,"ARTICULADO ALGUNA ACCIÓN CON EL GOBIERNO LOCAL (DISTRITAL O PROVINCIAL)"]
[null,null,"","Castellano",null,null,"INDIQUE LA",null,null,null,null,"PARA INCREMENTAR EL ACCESO A LA ESTRATEGIA APRENDO EN CASA?"]
[null,null,"","Lengua Originaria",null,null,"LENGUA ORIGINARIA"]
[null,null,"","Ambas lenguas",null,{"$f":"CONCATENATE(C36,C37)","v":""},"",null,null,null,null," Sí  ","",null,null,"No  ","","Pase a la pregunta 808."]
[]
[null,null,null,null,null,null,null,null,null,null,null,null,null,"  (Marque con una “X”, una opción)"]
[null,"804. SEÑOR(A) DIRECTOR(A), ¿SE ENCUENTRA USTED SATISFECHO CON EL CONTENIDO",null,null,null,null,null,null,null,null,null,null,"","Con Municipalidad Distrital"]
[null,null,"DE “APRENDO EN CASA”?, YA SEA EN CASTELLANO O EN LENGUA ORIGINARIA?",null,null,null,null,null,null,null,null,null,"","Con Municipalidad Provincial"]
[null,null,null,null,null,null,null,null,null,null,null,null,"","Con ambas"]
[null,null,"En castellano",null,null,null,"En lengua originaria"]
[null,null,"","Satisfecho",null,null,"","Satisfecho"]
[null,null,"","Poco satisfecho",null,null,"","Poco satisfecho"]
[null,null,"","Insatisfecho",null,null,"","Insatisfecho"]
[null,null,"","No aplica",null,null,"","No aplica"]
[]
[]
[null,"807. FRECUENCIA DE LAS ACCIONES DE AYUDA A LA ESTRATEGIA APRENDO EN CASA,",null,null,null,null,null,null,null,null,"809. LA MAYORÍA DE LOS DOCENTES DE ESTE SERVICIO/NIVEL EDUCATIVO, ¿REALIZAN"]
[null,null,"POR PARTE DEL GOBIERNO LOCAL",null,null,null,null,null,null,null,null,"   LA RETROALIMENTACIÓN A LOS ESTUDIANTES?"]
[]
[null,{"$f":"SUM(B54:B79)","v":0},"MEDIO","ACCIÓN",null,null,null,null,null,"FRECUENCIA",null,null," Sí  ","","No  ",""]
[null,{"$f":"IF(J54<>\"\",1,0)","v":0},"Radio","01","Contratación y convenios con emisoras radiales.",null,null,null,null,""]
[null,{"$f":"IF(J55<>\"\",1,0)","v":0},null,"02","Uso de radio municipal para retransmitir la estrategia AeC.",null,null,null,null,"",null,null,"  (Marque con una “X”, una opción)"]
[null,null,null,null,null,null,null,null,null,null,null,"","Elemental"]
[null,{"$f":"IF(J57<>\"\",1,0)","v":0},null,"03","Uso de altoparlantes para difusión de la estrategia Aec.",null,null,null,null,"",null,"","Descriptiva"]
[null,null,null,null,null,null,null,null,null,null,null,"","Reflexiva por descubrimiento"]
[null,{"$f":"IF(J59<>\"\",1,0)","v":0},null,"04","Instalación y repotenciación de antenas equipos de radio.",null,null,null,null,""]
[]
[null,{"$f":"IF(J61<>\"\",1,0)","v":0},"TV y Cable","05","Instalación, repotenciación, reparación o reactivación de antenas y equipos de TV.",null,null,null,null,"","810. LA MAYORIA DE LOS DOCENTES DE ESTE SERVICIO/NIVEL EDUCATIVO, ¿HAN"]
[null,null,null,null,null,null,null,null,null,null,null,"   ESTABLECIDO EL MEDIO DE COMUNICACIÓN, PARA LA COORDINACIÓN Y"]
[null,{"$f":"IF(J63<>\"\",1,0)","v":0},null,"06","Uso de antena repetidora y TV municipal para retransmitir la estrategia AeC.",null,null,null,null,"",null,"   ACOMPAÑAMIENTO DEL TRABAJO REMOTO CON LOS PPFF Y/O ESTUDIANTES?"]
[]
[null,{"$f":"IF(J65<>\"\",1,0)","v":0},null,"07","Alquiler e instalación de antenas y equipos de cable (DIRECTV).",null,null,null,null,"",null,null," Sí  ","","No  ",""]
[]
[null,{"$f":"IF(J67<>\"\",1,0)","v":0},null,"08","Trámite para licencias de funcionamiento y antenas",null,null,null,null,"",null,null,"  (Marque con una “X”, una o más opciones)"]
[null,null,null,null,null,null,null,null,null,null,null,"","WhatsApp"]
[null,{"$f":"IF(J69<>\"\",1,0)","v":0},"Internet","09","Instalación y ampliación del servicio de  internet satelital.",null,null,null,null,"",null,"","Facebook"]
[null,null,null,null,null,null,null,null,null,null,null,"","Correo electrónico"]
[null,{"$f":"IF(J71<>\"\",1,0)","v":0},null,"10","Wifi gratuito en espacios públicos.",null,null,null,null,"",null,"","Llamada telefónica"]
[null,{"$f":"IF(J72<>\"\",1,0)","v":0},"Otros","11","Elaboración y difusión de recursos para promocionar la estrategia AeC.",null,null,null,null,"",null,"","Otros",""]
[]
[null,{"$f":"IF(J74<>\"\",1,0)","v":0},null,"12","Fotocopiado, impresión y distribución de material educativo.",null,null,null,null,"","811. SI MARCÓ LA ALTERNATIVA “NINGUNO” EN LA PREGUNTA 801, RESPONDA:"]
[null,null,null,null,null,null,null,null,null,null,null,"¿CUÁLES SON LOS MOTIVOS POR LOS QUE LOS ESTUDIANTES DE ESTE SERVICIO/"]
[null,{"$f":"IF(J76<>\"\",1,0)","v":0},null,"13","Trámite para instalar nuevas antenas y ampliar cobertura de las existentes (Radio, Tv y celular).",null,null,null,null,"",null,"NIVEL EDUCATIVO NO ACCEDEN A “APRENDO EN CASA”?"]
[null,null,null,null,null,null,null,null,null,null,null,null,"  (Marque con una “X”, una o más opciones)"]
[null,{"$f":"IF(J78<>\"\",1,0)","v":0},null,"14","Diálogo con actores públicos y privados para ampliar la cobertura y difundir la estrategia AeC.",null,null,null,null,"",null,null,"","No sabe cómo acceder"]
[null,null,null,null,null,null,null,null,null,null,null,null,"","No tiene TV o la señal es mala"]
[null,null,null,null,null,null,null,null,null,{"$f":"COUNTIF(J54:J79,\"5: Nunca\")","v":0},null,null,"","No tiene Radio o la señal es mala"]
[null,"         808. LA WEB DE APRENDO EN CASA CONTIENE EXPERIENCIAS DE APRENDIZAJE PARA",null,null,null,null,null,null,null,null,null,null,"","No tiene Internet o la señal es mala"]
[null,"         EL ÁREA DE ARTE Y CULTURA ¿CUÁL FUE EL USO QUE LE DIO A DICHOS RECURSOS?",null,null,null,null,null,null,null,null,null,null,"","Usar otros recursos educativos"]
[null,null,null,null,null,null,null,null,null,null,null,null,"","Se dedican a otras actividades productivas de la comunidad"]
[null,null,"(Marque con una \"X\" la opción que es más pertinente a su experiencia)",null,null,null,null,null,null,null,null,null,"","No encuentra útiles los recursos de Aprendo en casa"]
[null,null,"","La usé sin modificarlas porque era lo que necesitaba",null,null,null,null,null,null,null,null,"","Otro",""]
[null,null,"","Decidí adaptarlas para que respondan mejor a Las necesidades de mis …"]
[null,null,"","Las utilicé como un material de consulta o referencia para elaborar mis …",null,null,null,null,null,null,"812. EN UN ESCENARIO DE EDUCACIÓN SEMIPRESENCIAL O REMOTA ¿CUÁL ES EL MEDIO"]
[null,null,"","No Las usé porque No se adaptaban a lo que necesitaba",null,null,null,null,null,null,null,"DE COMUNICACIÓN PERTINENTE, QUE SEGÚN LAS CONDICIONES DE LA ZONA,"]
[null,null,"","No Las usé porque era difícil encontrarlas en la web o No Las encontré …",null,null,null,null,null,null,null,"PERMITEN LA COMUNICACIÓN Y APRENDIZAJE DE LOS ESTUDIANTES?."]
[null,null,null,null,null,null,null,null,null,null,null,null,null,"  (Marque con una “X”, una o más opciones)"]
[null,null,null,null,null,null,null,null,null,null,null,null,null,"Llamadas telefónicas (celular)"]
[null,null,null,null,null,null,null,null,null,null,null,null,null,"Whatsapp (audios o vídeos)"]
[null,null,null,null,null,null,null,null,null,null,null,null,null,"Facebook - Messenger"]
[null,null,null,null,null,null,null,null,null,null,null,null,null,"Videoconferencias (Meet, Zoom, Skype, etc)"]
[null,null,null,null,null,null,null,null,null,null,null,null,null,"Correo electrónico"]
[null,null,null,null,null,null,null,null,null,null,null,null,null,"Visitas domiciliarias"]
[]
[]
[]
[null,"ANOTACIONES COMPLEMENTARIAS QUE CONSIDERE NECESARIO AGREGAR (máximo 200 caracteres)"]
[]
[]
[]
[]
[null,"DATOS DEL DIRECTOR(A) Y/O RESPONSABLE (S) DEL LLENADO DE LA CÉDULA"]
[]
[null,null,null,"NOMBRES Y APELLIDOS",null,null,"CARGO",null,null,null," CORREO ELECTRÓNICO",null,null,null,null,"TELÉFONO"]
[]
[]
[]
[]
[]
[]
[]
[]
[]
[]
["DIRECTOR(A)"]
["SUB DIRECTOR(A)"]
["DOCENTE"]
["COORDINADOR(A)"]
["ASESOR"]
["ADMINISTRATIVO"]
["ASISTENTE"]
["AUXILIAR"]
["SECRETARIA(O)"]
["ESTADÍSTICO"]
["ESPECIALISTA"]
["BIBLIOTECARIO"]
["CARE"]
["COMANDANTE PNP"]
["CONTADOR"]
["DAIP"]
["DIGITADOR(A)"]
["GERENTE"]
["JEFE ACADÉMICO"]
["JEFE ADMINISTRATIVO"]
["JEFE DE AREA"]
["JEFE DE LABORATORIO"]
["JEFE DE PERSONAL"]
["JEFE DE SEDE"]
["JEFE UNIDAD"]
["OFICINISTA"]
["OPERADOR DE SISTEMAS"]
["PERSONAL DE SERVICIO"]
["PROGRAMADOR"]
["PROMOTOR(A)"]
["PSICOLOGO"]
["REGISTRADOR(A)"]
["REPRESENTANTE LEGAL"]
["SOPORTE TECNOLOGICO"]
["TÉCNICO ADMINISTRATIVO"]
["TESORERO(A)"]
["TRABAJADOR SOCIAL"]
["TUTOR"]
["OTROS"]

{"sheet":"Enviar","index":9,"n_rows":9,"n_cols":4,"rows_kept":9,"cut":false,"hidden":false,"merged":[[0,1,0,4],[1,1,1,4]]}
[null,"CENSO EDUCATIVO 2022"]
[null,"MATRÍCULA, DOCENTES Y MATERIALES EDUCATIVOS"]
[]
[]
[null,null,"Paso 1:","Realice el ENVÍO con su clave EOL."]
[]
[null,null,"Paso 2:","Una vez realizado el ENVÍO,  Revise su constancia de envio."]
[]
[null,null,"  ADVERTENCIA","ASEGÚRESE DE REGISTRAR TODA LA INFORMACIÓN DEL NIVEL INFORMANTE"]